Workbook

Sheet Print

Sheet INPUT
A1: For the 12 months ended: | B1: 2013-12-31 | D1: # of Work Papers | E1: 10
A2: Rates effective: | B2: =EDATE(B1,5)+1 -> 2014-06-01
C4: Per 2013 FERC Form 1
B5: Form No. 1
A6: DESCRIPTION | B6: Page, Line, Col. | C6: DEO | D6: DEK | E6: DEOK
A8: GROSS PLANT IN SERVICE
A9: Production | B9: 205.46.g | C9: 3465019849 | D9: 807240513 | E9: =D9+C9 -> 4272260362
A10: Transmission | B10: 207.58.g | C10: 665074281 | D10: 44032271 | E10: =D10+C10 -> 709106552
A11: Distribution | B11: 207.75.g | C11: 2118397113 | D11: 382030995 | E11: 2500428108
A12: General & Intangible | B12: 205.5.g & 207.99.g | C12: =82505069+162941967 -> 245447036 | D12: =6000280+5250411 -> 11250691 | E12: 256697727
A13: Common | B13: 356 | C13: =ROUND(380907718*0.63,0) -> 239971862 | D13: =ROUND(41256898*0.7369,0) -> 30402208 | E13: 270374070
A14: TOTAL GROSS PLANT | C14: =SUM(C9:C13) -> 6733910141 | D14: =SUM(D9:D13) -> 1274956678 | E14: =D14+C14 -> 8008866819
A16: ACCUMULATED DEPRECIATION
A17: =A9 -> Production | B17: 219.20-24.c | C17: =1284452613+18681680 -> 1303134293 | D17: =317461129+144810059 -> 462271188 | E17: =D17+C17 -> 1765405481
A18: =A10 -> Transmission | B18: 219.25.c | C18: 234993182 | D18: 17692894 | E18: 252686076
A19: =A11 -> Distribution | B19: 219.26.c | C19: 681054969 | D19: 147214136 | E19: 828269105
A20: =A12 -> General & Intangible | B20: 200.21.c & 219.28.c | C20: =78207781+30313784 -> 108521565 | D20: =5235252+773961 -> 6009213 | E20: 114530778
A21: =A13 -> Common | B21: 356 | C21: 97689983 | D21: 23241364 | E21: 120931347
A22: TOTAL ACCUM. DEPRECIATION | C22: =SUM(C17:C21) -> 2425393992 | D22: =SUM(D17:D21) -> 656428795 | E22: =D22+C22 -> 3081822787
A24: NET PLANT IN SERVICE
A25: =A17 -> Production | B25: (line 1 - line 7) | C25: =C9-C17 -> 2161885556 | D25: 344969325 | E25: =D25+C25 -> 2506854881
A26: =A18 -> Transmission | B26: (line 2 - line 8) | C26: 430081099 | D26: 26339377 | E26: 456420476
A27: =A19 -> Distribution | B27: (line 3 - line 9) | C27: 1437342144 | D27: 234816859 | E27: 1672159003
A28: =A20 -> General & Intangible | B28: (line 4 - line 10) | C28: 136925471 | D28: 5241478 | E28: 142166949
A29: =A21 -> Common | B29: (line 5 - line 11) | C29: 142281879 | D29: 7160844 | E29: 149442723
A30: TOTAL NET PLANT | C30: =SUM(C25:C29) -> 4308516149 | D30: =SUM(D25:D29) -> 618527883 | E30: 4927044032
A32: ADJUSTMENTS TO RATE BASE
A33: Account No. 281 (enter negative) | B33: 273.8.k | C33: -86615578 | D33: -394496 | E33: =D33+C33 -> -87010074
A34: Account No. 282 (enter negative) | B34: Exhibit No. DUK-102, Pg. 1 | C34: =-'P2 ADIT 190 & 282'!D30 -> -1035945559 | D34: =-'P2 ADIT 190 & 282'!E30 -> -179685476 | E34: -1215631035
A35: Account No. 283 (enter negative) | B35: 277.9.k & 277.18.k | C35: =-57758589-34519498 -> -92278087 | D35: =4232629+-37748 -> 4194881 | E35: -88083206
A36: Account No. 190 | B36: Exhibit No. DUK-102, Pg. 1 | C36: ='P2 ADIT 190 & 282'!D19 -> 139113973 | D36: ='P2 ADIT 190 & 282'!E19 -> -6174705 | E36: 132939268
A37: Account No. 255 (enter negative) | B37: 267.8.h | C37: 0 | D37: 0 | E37: 0
A38: TOTAL ADJUSTMENTS | C38: =SUM(C33:C37) -> -1075725251 | D38: =SUM(D33:D37) -> -182059796 | E38: -1257785047
A40: LAND HELD FOR FUTURE USE (Note G) | B40: 214.x.d | C40: ='P2 Land Held for Future Use'!B20 -> 121217 | D40: ='P2 Land Held for Future Use'!B26 -> 0 | E40: =D40+C40 -> 121217
A42: WORKING CAPITAL
A43: CWC | B43: calculated | C43: =ROUND((C64-'P3 Schedule 1 Charges acct 561'!C14)/8,0) -> 17659057 | D43: =ROUND((D64-'P3 Schedule 1 Charges acct 561'!D14)/8,0) -> 2756794 | E43: =D43+C43 -> 20415851
A44: Materials & Supplies (Note G) | B44: 227.8.c & 227.16.c | C44: ='P2 Allocate M&S'!B15+'P2 Allocate M&S'!F15 -> 9966887 | D44: ='P2 Allocate M&S'!B23+'P2 Allocate M&S'!F23 -> 30573 | E44: 9997460
A45: Prepayments (Account 165) | B45: 111.57.c | C45: 34113864 | D45: 1675712 | E45: 35789576
A46: TOTAL WORKING CAPITAL | C46: =C43+C44+C45 -> 61739808 | D46: =D43+D44+D45 -> 4463079 | E46: 66202887
A48: RATE BASE | C48: =C46+C40+C38+C30 -> 3294651923 | D48: =D46+D40+D38+D30 -> 440931166 | E48: =D48+C48 -> 3735583089
A50: O&M
A51: Transmission | B51: 321.112.b | C51: 25124061 | D51: 10229766 | E51: =D51+C51 -> 35353827
A52: Less LSE Expenses included in Transmission O&M Accounts (Note V) | B52: 321.88.b, 92.b | C52: =27439+15289250 -> 15316689 | D52: 117701 | E52: 15434390
A53: Less Midwest ISO Exit Fees included in Transmission O&M | B53: (Note X) | C53: 0 | D53: 0 | E53: 0
A54: Less Account 565 | B54: 321.96.b | C54: 42038 | D54: 8944811 | E54: 8986849
A55: A&G | B55: 323.197.b | C55: 143718447 | D55: 23631896 | E55: 167350343
A56: Less Actual PBOP Expense | B56: (Note E) | C56: 1225300 | D56: 548309 | E56: 1773609
A57: Plus Fixed PBOP Expense | B57: (Note E) | C57: 2342494 | D57: 575908 | E57: 2918402
A58: Less PJM Integration Costs included in A&G | B58: (Note Y) | C58: 0 | D58: 0 | E58: 0
A59: Less FERC Annual Fees | B59: 350.b | C59: 0 | D59: 0 | E59: 0
A60: Less EPRI & Reg. Comm. Exp. & Non-safety Advertising (Note I) | B60: Exhibit No. DUK-102, Pg. 4 | C60: ='P3 Advertising - EPRI Adj.'!C30 -> 1876185 | D60: ='P3 Advertising - EPRI Adj.'!D30 -> 695146 | E60: 2571331
A61: Plus Transmission Related Reg. Comm. Exp. (Note I) | C61: 0 | D61: 0 | E61: 0
A62: Common | B62: =B21 -> 356 | C62: 0 | D62: 0 | E62: 0
A63: Transmission Lease Payments | C63: 0 | D63: 0 | E63: 0
A64: TOTAL O&M (sum lines 1, 2a, 3, 5a, 6, 7 less lines 1a, 2, 4, 5) | C64: =C51-C52-C53-C54+C55-C56+C57-C58-C59-C60+C61+C62+C63 -> 152724790 | D64: =D51-D52-D53-D54+D55-D56+D57-D58-D59-D60+D61+D62+D63 -> 24131603 | E64: 176856393
A66: DEPRECIATION EXPENSE
A67: =A51 -> Transmission | B67: 336.7.f | C67: 11845312 | D67: 849915 | E67: =D67+C67 -> 12695227
A68: General & Intangible | B68: 336.1.f & 336.10.f | C68: =12039404+8093778 -> 20133182 | D68: =711937+414615 -> 1126552 | E68: 21259734
A69: =A62 -> Common | B69: 336.11.f | C69: 11646132 | D69: 2018598 | E69: 13664730
A70: TOTAL DEPRECIATION (Sum lines 9 - 11) | C70: =SUM(C67:C69) -> 43624626 | D70: =SUM(D67:D69) -> 3995065 | E70: 47619691
A72: TAXES OTHER THAN INCOME TAXES
A73: LABOR RELATED
A74: Payroll | B74: 263.i. | C74: =8777650+235350+9646 -> 9022646 | D74: =1869285+69840+15409 -> 1954534 | E74: =D74+C74 -> 10977180
A75: Highway and vehicle | B75: 263.i. | C75: 16796 | D75: 2955 | E75: 19751
A76: PLANT RELATED | E76: 0
A77: Property | B77: 263.i. | C77: =517141+102829559 -> 103346700 | D77: =883058+5909696 -> 6792754 | E77: 110139454
A78: Gross Receipts | B78: 263.i. | C78: 4505259 | D78: 0 | E78: 4505259
A79: Other | B79: 263.i | C79: 0 | D79: 0 | E79: 0
A80: Payments in lieu of taxes | C80: 0 | D80: 0 | E80: 0
A81: TOTAL OTHER TAXES (sum lines 13 - 19) | C81: =C74+C75+C77+C78+C79+C80 -> 116891401 | D81: =D74+D75+D77+D78+D79+D80 -> 8750243 | E81: 125641644
E83: Calculated
A84: INCOME TAXE RATES | E84: Composite
A85: Federal Income Tax (FIT) | C85: 0.35 | D85: 0.35 | E85: =INPUT!D85 -> 0.35
A86: State Income Tax (SIT) or Composite SIT | C86: ='P3 Statetax'!B13 -> 0 | D86: ='P3 Statetax'!C13 -> 0.06 | E86: ='P3 Statetax'!D17 -> 0.0028
A87: (percent of federal income tax deductible for state purposes) | C87: 0 | D87: 0
A88: Effective Income Tax Rate | C88: =IF(C85>0,1-(((1-C86)*(1-C85))/(1-C86*C85*C87)),0) -> 0.35 | D88: =IF(D85>0,1-(((1-D86)*(1-D85))/(1-D86*D85*D87)),0) -> 0.389 | E88: =IF(E85>0,1-(((1-E86)*(1-E85))/(1-E86*E85*E87)),0) -> 0.35182
A90: Amortized Investment Tax Credit | B90: 266.8.f (enter negative) | C90: -403726 | D90: =-36658 -> -36658 | E90: =D90+C90 -> -440384
A92: TRANSMISSION PLANT INCLUDED IN ISO RATES
A94: Less transmission plant excluded from ISO rates (Note M) | C94: 0 | D94: 0 | E94: =D94+C94 -> 0
A95: Less transmission plant included in OATT Ancillary Services (Note N) | C95: ='P4 Trans Plant In OATT'!B18 -> 13559865.32 | D95: ='P4 Trans Plant In OATT'!C18 -> 11476936.94 | E95: 25036802.26
A97: TRANSMISSION EXPENSES
A99: Less transmission expenses included in OATT Ancillary Services (Note L) | B99: 321.84-87.b | C99: =468541+651199+88888 -> 1208628 | D99: =79077+106082+14728 -> 199887 | E99: =D99+C99 -> 1408515
A102: WAGES & SALARY ALLOCATOR (W&S)
C103: $ | D103: $
A104: Production | B104: 354.20.b | C104: 52203923 | D104: 11698743 | E104: =D104+C104 -> 63902666
A105: Transmission | B105: 354.21.b | C105: 3468725 | D105: 662512 | E105: 4131237
A106: Distribution | B106: 354.23.b | C106: 26712409 | D106: 4583482 | E106: 31295891
A107: Other | B107: 354.24,25,26.b | C107: =12308684+2992733 -> 15301417 | D107: =2758345+722890+0 -> 3481235 | E107: 18782652
A108: Total (sum lines 12-15) | C108: =SUM(C104:C107) -> 97686474 | D108: =SUM(D104:D107) -> 20425972 | E108: 118112446
A110: COMMON PLANT ALLOCATOR (CE) (Note O)
C111: $ | D111: $
A112: Electric | B112: 200.3.c | C112: 5787117909 | D112: 1107365205 | E112: =D112+C112 -> 6894483114
A113: Gas | B113: 201.3.d | C113: 1088806042 | D113: 329534409 | E113: 1418340451
A114: Water | B114: 201.3.e | C114: 0 | D114: 0 | E114: 0
A115: Total (sum lines 17 - 19) | C115: =C112+C113+C114 -> 6875923951 | D115: =D112+D113+D114 -> 1436899614 | E115: 8312823565
A117: RETURN (R)
A118: Long Term Interest (117, sum of 62.c through 67.c) | C118: =65558685+3212976+523646+-473735+537405 -> 69358977 | D118: =14170932+489575+276185+830 -> 14937522 | E118: =D118+C118 -> 84296499
A120: Preferred Dividends (118.29.c) (positive number) | C120: 0 | D120: 0 | E120: =D120+C120 -> 0
A122: Development of Common Stock:
A123: Proprietary Capital (112.16.c) - Adjusted on work paper | C123: ='P4 Capital Structure - Confiden'!B48+'P4 Capital Structure - Confiden'!P54 -> 3563555144 | D123: 377954114 | E123: =D123+C123 -> 3941509258
A124: Less Preferred Stock (112.3.c) | C124: 0 | D124: 0 | E124: 0
A125: Less Account 216.1 (112.12.c) (enter negative) | C125: -472780021 | D125: 0 | E125: -472780021
A126: Common Stock | C126: =C123+C124+C125 -> 3090775123 | D126: =D123+D124+D125 -> 377954114 | E126: 3468729237
B128: (Note P) | C128: $ | D128: $
A129: Long Term Debt (112, sum of 18.c through 21.c) | C129: =1162000000+697270887 -> 1859270887 | D129: 332571494 | E129: =D129+C129 -> 2191842381
A130: Preferred Stock (112.3.c) | C130: 0 | D130: 0 | E130: 0
A131: Common Stock (line 26) | C131: =C126 -> 3090775123 | D131: =D126 -> 377954114 | E131: 3468729237
A132: Total (sum lines 27-29) | C132: =C131+C130+C129 -> 4950046010 | D132: =D131+D130+D129 -> 710525608 | E132: 5660571618
A135: REVENUE CREDITS
A137: a. Bundled Non-RQ Sales for Resale (311.x.h) | C137: 0 | D137: 0 | E137: =D137+C137 -> 0
A138: b. Bundled Sales for Resale included in Divisor on page 1 | C138: 0 | D138: 0 | E138: 0
A139: Total of (a)-(b)
A141: ACCOUNT 454 (RENT FROM ELECTRIC PROPERTY) (Note R) | C141: =ROUND('P4 Rev Cred Support'!C23,0) -> 163190 | D141: =ROUND('P4 Rev Cred Support'!E20,0) -> 18254 | E141: =D141+C141 -> 181444
A143: ACCOUNT 456.1 (OTHER ELECTRIC REVENUES) (Note U) | C143: ='P4 Rev Cred Support'!C36-'P4 Rev Cred Support'!C38-'P4 Rev Cred Support'!C41 -> -4826126 | D143: ='P4 Rev Cred Support'!E36-'P4 Rev Cred Support'!E38-'P4 Rev Cred Support'!E41 -> 0 | E143: =D143+C143 -> -4826126
A145: ROE - Docket Nos. ER12-91-000 and ER12-92-000 (Settlement) | C145: 0.1238 | D145: =C145 -> 0.1238 | E145: =D145 -> 0.1238
A147: Revenue Requirement | C147: =DEO!J28 -> 78995561.64 | D147: =DEK!J28 -> 3991529.189 | E147: ='DE Ohio & Kentucky'!J29 -> 81729172.33
D148: =C147+D147 -> 82987090.83
A151: Corrections to previous year's revenue requirement to be reflected in current year's NITS rate calculation | E151: 0
A156: Schedule 1A Rate Calculations
A157: Sales to Ultimate Consumers | B157: (401a.22b) | C157: 0 | D157: 4032604 | E157: =D157+C157 -> 4032604
A158: Non-Requirements Sales for Resale | B158: (401a.24b) | C158: 19299686 | D158: 514088 | E158: 19813774

Sheet DE Ohio & Kentucky
J1: Attachment H-22A
J2: page 1 of 6
C7: Formula Rate - Non-Levelized | J7: ="For the 12 months ended: "&TEXT(INPUT!B1,"mm/dd/yyyy") -> For the 12 months ended: 12/31/2013
A8: Rate Formula Template
A9: Utilizing FERC Form 1 Data
A11: DUKE ENERGY OHIO AND DUKE ENERGY KENTUCKY (DEOK)
A13: Line | J13: Allocated
A14: No. | J14: Amount | O14: DEO + DEK
A15: 1 | C15: GROSS REVENUE REQUIREMENT (page 3, line 29) | J15: =J183 -> 84513651.95 | O15: =DEO!J15+DEK!J15 -> 85808301.21
C18: REVENUE CREDITS (Note T) | E18: Total | G18: Allocator
A19: 2 | C19: Account No. 454 | D19: (page 4, line 34) | E19: =J259 -> 181444 | G19: TP | H19: =J$207 -> 0.964692468 | J19: =H19*E19 -> 175037.6602
A20: 3 | C20: Account No. 456.1 | D20: (page 4, line 35) | E20: =J261 -> 1007758 | G20: =G$19 -> TP | H20: 0.964692468 | J20: =H20*E20 -> 972176.5522 | O20: Line 3 - does not include MISO Schedule 8, Non Firm Point-to-Point revenue that will be credited on customer bill by PJM
A21: 4a | C21: Revenues from Grandfathered Interzonal Transactions | E21: =DEO!E21+DEK!E21 -> 0 | G21: =G$19 -> TP | H21: 0.964692468 | J21: =H21*E21 -> 0 | O21: Line 4 supported by schedules.
A22: 4b | C22: Revenues from service provided by ISO at a discount | E22: =DEO!E22+DEK!E22 -> 0 | G22: TP | H22: 0.964692468 | J22: =H22*E22 -> 0 | O22: Line 5 supported by schedules.
A23: 5a | C23: Legacy MTEP Credit (Appendix C, page 2, line 3, col. 12) | E23: ='Appx C - DEOK(MTEP)'!X88 -> 2662477.657 | H23: 1 | J23: =H23*E23 -> 2662477.657
A24: 5b | C24: Firm PTP Revenue Credit Adjustment (Appendix E, line 10, col. 3) | E24: =DEO!E24+DEK!E24 -> -1025212.245 | H24: 1 | J24: =H24*E24 -> -1025212.245
C25: Corrections Related to Prior Years | E25: 0 | H25: 1 | J25: =H25*E25 -> 0
A26: 6 | C26: TOTAL REVENUE CREDITS (sum lines 2-5b) | J26: =SUM(J19:J24) -> 2784479.625
A29: 7 | C29: NET REVENUE REQUIREMENT | D29: (line 1 minus line 6) | J29: =J15-J26 -> 81729172.33 | O29: =DEO!J32/'DE Ohio & Kentucky'!J33 -> 0.8346288379
O30: =+O29*J29 -> 68213524.12
C32: DIVISOR
A33: 8 | C33: 1 CP (Note A) | J33: =MAX(PeakKW_DEOK) -> 5146000 | O33: Line 8 supported with monthly CP and associated net energy.
A34: 9 | C34: 12 CP (Note B) | J34: =DEO!J33+DEK!J33 -> 4357833
A36: 10 | C36: Reserved
A37: 11 | C37: Reserved
A38: 12 | C38: Reserved
A39: 13 | C39: Reserved
A40: 14 | C40: Reserved
A42: 15 | C42: Annual Cost ($/kW/Yr) - 1 CP | D42: (line 7 / line 8) | E42: =IF(J33>0,J29/J33,0) -> 15.88207779
A44: 16 | C44: Annual Cost ($/kW/Yr) - 12 CP | D44: (line 7 / line 9) | E44: =IF(J34>0,J29/J34,0) -> 18.75454436
A46: 17 | C46: Network Rate ($/kW/Mo) | D46: (line 15 / 12) | E46: =ROUND(E42/12,9) -> 1.323506483
A48: 17a | C48: Point-To-Point Rate ($/kW/Mo) | D48: (line 16 / 12) | E48: =ROUND($E$44/12,9) -> 1.562878697
E50: Peak Rate | J50: Off-Peak Rate
A52: 18 | C52: Point-To-Point Rate ($/kW/Wk) | D52: (line 16 / 52; line 16 / 52) | E52: =ROUND($E$44/52,9) -> 0.360664315
A54: 19 | C54: Point-To-Point Rate ($/kW/Day) | D54: (line 16 / 260; line 16 / 365) | E54: =ROUND($E$44/260,9) -> 0.072132863 | F54: Capped at weekly rate | J54: =ROUND($E$44/365,9) -> 0.051382313
A56: 20 | C56: Point-To-Point Rate ($/MWh) | D56: (line 16 / 4,160; line 16 / 8,760 * 1000) | E56: =IF(ISERR(ROUND(($J$29/$J$34)/4160,4))=TRUE,0,ROUND(($J$29/$J$34)/4160,4)) -> 0.0045 | F56: Capped at weekly and daily rate | J56: =IF(ISERR(ROUND(($J$29/$J$34)/8760*1000,4)=TRUE),0,ROUND(($J$29/$J$34)/8760*1000,4)) -> 2.1409
J58: Attachment H-22A
J59: page 2 of 6
C64: Formula Rate - Non-Levelized | J64: =J7 -> For the 12 months ended: 12/31/2013
A65: =A8 -> Rate Formula Template
A66: Utilizing FERC Form 1 Data
A68: =$A$11 -> DUKE ENERGY OHIO AND DUKE ENERGY KENTUCKY (DEOK)
C70: (1) | D70: (2) | E70: (3) | H70: (4) | J70: (5)
A71: Line | D71: Form No. 1 | J71: Transmission
A72: No. | C72: RATE BASE: | D72: Page, Line, Col. | E72: Company Total | G72: Allocator | J72: (Col. 3 times Col. 4)
C75: GROSS PLANT IN SERVICE
A76: 1 | C76: Production | D76: 205.46.g | E76: =DEO!E75+DEK!E75 -> 4272260362 | G76: NA
A77: 2 | C77: Transmission | D77: 207.58.g | E77: =DEO!E76+DEK!E76 -> 709106552 | G77: TP | H77: =J207 -> 0.964692468 | J77: =H77*E77 -> 684069749.7
A78: 3 | C78: Distribution | D78: 207.75.g | E78: =DEO!E77+DEK!E77 -> 2500428108 | G78: NA
A79: 4 | C79: General & Intangible | D79: 205.5.g & 207.99.g | E79: =DEO!E78+DEK!E78 -> 256697727 | G79: W/S | H79: =J225 -> 0.03374219528 | J79: =H79*E79 -> 8661544.831
A80: 5 | C80: Common | D80: 356.1 | E80: =DEO!E79+DEK!E79 -> 270374070 | G80: CE | H80: =L229 -> 0.02798507556 | J80: =H80*E80 -> 7566438.778
A81: 6 | C81: TOTAL GROSS PLANT (sum lines 1-5) | E81: =SUM(E76:E80) -> 8008866819 | G81: GP= | H81: =IF(J81>0,J81/E81,0) -> 0.087440302 | J81: =SUM(J76:J80) -> 700297733.3
C83: ACCUMULATED DEPRECIATION
A84: 7 | C84: Production | D84: 219.20-24.c | E84: =DEO!E83+DEK!E83 -> 1765405481 | G84: =G76 -> NA
A85: 8 | C85: Transmission | D85: 219.25.c | E85: =DEO!E84+DEK!E84 -> 252686076 | G85: TP | H85: 0.964692468 | J85: =H85*E85 -> 243764354.3
A86: 9 | C86: Distribution | D86: 219.26.c | E86: =DEO!E85+DEK!E85 -> 828269105 | G86: NA
A87: 10 | C87: General & Intangible | D87: 219.28.c | E87: =DEO!E86+DEK!E86 -> 114530778 | G87: W/S | H87: 0.03374219528 | J87: =H87*E87 -> 3864519.876
A88: 11 | C88: Common | D88: 356.1 | E88: =DEO!E87+DEK!E87 -> 120931347 | G88: CE | H88: 0.02798507556 | J88: =H88*E88 -> 3384272.883
A89: 12 | C89: TOTAL ACCUM. DEPRECIATION (sum lines 7-11) | E89: =SUM(E84:E88) -> 3081822787 | J89: =SUM(J84:J88) -> 251013147.1
C91: NET PLANT IN SERVICE
A92: 13 | C92: Production | D92: (line 1 - line 7) | E92: =E76-E84 -> 2506854881
A93: 14 | C93: Transmission | D93: (line 2 - line 8) | E93: =E77-E85 -> 456420476 | J93: =J77-J85 -> 440305395.4
A94: 15 | C94: Distribution | D94: (line 3 - line 9) | E94: =E78-E86 -> 1672159003
A95: 16 | C95: General & Intangible | D95: (line 4 - line 10) | E95: =E79-E87 -> 142166949 | J95: =J79-J87 -> 4797024.955
A96: 17 | C96: Common | D96: (line 5 - line 11) | E96: =E80-E88 -> 149442723 | J96: =J80-J88 -> 4182165.895
A97: 18 | C97: TOTAL NET PLANT (sum lines 13-17) | E97: =SUM(E92:E96) -> 4927044032 | G97: NP= | H97: =IF(J97>0,J97/E97,0) -> 0.09118745101 | J97: =SUM(J92:J96) -> 449284586.3
C99: ADJUSTMENTS TO RATE BASE (Note F)
A100: 19 | C100: Account No. 281 (enter negative) | D100: 273.8.k | E100: =DEO!E99+DEK!E99 -> -87010074 | G100: =G84 -> NA | H100: zero | J100: 0
A101: 20 | C101: Account No. 282 (enter negative) | D101: 275.2.k | E101: =DEO!E100+DEK!E100 -> -1215631035 | G101: NP | H101: =H97 -> 0.09118745101 | J101: =E101*H101 -> -110850295.5
A102: 21 | C102: Account No. 283 (enter negative) | D102: 277.9.k | E102: =DEO!E101+DEK!E101 -> -88083206 | G102: NP | H102: =H101 -> 0.09118745101 | J102: =E102*H102 -> -8032083.032
A103: 22 | C103: Account No. 190 | D103: 234.8.c | E103: =DEO!E102+DEK!E102 -> 132939268 | G103: =G102 -> NP | H103: =H102 -> 0.09118745101 | J103: =E103*H103 -> 12122392.99
A104: 23 | C104: Account No. 255 (enter negative) | D104: 267.8.h | E104: =DEO!E103+DEK!E103 -> 0 | G104: NP | H104: =H102 -> 0.09118745101 | J104: =E104*H104 -> 0
A105: 24 | C105: TOTAL ADJUSTMENTS (sum lines 19 - 23) | E105: =SUM(E100:E104) -> -1257785047 | J105: =SUM(J100:J104) -> -106759985.5
A107: 25 | C107: LAND HELD FOR FUTURE USE (Note G) | D107: 214.x.d | E107: =DEO!E106+DEK!E106 -> 121217 | H107: 1 | J107: =H107*E107 -> 121217
C109: WORKING CAPITAL (Note H)
A110: 26 | C110: CWC | D110: calculated | E110: =DEO!E109+DEK!E109 -> 20415851 | J110: =J148/8 -> 1766295.875
A111: 27 | C111: Materials & Supplies (Note G) | D111: 227.8.c & 277.16.c | E111: =DEO!E110+DEK!E110 -> 9997460 | G111: TE | H111: =J217 -> 0.9262586144 | J111: =H111*E111 -> 9260233.447
A112: 28 | C112: Prepayments (Account 165) | D112: 111.57.c | E112: =DEO!E111+DEK!E111 -> 35789576 | G112: GP | H112: =H81 -> 0.087440302 | J112: =H112*E112 -> 3129451.334
A113: 29 | C113: TOTAL WORKING CAPITAL (sum lines 26 - 28) | E113: =E110+E111+E112 -> 66202887 | J113: =J110+J111+J112 -> 14155980.66
A115: 30 | C115: RATE BASE (sum lines 18, 24, 25, & 29) | E115: =E113+E107+E105+E97 -> 3735583089 | J115: =J113+J107+J105+J97 -> 356801798.5
J118: Attachment H-22A
J119: page 3 of 6
C124: Formula Rate - Non-Levelized | J124: =J7 -> For the 12 months ended: 12/31/2013
A125: =A8 -> Rate Formula Template
A126: Utilizing FERC Form 1 Data
A128: =$A$11 -> DUKE ENERGY OHIO AND DUKE ENERGY KENTUCKY (DEOK)
C130: (1) | D130: (2) | E130: (3) | H130: (4) | J130: (5)
A131: Line | D131: Form No. 1 | J131: Transmission
A132: No. | D132: Page, Line, Col. | E132: Company Total | G132: Allocator | J132: (Col. 3 times Col. 4)
C134: O&M
A135: 1 | C135: Transmission | D135: 321.112.b | E135: =DEO!E134+DEK!E134 -> 35353827 | G135: TE | H135: =J217 -> 0.9262586144 | J135: =ROUND(H135*E135,0) -> 32746787
A136: 1a | C136: Less LSE Expenses included in Transmission O&M Accounts (Note V) | D136: 321.88.b, 92.b; 322.121.b | E136: =DEO!E135+DEK!E135 -> 15434390 | H136: 1 | J136: =ROUND(H136*E136,0) -> 15434390
A137: 1b | C137: Less Midwest ISO Exit Fees included in Transmission O&M | D137: (Note X) | E137: =DEO!E136+DEK!E136 -> 0 | G137: TE | H137: =J$217 -> 0.9262586144 | J137: =ROUND(H137*E137,0) -> 0
A138: 2 | C138: Less Account 565 | D138: 321.96.b | E138: =DEO!E137+DEK!E137 -> 8986849 | G138: TE | H138: =J$217 -> 0.9262586144 | J138: =ROUND(H138*E138,0) -> 8324146
A139: 3 | C139: A&G | D139: 323.197.b | E139: =DEO!E138+DEK!E138 -> 153820763 | G139: W/S | H139: =$J$225 -> 0.03374219528 | J139: 5190250
A140: 3a | C140: Less Actual PBOP Expense | D140: (Note E) | E140: =DEO!E139+DEK!E139 -> 1773609 | G140: W/S | H140: 0.03374219528 | J140: 59845
A141: 3b | C141: Plus Fixed PBOP Expense | D141: (Note E) | E141: =DEO!E140+DEK!E140 -> 2918402 | G141: W/S | H141: 0.03374219528 | J141: 98473
A142: 3c | C142: Less PJM Integration Costs included in A&G | D142: (Note Y) | E142: =DEO!E141+DEK!E141 -> 0 | G142: W/S | H142: 0.03374219528 | J142: 0
A143: 4 | C143: Less FERC Annual Fees | D143: 350.14.b | E143: =DEO!E142+DEK!E142 -> 0 | G143: W/S | H143: 0.03374219528 | J143: 0
A144: 5 | C144: Less EPRI & Reg. Comm. Exp. & Non-safety Advertising (Note I) | E144: =DEO!E143+DEK!E143 -> 2571331 | G144: W/S | H144: 0.03374219528 | J144: 86762
A145: 5a | C145: Plus Transmission Related Reg. Comm. Exp. (Note I) | E145: =DEO!E144+DEK!E144 -> 0 | G145: =G135 -> TE | H145: =H135 -> 0.9262586144 | J145: 0
A146: 6 | C146: Common | D146: =D88 -> 356.1 | E146: =DEO!E145+DEK!E145 -> 0 | G146: CE | H146: =H88 -> 0.02798507556 | J146: 0
A147: 7 | C147: Transmission Lease Payments | E147: =DEO!E146+DEK!E146 -> 0 | H147: 1 | J147: 0
A148: 8 | C148: TOTAL O&M (sum lines 1, 2a, 3, 5a, 6, 7 less lines 1a, 2, 4, 5) | E148: =E135-E136-E137-E138+E139-E140+E141-E142-E143-E144+E145+E146+E147 -> 163326813 | J148: =J135-J136-J137-J138+J139-J140+J141-J142-J143-J144+J145+J146+J147 -> 14130367
C150: DEPRECIATION EXPENSE
A151: 9 | C151: Transmission | D151: 336.7.b | E151: =DEO!E150+DEK!E150 -> 12695227 | G151: TP | H151: =J207 -> 0.964692468 | J151: =ROUND(H151*E151,0) -> 12246990
A152: 10 | C152: General | D152: 336.10.b | E152: =DEO!E151+DEK!E151 -> 21259734 | G152: W/S | H152: =$J$225 -> 0.03374219528 | J152: =ROUND(H152*E152,0) -> 717350
A153: 11 | C153: Common | D153: 336.11.b | E153: =DEO!E152+DEK!E152 -> 13664730 | G153: CE | H153: =H146 -> 0.02798507556 | J153: 382409
A154: 12 | C154: TOTAL DEPRECIATION (Sum lines 9 - 11) | E154: =SUM(E151:E153) -> 47619691 | J154: =SUM(J151:J153) -> 13346749
C156: TAXES OTHER THAN INCOME TAXES (Note J)
C157: LABOR RELATED
A158: 13 | C158: Payroll | D158: 263.i | E158: =DEO!E157+DEK!E157 -> 10977180 | G158: W/S | H158: =$J$225 -> 0.03374219528 | J158: =ROUND(H158*E158,0) -> 370394
A159: 14 | C159: Highway and vehicle | D159: =D158 -> 263.i | E159: =DEO!E158+DEK!E158 -> 19751 | G159: W/S | H159: =$J$225 -> 0.03374219528 | J159: =ROUND(H159*E159,0) -> 666
A160: 15 | C160: PLANT RELATED
A161: 16 | C161: Property | D161: 263.i | E161: =DEO!E160+DEK!E160 -> 110139454 | G161: GP | H161: =H81 -> 0.087440302 | J161: =ROUND(H161*E161,0) -> 9630627
A162: 17 | C162: Gross Receipts | D162: 263.i | E162: =DEO!E161+DEK!E161 -> 4505259 | G162: =G100 -> NA | H162: zero | J162: 0
A163: 18 | C163: Other | D163: =D162 -> 263.i | E163: =DEO!E162+DEK!E162 -> 0 | G163: =G161 -> GP | H163: =H161 -> 0.087440302 | J163: =ROUND(H163*E163,0) -> 0
A164: 19 | C164: Payments in lieu of taxes | E164: =DEO!E163+DEK!E163 -> 0 | G164: GP | H164: =H161 -> 0.087440302 | J164: 0
A165: 20 | C165: TOTAL OTHER TAXES (sum lines 13 - 19) | E165: =E158+E159+E161+E162+E163+E164 -> 125641644 | J165: =J158+J159+J161+J162+J163+J164 -> 10001687
C168: INCOME TAXES (Note K)
A169: 21 | C169: T=1 - {[(1 - SIT) * (1 - FIT)] / (1 - SIT * FIT * p)} = | E169: =IF(E304>0,1-(((1-E305)*(1-E304))/(1-E305*E304*E306)),0) -> 0.35182
A170: 22 | C170: CIT=(T/1-T) * (1-(WCLTD/R)) = | E170: =IF(J249>0,(E169/(1-E169))*(1-J246/J249),0) -> 0.4537125843
C171: where WCLTD=(page 4, line 27) and R= (page 4, line 30)
C172: and FIT, SIT & p are as given in footnote K.
A173: 23 | C173: 1 / (1 - T) = (from line 21) | E173: =IF(E169>0,1/(1-E169),0) -> 1.542781326
A174: 24 | C174: Amortized Investment Tax Credit | D174: 266.8.f (enter negative) | E174: =DEO!E173+DEK!E173 -> -440384
A176: 25 | C176: Income Tax Calculation (line 22 * line 28) | E176: =E170*E180 -> 153895199.8 | G176: NA | J176: =E170*J180 -> 14699200.18
A177: 26 | C177: ITC adjustment (line 23 * line 24) | E177: =E173*E174 -> -679416.2115 | G177: NP | H177: =H97 -> 0.09118745101 | J177: =H177*E177 -> -61954.23251
A178: 27 | C178: Total Income Taxes | D178: (line 25 plus line 26) | E178: =E176+E177 -> 153215783.6 | J178: =J176+J177 -> 14637245.95
A180: 28 | C180: RETURN | E180: =ROUND($J249*E115,0) -> 339190944 | G180: NA | J180: =ROUND($J249*J115,0) -> 32397603
C181: [ Rate Base (page 2, line 30) * Rate of Return (page 4, line 30)]
A183: 29 | C183: REV. REQUIREMENT (sum lines 8, 12, 20, 27, 28) | E183: =E180+E178+E165+E154+E148 -> 828994875.6 | J183: =J180+J178+J165+J154+J148 -> 84513651.95
J187: Attachment H-22A
J188: page 4 of 6
C193: Formula Rate - Non-Levelized | J193: =J7 -> For the 12 months ended: 12/31/2013
A194: =A8 -> Rate Formula Template
A195: Utilizing FERC Form 1 Data
A197: =$A$11 -> DUKE ENERGY OHIO AND DUKE ENERGY KENTUCKY (DEOK)
A198: SUPPORTING CALCULATIONS AND NOTES
A199: Line
A200: No. | C200: TRANSMISSION PLANT INCLUDED IN ISO RATES
A202: 1 | C202: Total transmission plant (page 2, line 2, column 3) | J202: =E77 -> 709106552
A203: 2 | C203: Less transmission plant excluded from ISO rates (Note M) | J203: =DEO!J202+DEK!J202 -> 0
A204: 3 | C204: Less transmission plant included in OATT Ancillary Services (Note N) | J204: =DEO!J203+DEK!J203 -> 25036802.26
A205: 4 | C205: Transmission plant included in ISO Rates (line 1 less lines 2 & 3) | J205: =J202-J203-J204 -> 684069749.7
A207: 5 | C207: Percentage of transmission plant included in ISO Rates (line 4 divided by line 1) | I207: TP= | J207: =IF(J202>0,J205/J202,0) -> 0.964692468
C209: TRANSMISSION EXPENSES
A211: 6 | C211: Total transmission expenses (page 3, line 1, column 3) | J211: =E135 -> 35353827
A212: 7 | C212: Less transmission expenses included in OATT Ancillary Services (Note L) | J212: =DEO!J211+DEK!J211 -> 1408515 | N212: Acct 561.1 - 561.3, 561.BA included in Line 7?
A213: 8 | C213: Included transmission expenses (line 6 less line 7) | J213: =J211-J212 -> 33945312 | N213: Acct 561.BA for Schedule 24
N214: Acct 561.1 - 561.3 available for Schedule 1
A215: 9 | C215: Percentage of transmission expenses after adjustment (line 8 divided by line 6) | J215: =IF(J211>0,J213/J211,0) -> 0.9601594758 | N215: Revenue Credits for Sched 1 Acct 561.1 - 561.3
A216: 10 | C216: Percentage of transmission plant included in ISO Rates (line 5) | I216: TP | J216: =J207 -> 0.964692468 | N216: transactions <1 yr
A217: 11 | C217: Percentage of transmission expenses included in ISO Rates (line 9 times line 10) | I217: TE= | J217: =J216*J215 -> 0.9262586144 | N217: non-firm
N218: transactions w/ load not in divisor
C219: WAGES & SALARY ALLOCATOR (W&S) | N219: total Revenue Credits
D220: Form 1 Reference | E220: $ | F220: TP | H220: Allocation | N220: Net Schedule 1 Expenses (Acct 561.1 - 561.3 minus Credits)
A221: 12 | C221: Production | D221: 354.20.b | E221: =DEO!E220+DEK!E220 -> 63902666 | F221: 0 | H221: =E221*F221 -> 0
A222: 13 | C222: Transmission | D222: 354.21.b | E222: =DEO!E221+DEK!E221 -> 4131237 | F222: =J207 -> 0.964692468 | H222: =E222*F222 -> 3985373.218
A223: 14 | C223: Distribution | D223: 354.23.b | E223: =DEO!E222+DEK!E222 -> 31295891 | F223: 0 | H223: =E223*F223 -> 0 | J223: W&S Allocator
A224: 15 | C224: Other | D224: 354.24,25,26.b | E224: =DEO!E223+DEK!E223 -> 18782652 | F224: 0 | H224: =E224*F224 -> 0 | J224: ($ / Allocation)
A225: 16 | C225: Total (sum lines 12-15) | E225: =SUM(E221:E224) -> 118112446 | H225: =SUM(H221:H224) -> 3985373.218 | I225: = | J225: =IF(H225>0,H225/E225,0) -> 0.03374219528 | K225: = | L225: WS
C227: COMMON PLANT ALLOCATOR (CE) (Note O) | H227: % Electric | J227: =J223 -> W&S Allocator
E228: $ | H228: (line 17 / line 20) | J228: (line 16) | L228: CE
A229: 17 | C229: Electric | D229: 200.3.c | E229: =DEO!E228+DEK!E228 -> 6894483114 | H229: =IF(E232>0,E229/E232,0) -> 0.8293792188 | I229: * | J229: =J225 -> 0.03374219528 | K229: = | L229: =J229*H229 -> 0.02798507556
A230: 18 | C230: Gas | D230: 201.3.d | E230: =DEO!E229+DEK!E229 -> 1418340451
A231: 19 | C231: Water | D231: 201.3.e | E231: =DEO!E230+DEK!E230 -> 0
A232: 20 | C232: Total (sum lines 17 - 19) | E232: =E229+E230+E231 -> 8312823565
C234: RETURN (R) | J234: $
A235: 21 | D235: Long Term Interest (117, sum of 62.c through 67.c) | J235: =DEO!J234+DEK!J234 -> 84296499
A237: 22 | D237: Preferred Dividends (118.29c) (positive number) | J237: =DEO!J236+DEK!J236 -> 0
C239: Development of Common Stock:
A240: 23 | D240: Proprietary Capital (112.16.c) | J240: =DEO!J239+DEK!J239 -> 3941509258
A241: 24 | D241: Less Preferred Stock (line 28) | J241: =DEO!J240+DEK!J240 -> 0
A242: 25 | D242: Less Account 216.1 (112.12.c) (enter negative) | J242: =+DEO!J241+DEK!J241 -> -472780021
A243: 26 | D243: Common Stock (sum lines 23-25) | J243: =J240+J241+J242 -> 3468729237
D245: (Note P) | E245: $ | F245: % | H245: Cost | J245: Weighted
A246: 27 | C246: Long Term Debt (112, sum of 18.c through 21.c) | E246: =DEO!E245+DEK!E245 -> 2191842381 | F246: =IF($E$249>0,E246/$E$249,0) -> 0.3872121985 | H246: =IF(E246>0,J235/E246,0) -> 0.03845919749 | J246: =ROUND(H246*F246,4) -> 0.0149 | K246: =WCLTD
A247: 28 | C247: Preferred Stock (112.3.c) | E247: =DEO!E246+DEK!E246 -> 0 | F247: =IF($E$249>0,E247/$E$249,0) -> 0 | H247: =IF(E247>0,J237/E247,0) -> 0 | J247: =ROUND(H247*F247,4) -> 0
A248: 29 | C248: Common Stock (line 26) | E248: =J243 -> 3468729237 | F248: =IF($E$249>0,E248/$E$249,0) -> 0.6127878015 | H248: =ROE -> 0.1238 | J248: =ROUND(H248*F248,4) -> 0.0759
A249: 30 | C249: Total (sum lines 27-29) | E249: =E248+E247+E246 -> 5660571618 | J249: =SUM(J246:J248) -> 0.0908 | K249: =R
C252: REVENUE CREDITS
J253: Load
C254: ACCOUNT 447 (SALES FOR RESALE) (Note Q) | E254: (310-311)
A255: 31 | C255: a. Bundled Non-RQ Sales for Resale (311.x.h) | J255: =DEO!J254+DEK!J254 -> 0
A256: 32 | C256: b. Bundled Sales for Resale included in Divisor on page 1 | J256: =DEO!J255+DEK!J255 -> 0
A257: 33 | C257: Total of (a)-(b) | J257: =J255-J256 -> 0
A259: 34 | C259: ACCOUNT 454 (RENT FROM ELECTRIC PROPERTY) (Note R) | J259: =DEO!J258+DEK!J258 -> 181444
A261: 35 | C261: ACCOUNT 456.1 (OTHER ELECTRIC REVENUES) (Note U) | E261: (330.x.n) | J261: =DEO!J260+DEK!J260 -> 1007758
J263: Attachment H-22A
J264: page 5 of 6
C269: Formula Rate - Non-Levelized | J269: =$J$7 -> For the 12 months ended: 12/31/2013
A270: =$A$8 -> Rate Formula Template
A271: Utilizing FERC Form 1 Data
A273: =$A$11 -> DUKE ENERGY OHIO AND DUKE ENERGY KENTUCKY (DEOK)
C275: General Note: References to pages in this formulary rate are indicated as: (page#, line#, col.#)
A276: Note | C276: References to data from FERC Form 1 are indicated as: #.y.x (page, line, column)
A277: Letter
A278: A | C278: DEOK 1 CP is Duke Energy Ohio ("DEO") Monthly Firm Transmission System Peak Load as reported on page 400, column b of Form 1 at the time of DEO's annual peak,
C279: plus load served by Duke Energy Kentucky at Longbranch. For years ending 12/31/2010 and 12/31/2011, this sum will be reduced by the amount of distribution load served by
... 62 more rows

Sheet DEO
J1: Attachment H-22A
J2: page 1 of 6
C7: Formula Rate - Non-Levelized | J7: ='DE Ohio & Kentucky'!J7 -> For the 12 months ended: 12/31/2013
A8: ='DE Ohio & Kentucky'!A8 -> Rate Formula Template
A9: Utilizing FERC Form 1 Data
A11: DUKE ENERGY OHIO
A13: Line | J13: Allocated
A14: No. | J14: Amount
A15: 1 | C15: GROSS REVENUE REQUIREMENT (page 3, line 29) | J15: =J182 -> 81752520.14
C18: REVENUE CREDITS (Note T) | E18: Total | G18: Allocator
A19: 2 | C19: Account No. 454 | D19: ='DE Ohio & Kentucky'!D19 -> (page 4, line 34) | E19: =J258 -> 163190 | G19: TP | H19: =J$206 -> 0.9796115025 | J19: =H19*E19 -> 159862.8011
A20: 3 | C20: Account No. 456.1 | D20: ='DE Ohio & Kentucky'!D20 -> (page 4, line 35) | E20: =J260 -> 939109 | G20: =G$19 -> TP | H20: 0.9796115025 | J20: =H20*E20 -> 919961.9785
A21: 4a | C21: Revenues from Grandfathered Interzonal Transactions | E21: 0 | G21: =G$19 -> TP | H21: 0.9796115025 | J21: =H21*E21 -> 0 | N21: Line 4 supported by schedules.
A22: 4b | C22: Revenues from service provided by ISO at a discount | E22: 0 | G22: TP | H22: 0.9796115025 | J22: =H22*E22 -> 0 | N22: Line 5 supported by schedules.
A23: 5a | C23: Legacy MTEP Credit (Appendix C, page 2, line 3, col. 12) | E23: ='Appx C - DEO(MTEP)'!X88 -> 2702345.959 | H23: 1 | J23: 2702345.959
A24: 5b | C24: Firm PTP Revenue Credit Adjustment (Appendix E, line 10, col. 3) | E24: ='Appx E'!G36 -> -1025212.245 | H24: 1 | J24: =H24*E24 -> -1025212.245
A25: 6 | C25: TOTAL REVENUE CREDITS (sum lines 2-5b) | J25: =SUM(J19:J24) -> 2756958.494
A28: 7 | C28: NET REVENUE REQUIREMENT | D28: ='DE Ohio & Kentucky'!D29 -> (line 1 minus line 6) | J28: =J15-J25 -> 78995561.64
C31: DIVISOR
A32: 8 | C32: 1 CP (Note A) | J32: =MAX(PeakKW_DEO) -> 4295000 | N32: Line 8 supported with monthly CP and associated net energy.
A33: 9 | C33: 12 CP (Note B) | J33: ='Partner KW'!O18 -> 3638833
A35: 10 | C35: Reserved
A36: 11 | C36: Reserved
A37: 12 | C37: Reserved
A38: 13 | C38: Reserved
A39: 14 | C39: Reserved
A41: 15 | C41: Annual Cost ($/kW/Yr) - 1 CP | D41: ='DE Ohio & Kentucky'!D42 -> (line 7 / line 8) | E41: =IF(J32>0,J28/J32,9) -> 18.39244741
A43: 16 | C43: Annual Cost ($/kW/Yr) - 12 CP | D43: ='DE Ohio & Kentucky'!D44 -> (line 7 / line 9) | E43: =IF(J33>0,J28/J33,9) -> 21.70903739
A45: 17 | C45: Network Rate ($/kW/Mo) | D45: ='DE Ohio & Kentucky'!D46 -> (line 15 / 12) | E45: =ROUND(E41/12,9) -> 1.532703951
A47: 17a | C47: Point-To-Point Rate ($/kW/Mo) | D47: ='DE Ohio & Kentucky'!D48 -> (line 16 / 12) | E47: =ROUND($E$43/12,9) -> 1.809086449
E49: Peak Rate | J49: Off-Peak Rate
A51: 18 | C51: Point-To-Point Rate ($/kW/Wk) | D51: ='DE Ohio & Kentucky'!D52 -> (line 16 / 52; line 16 / 52) | E51: =ROUND($E$43/52,9) -> 0.417481488
A53: 19 | C53: Point-To-Point Rate ($/kW/Day) | D53: ='DE Ohio & Kentucky'!D54 -> (line 16 / 260; line 16 / 365) | E53: =ROUND($E$43/260,9) -> 0.083496298 | F53: Capped at weekly rate | J53: =ROUND($E$43/365,9) -> 0.059476815
A55: 20 | C55: Point-To-Point Rate ($/MWh) | D55: ='DE Ohio & Kentucky'!D56 -> (line 16 / 4,160; line 16 / 8,760 * 1000) | E55: =ROUND(($J$28/$J$33)/4160,4) -> 0.0052 | F55: Capped at weekly and daily rate | J55: =ROUND(($J$28/$J$33)/8760*1000,4) -> 2.4782
J57: Attachment H-22A
J58: page 2 of 6
C63: Formula Rate - Non-Levelized | J63: =J7 -> For the 12 months ended: 12/31/2013
A64: =A8 -> Rate Formula Template
A65: Utilizing FERC Form 1 Data
A67: DUKE ENERGY OHIO
C69: (1) | D69: (2) | E69: (3) | H69: (4) | J69: (5)
A70: Line | D70: Form No. 1 | J70: Transmission
A71: No. | C71: RATE BASE: | D71: Page, Line, Col. | E71: Company Total | G71: Allocator | J71: (Col. 3 times Col. 4)
C74: GROSS PLANT IN SERVICE
A75: 1 | C75: Production | D75: ='DE Ohio & Kentucky'!D76 -> 205.46.g | E75: =INPUT!C9 -> 3465019849 | G75: NA
A76: 2 | C76: Transmission | D76: ='DE Ohio & Kentucky'!D77 -> 207.58.g | E76: =INPUT!C10 -> 665074281 | G76: TP | H76: =J206 -> 0.9796115025 | J76: =ROUND(H76*E76,0) -> 651514416
A77: 3 | C77: Distribution | D77: ='DE Ohio & Kentucky'!D78 -> 207.75.g | E77: =INPUT!C11 -> 2118397113 | G77: NA
A78: 4 | C78: General & Intangible | D78: ='DE Ohio & Kentucky'!D79 -> 205.5.g & 207.99.g | E78: =INPUT!C12 -> 245447036 | G78: W/S | H78: =J224 -> 0.03478478411 | J78: =ROUND(H78*E78,0) -> 8537822
A79: 5 | C79: Common | D79: ='DE Ohio & Kentucky'!D80 -> 356.1 | E79: =INPUT!C13 -> 239971862 | G79: CE | H79: =L228 -> 0.02927659592 | J79: 7025559
A80: 6 | C80: TOTAL GROSS PLANT (sum lines 1-5) | E80: =SUM(E75:E79) -> 6733910141 | G80: GP= | H80: =IF(J80>0,J80/E80,0) -> 0.09906247381 | J80: =SUM(J75:J79) -> 667077797
C82: ACCUMULATED DEPRECIATION
A83: 7 | C83: Production | D83: ='DE Ohio & Kentucky'!D84 -> 219.20-24.c | E83: =INPUT!C17 -> 1303134293 | G83: =G75 -> NA
A84: 8 | C84: Transmission | D84: ='DE Ohio & Kentucky'!D85 -> 219.25.c | E84: =INPUT!C18 -> 234993182 | G84: TP | H84: 0.9796115025 | J84: =ROUND(H84*E84,0) -> 230202024
A85: 9 | C85: Distribution | D85: ='DE Ohio & Kentucky'!D86 -> 219.26.c | E85: =INPUT!C19 -> 681054969 | G85: NA
A86: 10 | C86: General & Intangible | D86: ='DE Ohio & Kentucky'!D87 -> 219.28.c | E86: =INPUT!C20 -> 108521565 | G86: W/S | H86: 0.03478478411 | J86: =ROUND(H86*E86,0) -> 3774899
A87: 11 | C87: Common | D87: ='DE Ohio & Kentucky'!D88 -> 356.1 | E87: =INPUT!C21 -> 97689983 | G87: CE | H87: 0.02927659592 | J87: 2860030
A88: 12 | C88: TOTAL ACCUM. DEPRECIATION (sum lines 7-11) | E88: =SUM(E83:E87) -> 2425393992 | J88: =SUM(J83:J87) -> 236836953
C90: NET PLANT IN SERVICE
A91: 13 | C91: Production | D91: ='DE Ohio & Kentucky'!D92 -> (line 1 - line 7) | E91: =E75-E83 -> 2161885556
A92: 14 | C92: Transmission | D92: ='DE Ohio & Kentucky'!D93 -> (line 2 - line 8) | E92: =E76-E84 -> 430081099 | J92: =J76-J84 -> 421312392
A93: 15 | C93: Distribution | D93: ='DE Ohio & Kentucky'!D94 -> (line 3 - line 9) | E93: =E77-E85 -> 1437342144
A94: 16 | C94: General & Intangible | D94: ='DE Ohio & Kentucky'!D95 -> (line 4 - line 10) | E94: =E78-E86 -> 136925471 | J94: =J78-J86 -> 4762923
A95: 17 | C95: Common | D95: ='DE Ohio & Kentucky'!D96 -> (line 5 - line 11) | E95: =E79-E87 -> 142281879 | J95: =J79-J87 -> 4165529
A96: 18 | C96: TOTAL NET PLANT (sum lines 13-17) | E96: =SUM(E91:E95) -> 4308516149 | G96: NP= | H96: =IF(J96>0,J96/E96,0) -> 0.09985824101 | J96: =SUM(J91:J95) -> 430240844
C98: ADJUSTMENTS TO RATE BASE (Note F)
A99: 19 | C99: Account No. 281 (enter negative) | D99: ='DE Ohio & Kentucky'!D100 -> 273.8.k | E99: =INPUT!C33 -> -86615578 | G99: =G83 -> NA | H99: zero | J99: 0
A100: 20 | C100: Account No. 282 (enter negative) | D100: ='DE Ohio & Kentucky'!D101 -> 275.2.k | E100: =INPUT!C34 -> -1035945559 | G100: NP | H100: =H96 -> 0.09985824101 | J100: =ROUND(H100*E100,0) -> -103447701
A101: 21 | C101: Account No. 283 (enter negative) | D101: ='DE Ohio & Kentucky'!D102 -> 277.9.k | E101: =INPUT!C35 -> -92278087 | G101: NP | H101: =H100 -> 0.09985824101 | J101: =ROUND(H101*E101,0) -> -9214727
A102: 22 | C102: Account No. 190 | D102: ='DE Ohio & Kentucky'!D103 -> 234.8.c | E102: =INPUT!C36 -> 139113973 | G102: =G101 -> NP | H102: =H101 -> 0.09985824101 | J102: 13891677
A103: 23 | C103: Account No. 255 (enter negative) | D103: ='DE Ohio & Kentucky'!D104 -> 267.8.h | E103: =INPUT!C37 -> 0 | G103: NP | H103: =H101 -> 0.09985824101 | J103: 0
A104: 24 | C104: TOTAL ADJUSTMENTS (sum lines 19 - 23) | E104: =SUM(E99:E103) -> -1075725251 | J104: =SUM(J99:J103) -> -98770751
A106: 25 | C106: LAND HELD FOR FUTURE USE (Note G) | D106: ='DE Ohio & Kentucky'!D107 -> 214.x.d | E106: =INPUT!C40 -> 121217 | H106: 1 | J106: =ROUND(H106*E106,0) -> 121217
C108: WORKING CAPITAL (Note H)
A109: 26 | C109: CWC | D109: ='DE Ohio & Kentucky'!D110 -> calculated | E109: =ROUND(E147/8,0) -> 17659057 | J109: =ROUND(J147/8,0) -> 1580799
A110: 27 | C110: Materials & Supplies (Note G) | D110: ='DE Ohio & Kentucky'!D111 -> 227.8.c & 277.16.c | E110: =INPUT!C44 -> 9966887 | G110: TE | H110: =J216 -> 0.9324859247 | J110: =ROUND(H110*E110,0) -> 9293982
A111: 28 | C111: Prepayments (Account 165) | D111: ='DE Ohio & Kentucky'!D112 -> 111.57.c | E111: =INPUT!C45 -> 34113864 | G111: GP | H111: =H80 -> 0.09906247381 | J111: =ROUND(H111*E111,0) -> 3379404
A112: 29 | C112: TOTAL WORKING CAPITAL (sum lines 26 - 28) | E112: =E109+E110+E111 -> 61739808 | J112: =J109+J110+J111 -> 14254185
A114: 30 | C114: RATE BASE (sum lines 18, 24, 25, & 29) | E114: =E112+E106+E104+E96 -> 3294651923 | J114: =J112+J106+J104+J96 -> 345845495
J117: Attachment H-22A
J118: page 3 of 6
C123: Formula Rate - Non-Levelized | J123: =J7 -> For the 12 months ended: 12/31/2013
A124: =A8 -> Rate Formula Template
A125: Utilizing FERC Form 1 Data
A127: DUKE ENERGY OHIO
C129: (1) | D129: (2) | E129: (3) | H129: (4) | J129: (5)
A130: Line | D130: Form No. 1 | J130: Transmission
A131: No. | D131: Page, Line, Col. | E131: Company Total | G131: Allocator | J131: (Col. 3 times Col. 4)
C133: O&M
A134: 1 | C134: Transmission | D134: ='DE Ohio & Kentucky'!D135 -> 321.112.b | E134: =INPUT!C51 -> 25124061 | G134: TE | H134: =J216 -> 0.9324859247 | J134: =ROUND(H134*E134,0) -> 23427833
A135: 1a | C135: Less LSE Expenses included in Transmission O&M Accounts (Note V) | D135: ='DE Ohio & Kentucky'!D136 -> 321.88.b, 92.b; 322.121.b | E135: =INPUT!C52 -> 15316689 | H135: 1 | J135: =ROUND(H135*E135,0) -> 15316689
A136: 1b | C136: Less Midwest ISO Exit Fees included in Transmission O&M | D136: ='DE Ohio & Kentucky'!D137 -> (Note X) | E136: =INPUT!C53 -> 0 | G136: TE | H136: =J$216 -> 0.9324859247 | J136: =ROUND(H136*E136,0) -> 0
A137: 2 | C137: Less Account 565 | D137: ='DE Ohio & Kentucky'!D138 -> 321.96.b | E137: =INPUT!C54 -> 42038 | G137: TE | H137: =J$216 -> 0.9324859247 | J137: =ROUND(H137*E137,0) -> 39200
A138: 3 | C138: A&G | D138: ='DE Ohio & Kentucky'!D139 -> 323.197.b | E138: ='P3 Schedule 1 Charges acct 561'!C17 -> 132266115 | G138: W/S | H138: =$J$224 -> 0.03478478411 | J138: 4600848
A139: 3a | C139: Less Actual PBOP Expense | D139: ='DE Ohio & Kentucky'!D140 -> (Note E) | E139: =INPUT!C56 -> 1225300 | G139: W/S | H139: 0.03478478411 | J139: 42622
A140: 3b | C140: Plus Fixed PBOP Expense | D140: ='DE Ohio & Kentucky'!D141 -> (Note E) | E140: =INPUT!C57 -> 2342494 | G140: W/S | H140: 0.03478478411 | J140: 81483
A141: 3c | C141: Less PJM Integration Costs included in A&G | D141: ='DE Ohio & Kentucky'!D142 -> (Note Y) | E141: =INPUT!C58 -> 0 | G141: W/S | H141: 0.03478478411 | J141: 0
A142: 4 | C142: Less FERC Annual Fees | D142: 350.14.b | E142: =INPUT!C59 -> 0 | G142: =G138 -> W/S | H142: 0.03478478411 | J142: 0
A143: 5 | C143: Less EPRI & Reg. Comm. Exp. & Non-safety Advertising (Note I) | E143: =INPUT!C60 -> 1876185 | G143: =G142 -> W/S | H143: 0.03478478411 | J143: 65263
A144: 5a | C144: Plus Transmission Related Reg. Comm. Exp. (Note I) | E144: =INPUT!C61 -> 0 | G144: =G134 -> TE | H144: =H134 -> 0.9324859247 | J144: 0
A145: 6 | C145: Common | D145: ='DE Ohio & Kentucky'!D146 -> 356.1 | E145: =INPUT!C62 -> 0 | G145: CE | H145: =H87 -> 0.02927659592 | J145: 0
A146: 7 | C146: Transmission Lease Payments | E146: =INPUT!C63 -> 0 | H146: 1 | J146: 0
A147: 8 | C147: TOTAL O&M (sum lines 1, 2a, 3, 5a, 6, 7 less lines 1a, 2, 4, 5) | E147: =E134-E135-E136-E137+E138-E139+E140-E141-E142-E143+E144+E145+E146 -> 141272458 | J147: =J134-J135-J136-J137+J138-J139+J140-J141-J142-J143+J144+J145+J146 -> 12646390
C149: DEPRECIATION EXPENSE
A150: 9 | C150: Transmission | D150: ='DE Ohio & Kentucky'!D151 -> 336.7.b | E150: =INPUT!C67 -> 11845312 | G150: TP | H150: =J206 -> 0.9796115025 | J150: =ROUND(H150*E150,0) -> 11603804
A151: 10 | C151: General | D151: ='DE Ohio & Kentucky'!D152 -> 336.10.b | E151: =INPUT!C68 -> 20133182 | G151: W/S | H151: =$J$224 -> 0.03478478411 | J151: =ROUND(H151*E151,0) -> 700328
A152: 11 | C152: Common | D152: ='DE Ohio & Kentucky'!D153 -> 336.11.b | E152: =INPUT!C69 -> 11646132 | G152: CE | H152: =H145 -> 0.02927659592 | J152: 340959
A153: 12 | C153: TOTAL DEPRECIATION (Sum lines 9 - 11) | E153: =SUM(E150:E152) -> 43624626 | J153: =SUM(J150:J152) -> 12645091
C155: TAXES OTHER THAN INCOME TAXES (Note J)
C156: LABOR RELATED
A157: 13 | C157: Payroll | D157: 263.i. 4, 5, 12 | E157: =INPUT!C74 -> 9022646 | G157: W/S | H157: =$J$224 -> 0.03478478411 | J157: =ROUND(H157*E157,0) -> 313851
A158: 14 | C158: Highway and vehicle | D158: 263.i. 6 | E158: =INPUT!C75 -> 16796 | G158: =G157 -> W/S | H158: =$J$224 -> 0.03478478411 | J158: =ROUND(H158*E158,0) -> 584
A159: 15 | C159: PLANT RELATED
A160: 16 | C160: Property | D160: 263.i. 14, 20 | E160: =INPUT!C77 -> 103346700 | G160: GP | H160: =H80 -> 0.09906247381 | J160: =ROUND(H160*E160,0) -> 10237780
A161: 17 | C161: Gross Receipts | D161: 263.i. 22 | E161: =INPUT!C78 -> 4505259 | G161: =G99 -> NA | H161: zero | J161: 0
A162: 18 | C162: Other | D162: 263.i | E162: =INPUT!C79 -> 0 | G162: =G160 -> GP | H162: =H160 -> 0.09906247381 | J162: =ROUND(H162*E162,0) -> 0
A163: 19 | C163: Payments in lieu of taxes | E163: =INPUT!C80 -> 0 | G163: GP | H163: =H160 -> 0.09906247381 | J163: 0
A164: 20 | C164: TOTAL OTHER TAXES (sum lines 13 - 19) | E164: =E157+E158+E160+E161+E162+E163 -> 116891401 | J164: =J157+J158+J160+J161+J162+J163 -> 10552215
C167: INCOME TAXES (Note K)
A168: 21 | C168: T=1 - {[(1 - SIT) * (1 - FIT)] / (1 - SIT * FIT * p)} = | E168: =IF(E303>0,1-(((1-E304)*(1-E303))/(1-E304*E303*E305)),0) -> 0.35
A169: 22 | C169: CIT=(T/1-T) * (1-(WCLTD/R)) = | E169: =IF(J248>0,(E168/(1-E168))*(1-J245/J248),0) -> 0.4558935041
C170: where WCLTD=(page 4, line 27) and R= (page 4, line 30)
C171: and FIT, SIT & p are as given in footnote K.
A172: 23 | C172: 1 / (1 - T) = (from line 21) | E172: =IF(E168>0,1/(1-E168),0) -> 1.538461538
A173: 24 | C173: Amortized Investment Tax Credit | D173: ='DE Ohio & Kentucky'!D174 -> 266.8.f (enter negative) | E173: =INPUT!C90 -> -403726
A175: 25 | C175: Income Tax Calculation (line 22 * line 28) | E175: =E169*E179 -> 137133550.6 | G175: NA | J175: =E169*J179 -> 14395153.78
A176: 26 | C176: ITC adjustment (line 23 * line 24) | E176: =E172*E173 -> -621116.9231 | G176: NP | H176: =H96 -> 0.09985824101 | J176: =H176*E176 -> -62023.6434
A177: 27 | C177: Total Income Taxes | D177: ='DE Ohio & Kentucky'!D178 -> (line 25 plus line 26) | E177: =E175+E176 -> 136512433.7 | J177: =J175+J176 -> 14333130.14
A179: 28 | C179: RETURN | E179: =ROUND($J248*E114,0) -> 300801721 | G179: NA | J179: =ROUND($J248*J114,0) -> 31575694
C180: [ Rate Base (page 2, line 30) * Rate of Return (page 4, line 30)]
A182: 29 | C182: REV. REQUIREMENT (sum lines 8, 12, 20, 27, 28) | E182: =E179+E177+E164+E153+E147 -> 739102639.7 | J182: =J179+J177+J164+J153+J147 -> 81752520.14
J186: Attachment H-22A
J187: page 4 of 6
C192: Formula Rate - Non-Levelized | J192: =J7 -> For the 12 months ended: 12/31/2013
A193: =A8 -> Rate Formula Template
A194: Utilizing FERC Form 1 Data
A196: DUKE ENERGY OHIO
A197: SUPPORTING CALCULATIONS AND NOTES
A198: Line
A199: No. | C199: TRANSMISSION PLANT INCLUDED IN ISO RATES
A201: 1 | C201: Total transmission plant (page 2, line 2, column 3) | J201: =E76 -> 665074281
A202: 2 | C202: Less transmission plant excluded from ISO rates (Note M) | J202: =INPUT!C94 -> 0 | N202: Year End Bulk/Common Split
A203: 3 | C203: Less transmission plant included in OATT Ancillary Services (Note N) | J203: =INPUT!C95 -> 13559865.32
A204: 4 | C204: Transmission plant included in ISO Rates (line 1 less lines 2 & 3) | J204: =J201-J202-J203 -> 651514415.7
A206: 5 | C206: Percentage of transmission plant included in ISO Rates (line 4 divided by line 1) | I206: TP= | J206: =IF(J201>0,J204/J201,0) -> 0.9796115025
C208: TRANSMISSION EXPENSES
N209: Schedule 1A Recoverable Expenses
A210: 6 | C210: Total transmission expenses (page 3, line 1, column 3) | J210: =E134 -> 25124061
A211: 7 | C211: Less transmission expenses included in OATT Ancillary Services (Note L) | J211: ='P3 Schedule 1 Charges acct 561'!C35 -> 1208628 | N211: =J211 -> 1208628 | O211: Acct 561.1 - 561.3, 561.BA included in Line 7?
A212: 8 | C212: Included transmission expenses (line 6 less line 7) | J212: =J210-J211 -> 23915433 | N212: 0 | O212: Acct 561.BA for Schedule 24
N213: =N211-N212 -> 1208628 | O213: Acct 561.1 - 561.3 available for Schedule 1
A214: 9 | C214: Percentage of transmission expenses after adjustment (line 8 divided by line 6) | J214: =IF(J210>0,J212/J210,0) -> 0.9518936051 | O214: Revenue Credits for Sched 1 Acct 561.1 - 561.3
A215: 10 | C215: Percentage of transmission plant included in ISO Rates (line 5) | I215: TP | J215: =J206 -> 0.9796115025 | N215: 0 | O215: transactions <1 yr
A216: 11 | C216: Percentage of transmission expenses included in ISO Rates (line 9 times line 10) | I216: TE= | J216: =J215*J214 -> 0.9324859247 | N216: 0 | O216: non-firm
N217: 0 | O217: transactions w/ load not in divisor
C218: WAGES & SALARY ALLOCATOR (W&S) | N218: =SUM(N215:N217) -> 0 | O218: total Revenue Credits
D219: Form 1 Reference | E219: $ | F219: TP | H219: Allocation | N219: =N213-N218 -> 1208628 | O219: Net Schedule 1 Expenses (Acct 561.1 - 561.3 minus Credits)
A220: 12 | C220: Production | D220: ='DE Ohio & Kentucky'!D221 -> 354.20.b | E220: =INPUT!C104 -> 52203923 | F220: 0 | H220: =E220*F220 -> 0
A221: 13 | C221: Transmission | D221: ='DE Ohio & Kentucky'!D222 -> 354.21.b | E221: =INPUT!C105 -> 3468725 | F221: =J206 -> 0.9796115025 | H221: =E221*F221 -> 3398002.909
A222: 14 | C222: Distribution | D222: ='DE Ohio & Kentucky'!D223 -> 354.23.b | E222: =INPUT!C106 -> 26712409 | F222: 0 | H222: =E222*F222 -> 0 | J222: W&S Allocator
A223: 15 | C223: Other | D223: ='DE Ohio & Kentucky'!D224 -> 354.24,25,26.b | E223: =INPUT!C107 -> 15301417 | F223: 0 | H223: =E223*F223 -> 0 | J223: ($ / Allocation)
A224: 16 | C224: Total (sum lines 12-15) | E224: =SUM(E220:E223) -> 97686474 | H224: =SUM(H220:H223) -> 3398002.909 | I224: = | J224: =IF(H224>0,H224/E224,0) -> 0.03478478411 | K224: = | L224: WS
C226: COMMON PLANT ALLOCATOR (CE) (Note O) | H226: % Electric | J226: =J222 -> W&S Allocator
E227: $ | H227: (line 17 / line 20) | J227: (line 16) | L227: CE
A228: 17 | C228: Electric | D228: ='DE Ohio & Kentucky'!D229 -> 200.3.c | E228: =INPUT!C112 -> 5787117909 | H228: =IF(E231>0,E228/E231,0) -> 0.8416494933 | I228: * | J228: =J224 -> 0.03478478411 | K228: = | L228: =J228*H228 -> 0.02927659592
A229: 18 | C229: Gas | D229: ='DE Ohio & Kentucky'!D230 -> 201.3.d | E229: =INPUT!C113 -> 1088806042
A230: 19 | C230: Water | D230: ='DE Ohio & Kentucky'!D231 -> 201.3.e | E230: =INPUT!C114 -> 0
A231: 20 | C231: Total (sum lines 17 - 19) | E231: =E228+E229+E230 -> 6875923951
C233: RETURN (R) | J233: $
A234: 21 | D234: ='DE Ohio & Kentucky'!D235 -> Long Term Interest (117, sum of 62.c through 67.c) | J234: =INPUT!C118 -> 69358977
A236: 22 | D236: ='DE Ohio & Kentucky'!D237 -> Preferred Dividends (118.29c) (positive number) | J236: =INPUT!C120 -> 0
C238: Development of Common Stock:
A239: 23 | D239: ='DE Ohio & Kentucky'!D240 -> Proprietary Capital (112.16.c) | J239: =INPUT!C123 -> 3563555144
A240: 24 | D240: ='DE Ohio & Kentucky'!D241 -> Less Preferred Stock (line 28) | J240: =INPUT!C124 -> 0
A241: 25 | D241: ='DE Ohio & Kentucky'!D242 -> Less Account 216.1 (112.12.c) (enter negative) | J241: =INPUT!C125 -> -472780021
A242: 26 | D242: ='DE Ohio & Kentucky'!D243 -> Common Stock (sum lines 23-25) | J242: =J239+J240+J241 -> 3090775123
D244: (Note P) | E244: $ | F244: % | H244: Cost | J244: Weighted
A245: 27 | C245: Long Term Debt (112, sum of 18.c through 21.c) | E245: =INPUT!C129 -> 1859270887 | F245: =IF($E$248>0,E245/$E$248,0) -> 0.375606789 | H245: =IF(E245>0,J234/E245,0) -> 0.03730439576 | J245: =ROUND(H245*F245,4) -> 0.014 | K245: =WCLTD
A246: 28 | C246: Preferred Stock (112.3.c) | E246: =INPUT!C130 -> 0 | F246: =IF($E$248>0,E246/$E$248,0) -> 0 | H246: =IF(E246>0,J236/E246,0) -> 0 | J246: =ROUND(H246*F246,4) -> 0
A247: 29 | C247: Common Stock (line 26) | E247: =J242 -> 3090775123 | F247: =IF($E$248>0,E247/$E$248,0) -> 0.624393211 | H247: =ROE -> 0.1238 | J247: =ROUND(H247*F247,4) -> 0.0773
A248: 30 | C248: Total (sum lines 27-29) | E248: =E247+E246+E245 -> 4950046010 | J248: =SUM(J245:J247) -> 0.0913 | K248: =R
C251: REVENUE CREDITS
J252: Load
C253: ACCOUNT 447 (SALES FOR RESALE) (Note Q) | E253: (310-311)
A254: 31 | C254: a. Bundled Non-RQ Sales for Resale (311.x.h) | J254: 0
A255: 32 | C255: b. Bundled Sales for Resale included in Divisor on page 1 | J255: 0
A256: 33 | C256: Total of (a)-(b) | J256: =J254-J255 -> 0
A258: 34 | C258: ACCOUNT 454 (RENT FROM ELECTRIC PROPERTY) (Note R) | J258: =ROUND('P4 Rev Cred Support'!C23,0) -> 163190 | N258: Line 34 supported by notes in Form 1 or detailed Schedule
A260: 35 | C260: ACCOUNT 456.1 (OTHER ELECTRIC REVENUES) (Note U) | E260: (330.x.n) | J260: ='P4 Rev Cred Support'!C49 -> 939109
J262: Attachment H-22A
J263: page 5 of 6
C268: Formula Rate - Non-Levelized | J268: =$J$7 -> For the 12 months ended: 12/31/2013
A269: =$A$8 -> Rate Formula Template
A270: Utilizing FERC Form 1 Data
A272: DUKE ENERGY OHIO
C274: General Note: References to pages in this formulary rate are indicated as: (page#, line#, col.#)
A275: Note | C275: References to data from FERC Form 1 are indicated as: #.y.x (page, line, column)
A276: Letter
A277: A | C277: DEOK 1 CP is Duke Energy Ohio ("DEO") Monthly Firm Transmission System Peak Load as reported on page 400, column b of Form 1 at the time of DEO's annual peak,
C278: plus load served by Duke Energy Kentucky at Longbranch. For years ending 12/31/2010 and 12/31/2011, this sum will be reduced by the amount of distribution load served by
C279: East Kentucky Power Cooperative via Duke Kentucky’s Hebron substation. (1) Excludes demands from grandfathered interzonal transactions and demands from service provided by ISO at a discount.
... 62 more rows

Sheet DEK
J1: Attachment H-22A
J2: page 1 of 6
C7: Formula Rate - Non-Levelized | J7: ='DE Ohio & Kentucky'!J7 -> For the 12 months ended: 12/31/2013
A8: ='DE Ohio & Kentucky'!A8 -> Rate Formula Template
A9: Utilizing FERC Form 1 Data
A11: DUKE ENERGY KENTUCKY
A13: Line | J13: Allocated
A14: No. | J14: Amount
A15: 1 | C15: GROSS REVENUE REQUIREMENT (page 3, line 29) | J15: =J182 -> 4055781.069
C18: REVENUE CREDITS (Note T) | E18: Total | G18: Allocator
A19: 2 | C19: Account No. 454 | D19: ='DE Ohio & Kentucky'!D19 -> (page 4, line 34) | E19: =J258 -> 18254 | G19: TP | H19: =J$206 -> 0.7393516919 | J19: =H19*E19 -> 13496.12578
A20: 3 | C20: Account No. 456.1 | D20: ='DE Ohio & Kentucky'!D20 -> (page 4, line 35) | E20: =J260 -> 68649 | G20: =G$19 -> TP | H20: 0.7393516919 | J20: =H20*E20 -> 50755.75429
A21: 4a | C21: Revenues from Grandfathered Interzonal Transactions | E21: 0 | G21: =G$19 -> TP | H21: 0.7393516919 | J21: =H21*E21 -> 0 | O21: Line 4 supported by schedules.
A22: 4b | C22: Revenues from service provided by ISO at a discount | E22: 0 | G22: TP | H22: 0.7393516919 | J22: =H22*E22 -> 0 | O22: Line 5 supported by schedules.
A23: 5a | C23: Legacy MTEP Credit (Appendix C, page 2, line 3, col. 12) | E23: ='Appx C - DEK(MTEP)'!X88 -> 0 | H23: 1 | J23: 0
A24: 5b | C24: Firm PTP Revenue Credit Adjustment (Appendix E, line 10, col. 3) | E24: 0 | H24: 1 | J24: =H24*E24 -> 0
A25: 6 | C25: TOTAL REVENUE CREDITS (sum lines 2-5b) | J25: =SUM(J19:J24) -> 64251.88008
A28: 7 | C28: NET REVENUE REQUIREMENT | D28: ='DE Ohio & Kentucky'!D29 -> (line 1 minus line 6) | J28: =J15-J25 -> 3991529.189
C31: DIVISOR
A32: 8 | C32: 1 CP (Note A) | J32: =MAX(PeakKW_DEK) -> 858000 | O32: Line 8 supported with monthly CP and associated net energy.
A33: 9 | C33: 12 CP (Note B) | J33: ='Partner KW'!O16 -> 719000
A35: 10 | C35: Reserved
A36: 11 | C36: Reserved
A37: 12 | C37: Reserved
A38: 13 | C38: Reserved
A39: 14 | C39: Reserved
A41: 15 | C41: Annual Cost ($/kW/Yr) - 1 CP | D41: ='DE Ohio & Kentucky'!D42 -> (line 7 / line 8) | E41: =IF(J32>0,J28/J32,9) -> 4.652131922
A43: 16 | C43: Annual Cost ($/kW/Yr) - 12 CP | D43: ='DE Ohio & Kentucky'!D44 -> (line 7 / line 9) | E43: =IF(J33>0,J28/J33,9) -> 5.551500958
A45: 17 | C45: Network Rate ($/kW/Mo) | D45: ='DE Ohio & Kentucky'!D46 -> (line 15 / 12) | E45: =ROUND(E41/12,9) -> 0.38767766
A47: 17a | C47: Point-To-Point Rate ($/kW/Mo) | D47: ='DE Ohio & Kentucky'!D48 -> (line 16 / 12) | E47: =ROUND($E$43/12,9) -> 0.46262508
E49: Peak Rate | J49: Off-Peak Rate
A51: 18 | C51: Point-To-Point Rate ($/kW/Wk) | D51: ='DE Ohio & Kentucky'!D52 -> (line 16 / 52; line 16 / 52) | E51: =ROUND($E$43/52,9) -> 0.106759634
A53: 19 | C53: Point-To-Point Rate ($/kW/Day) | D53: ='DE Ohio & Kentucky'!D54 -> (line 16 / 260; line 16 / 365) | E53: =ROUND($E$43/260,9) -> 0.021351927 | F53: Capped at weekly rate | J53: =ROUND($E$43/365,9) -> 0.015209592
A55: 20 | C55: Point-To-Point Rate ($/MWh) | D55: ='DE Ohio & Kentucky'!D56 -> (line 16 / 4,160; line 16 / 8,760 * 1000) | E55: =ROUND(($J$28/$J$33)/4160,4) -> 0.0013 | F55: Capped at weekly and daily rate | J55: =ROUND(($J$28/$J$33)/8760*1000,4) -> 0.6337
J57: Attachment H-22A
J58: page 2 of 6
C63: Formula Rate - Non-Levelized | J63: =J7 -> For the 12 months ended: 12/31/2013
A64: =A8 -> Rate Formula Template
A65: Utilizing FERC Form 1 Data
A67: DUKE ENERGY KENTUCKY
C69: (1) | D69: (2) | E69: (3) | H69: (4) | J69: (5)
A70: Line | D70: Form No. 1 | J70: Transmission
A71: No. | C71: RATE BASE | D71: Page, Line, Col. | E71: Company Total | G71: Allocator | J71: (Col. 3 times Col. 4)
C74: GROSS PLANT IN SERVICE
A75: 1 | C75: Production | D75: ='DE Ohio & Kentucky'!D76 -> 205.46.g | E75: =INPUT!D9 -> 807240513 | G75: NA
A76: 2 | C76: Transmission | D76: ='DE Ohio & Kentucky'!D77 -> 207.58.g | E76: =INPUT!D10 -> 44032271 | G76: TP | H76: =J206 -> 0.7393516919 | J76: =ROUND(H76*E76,0) -> 32555334
A77: 3 | C77: Distribution | D77: ='DE Ohio & Kentucky'!D78 -> 207.75.g | E77: =INPUT!D11 -> 382030995 | G77: NA
A78: 4 | C78: General & Intangible | D78: ='DE Ohio & Kentucky'!D79 -> 205.5.g & 207.99.g | E78: =INPUT!D12 -> 11250691 | G78: W/S | H78: =J224 -> 0.02398071279 | J78: =ROUND(H78*E78,0) -> 269800
A79: 5 | C79: Common | D79: ='DE Ohio & Kentucky'!D80 -> 356.1 | E79: =INPUT!D13 -> 30402208 | G79: CE | H79: =L228 -> 0.01848104536 | J79: 561865
A80: 6 | C80: TOTAL GROSS PLANT (sum lines 1-5) | E80: =SUM(E75:E79) -> 1274956678 | G80: GP= | H80: =IF(J80>0,J80/E80,0) -> 0.02618677134 | J80: =SUM(J75:J79) -> 33386999
C82: ACCUMULATED DEPRECIATION
A83: 7 | C83: Production | D83: ='DE Ohio & Kentucky'!D84 -> 219.20-24.c | E83: =INPUT!D17 -> 462271188 | G83: =G75 -> NA
A84: 8 | C84: Transmission | D84: ='DE Ohio & Kentucky'!D85 -> 219.25.c | E84: =INPUT!D18 -> 17692894 | G84: TP | H84: 0.7393516919 | J84: =ROUND(H84*E84,0) -> 13081271
A85: 9 | C85: Distribution | D85: ='DE Ohio & Kentucky'!D86 -> 219.26.c | E85: =INPUT!D19 -> 147214136 | G85: NA
A86: 10 | C86: General & Intangible | D86: ='DE Ohio & Kentucky'!D87 -> 219.28.c | E86: =INPUT!D20 -> 6009213 | G86: W/S | H86: 0.02398071279 | J86: =ROUND(H86*E86,0) -> 144105
A87: 11 | C87: Common | D87: ='DE Ohio & Kentucky'!D88 -> 356.1 | E87: =INPUT!D21 -> 23241364 | G87: CE | H87: 0.01848104536 | J87: 429525
A88: 12 | C88: TOTAL ACCUM. DEPRECIATION (sum lines 7-11) | E88: =SUM(E83:E87) -> 656428795 | J88: =SUM(J83:J87) -> 13654901
C90: NET PLANT IN SERVICE
A91: 13 | C91: Production | D91: ='DE Ohio & Kentucky'!D92 -> (line 1 - line 7) | E91: =E75-E83 -> 344969325
A92: 14 | C92: Transmission | D92: ='DE Ohio & Kentucky'!D93 -> (line 2 - line 8) | E92: =E76-E84 -> 26339377 | J92: =J76-J84 -> 19474063
A93: 15 | C93: Distribution | D93: ='DE Ohio & Kentucky'!D94 -> (line 3 - line 9) | E93: =E77-E85 -> 234816859
A94: 16 | C94: General & Intangible | D94: ='DE Ohio & Kentucky'!D95 -> (line 4 - line 10) | E94: =E78-E86 -> 5241478 | J94: =J78-J86 -> 125695
A95: 17 | C95: Common | D95: ='DE Ohio & Kentucky'!D96 -> (line 5 - line 11) | E95: =E79-E87 -> 7160844 | J95: =J79-J87 -> 132340
A96: 18 | C96: TOTAL NET PLANT (sum lines 13-17) | E96: =SUM(E91:E95) -> 618527883 | G96: NP= | H96: =IF(J96>0,J96/E96,0) -> 0.03190171137 | J96: =SUM(J91:J95) -> 19732098
C98: ADJUSTMENTS TO RATE BASE (Note F)
A99: 19 | C99: Account No. 281 (enter negative) | D99: ='DE Ohio & Kentucky'!D100 -> 273.8.k | E99: =INPUT!D33 -> -394496 | G99: =G83 -> NA | H99: zero | J99: 0
A100: 20 | C100: Account No. 282 (enter negative) | D100: ='DE Ohio & Kentucky'!D101 -> 275.2.k | E100: =INPUT!D34 -> -179685476 | G100: NP | H100: =H96 -> 0.03190171137 | J100: =ROUND(H100*E100,0) -> -5732274
A101: 21 | C101: Account No. 283 (enter negative) | D101: ='DE Ohio & Kentucky'!D102 -> 277.9.k | E101: =INPUT!D35 -> 4194881 | G101: NP | H101: =H100 -> 0.03190171137 | J101: =ROUND(H101*E101,0) -> 133824
A102: 22 | C102: Account No. 190 | D102: ='DE Ohio & Kentucky'!D103 -> 234.8.c | E102: =INPUT!D36 -> -6174705 | G102: =G101 -> NP | H102: =H101 -> 0.03190171137 | J102: -196984
A103: 23 | C103: Account No. 255 (enter negative) | D103: ='DE Ohio & Kentucky'!D104 -> 267.8.h | E103: =INPUT!D37 -> 0 | G103: NP | H103: =H101 -> 0.03190171137 | J103: 0
A104: 24 | C104: TOTAL ADJUSTMENTS (sum lines 19 - 23) | E104: =SUM(E99:E103) -> -182059796 | J104: =SUM(J99:J103) -> -5795434
A106: 25 | C106: LAND HELD FOR FUTURE USE (Note G) | D106: ='DE Ohio & Kentucky'!D107 -> 214.x.d | E106: =INPUT!D40 -> 0 | H106: 1 | J106: =ROUND(H106*E106,0) -> 0
C108: WORKING CAPITAL (Note H)
A109: 26 | C109: CWC | D109: ='DE Ohio & Kentucky'!D110 -> calculated | E109: =ROUND(E147/8,0) -> 2756794 | J109: =ROUND(J147/8,0) -> 164332
A110: 27 | C110: Materials & Supplies (Note G) | D110: ='DE Ohio & Kentucky'!D111 -> 227.8.c & 277.16.c | E110: =INPUT!D44 -> 30573 | G110: TE | H110: =J216 -> 0.7249049497 | J110: =ROUND(H110*E110,0) -> 22163
A111: 28 | C111: Prepayments (Account 165) | D111: ='DE Ohio & Kentucky'!D112 -> 111.57.c | E111: =INPUT!D45 -> 1675712 | G111: GP | H111: =H80 -> 0.02618677134 | J111: =ROUND(H111*E111,0) -> 43881
A112: 29 | C112: TOTAL WORKING CAPITAL (sum lines 26 - 28) | E112: =E109+E110+E111 -> 4463079 | J112: =J109+J110+J111 -> 230376
A114: 30 | C114: RATE BASE (sum lines 18, 24, 25, & 29) | E114: =E112+E106+E104+E96 -> 440931166 | J114: =J112+J106+J104+J96 -> 14167040
J117: Attachment H-22A
J118: page 3 of 6
C123: Formula Rate - Non-Levelized | J123: =J7 -> For the 12 months ended: 12/31/2013
A124: =A8 -> Rate Formula Template
A125: Utilizing FERC Form 1 Data
A127: DUKE ENERGY KENTUCKY
C129: (1) | D129: (2) | E129: (3) | H129: (4) | J129: (5)
A130: Line | D130: Form No. 1 | J130: Transmission
A131: No. | D131: Page, Line, Col. | E131: Company Total | G131: Allocator | J131: (Col. 3 times Col. 4)
C133: O&M
A134: 1 | C134: Transmission | D134: ='DE Ohio & Kentucky'!D135 -> 321.112.b | E134: =INPUT!D51 -> 10229766 | G134: TE | H134: =J216 -> 0.7249049497 | J134: =ROUND(H134*E134,0) -> 7415608
A135: 1a | C135: Less LSE Expenses included in Transmission O&M Accounts (Note V) | D135: ='DE Ohio & Kentucky'!D136 -> 321.88.b, 92.b; 322.121.b | E135: =INPUT!D52 -> 117701 | H135: 1 | J135: =ROUND(H135*E135,0) -> 117701
A136: 1b | C136: Less Midwest ISO Exit Fees included in Transmission O&M | D136: ='DE Ohio & Kentucky'!D137 -> (Note X) | E136: =INPUT!D53 -> 0 | G136: TE | H136: =J$216 -> 0.7249049497 | J136: =ROUND(H136*E136,0) -> 0
A137: 2 | C137: Less Account 565 | D137: ='DE Ohio & Kentucky'!D138 -> 321.96.b | E137: =INPUT!D54 -> 8944811 | G137: TE | H137: =J$216 -> 0.7249049497 | J137: =ROUND(H137*E137,0) -> 6484138
A138: 3 | C138: A&G | D138: ='DE Ohio & Kentucky'!D139 -> 323.197.b | E138: ='P3 Schedule 1 Charges acct 561'!D17 -> 21554648 | G138: W/S | H138: =$J$224 -> 0.02398071279 | J138: 516896
A139: 3a | C139: Less Actual PBOP Expense | D139: ='DE Ohio & Kentucky'!D140 -> (Note E) | E139: =INPUT!D56 -> 548309 | G139: W/S | H139: 0.02398071279 | J139: 13149
A140: 3b | C140: Plus Fixed PBOP Expense | D140: ='DE Ohio & Kentucky'!D141 -> (Note E) | E140: =INPUT!D57 -> 575908 | G140: W/S | H140: 0.02398071279 | J140: 13811
A141: 3c | C141: Less PJM Integration Costs included in A&G | D141: ='DE Ohio & Kentucky'!D142 -> (Note Y) | E141: =INPUT!D58 -> 0 | G141: W/S | H141: 0.02398071279 | J141: 0
A142: 4 | C142: Less FERC Annual Fees | D142: 350.14.b | E142: =INPUT!D59 -> 0 | G142: W/S | H142: 0.02398071279 | J142: 0
A143: 5 | C143: Less EPRI & Reg. Comm. Exp. & Non-safety Advertising (Note I) | E143: =INPUT!D60 -> 695146 | G143: W/S | H143: 0.02398071279 | J143: 16670
A144: 5a | C144: Plus Transmission Related Reg. Comm. Exp. (Note I) | E144: =INPUT!D61 -> 0 | G144: =G134 -> TE | H144: =H134 -> 0.7249049497 | J144: 0
A145: 6 | C145: Common | D145: ='DE Ohio & Kentucky'!D146 -> 356.1 | E145: =INPUT!D62 -> 0 | G145: CE | H145: =H87 -> 0.01848104536 | J145: 0
A146: 7 | C146: Transmission Lease Payments | E146: =INPUT!D63 -> 0 | H146: 1 | J146: 0
A147: 8 | C147: TOTAL O&M (sum lines 1, 2a, 3, 5a, 6, 7 less lines 1a, 2, 4, 5) | E147: =E134-E135-E136-E137+E138-E139+E140-E141-E142-E143+E144+E145+E146 -> 22054355 | J147: =J134-J135-J136-J137+J138-J139+J140-J141-J142-J143+J144+J145+J146 -> 1314657
C149: DEPRECIATION EXPENSE
A150: 9 | C150: Transmission | D150: ='DE Ohio & Kentucky'!D151 -> 336.7.b | E150: =INPUT!D67 -> 849915 | G150: TP | H150: =J206 -> 0.7393516919 | J150: =ROUND(H150*E150,0) -> 628386
A151: 10 | C151: General | D151: ='DE Ohio & Kentucky'!D152 -> 336.10.b | E151: =INPUT!D68 -> 1126552 | G151: W/S | H151: =H138 -> 0.02398071279 | J151: =ROUND(H151*E151,0) -> 27016
A152: 11 | C152: Common | D152: ='DE Ohio & Kentucky'!D153 -> 336.11.b | E152: =INPUT!D69 -> 2018598 | G152: CE | H152: =H145 -> 0.01848104536 | J152: 37306
A153: 12 | C153: TOTAL DEPRECIATION (Sum lines 9 - 11) | E153: =SUM(E150:E152) -> 3995065 | J153: =SUM(J150:J152) -> 692708
C155: TAXES OTHER THAN INCOME TAXES (Note J)
C156: LABOR RELATED
A157: 13 | C157: Payroll | D157: 263.i. 6, 7, 13 | E157: =INPUT!D74 -> 1954534 | G157: W/S | H157: =$J$224 -> 0.02398071279 | J157: =ROUND(H157*E157,0) -> 46871
A158: 14 | C158: Highway and vehicle | D158: 263.i. 5 | E158: =INPUT!D75 -> 2955 | G158: W/S | H158: =$J$224 -> 0.02398071279 | J158: =ROUND(H158*E158,0) -> 71
A159: 15 | C159: PLANT RELATED
A160: 16 | C160: Property | D160: 263.i. 14, 22 | E160: =INPUT!D77 -> 6792754 | G160: GP | H160: =H80 -> 0.02618677134 | J160: =ROUND(H160*E160,0) -> 177880
A161: 17 | C161: Gross Receipts | D161: 263.i | E161: =INPUT!D78 -> 0 | G161: =G99 -> NA | H161: zero | J161: 0
A162: 18 | C162: Other | D162: =D161 -> 263.i | E162: =INPUT!D79 -> 0 | G162: =G160 -> GP | H162: =H160 -> 0.02618677134 | J162: =ROUND(H162*E162,0) -> 0
A163: 19 | C163: Payments in lieu of taxes | E163: =INPUT!D80 -> 0 | G163: GP | H163: =H160 -> 0.02618677134 | J163: 0
A164: 20 | C164: TOTAL OTHER TAXES (sum lines 13 - 19) | E164: =E157+E158+E160+E161+E162+E163 -> 8750243 | J164: =J157+J158+J160+J161+J162+J163 -> 224822
C167: INCOME TAXES (Note K)
A168: 21 | C168: T=1 - {[(1 - SIT) * (1 - FIT)] / (1 - SIT * FIT * p)} = | E168: =IF(E303>0,1-(((1-E304)*(1-E303))/(1-E304*E303*E305)),0) -> 0.389
A169: 22 | C169: CIT=(T/1-T) * (1-(WCLTD/R)) = | E169: =IF(J248>0,(E168/(1-E168))*(1-J245/J248),0) -> 0.4828075237
C170: where WCLTD=(page 4, line 27) and R= (page 4, line 30)
C171: and FIT, SIT & p are as given in footnote K.
A172: 23 | C172: 1 / (1 - T) = (from line 21) | E172: =IF(E168>0,1/(1-E168),0) -> 1.636661211
A173: 24 | C173: Amortized Investment Tax Credit | D173: ='DE Ohio & Kentucky'!D174 -> 266.8.f (enter negative) | E173: =INPUT!D90 -> -36658
A175: 25 | C175: Income Tax Calculation (line 22 * line 28) | E175: =E169*E179 -> 18499696.3 | G175: NA | J175: =E169*J179 -> 594392.0674
A176: 26 | C176: ITC adjustment (line 23 * line 24) | E176: =E172*E173 -> -59996.72668 | G176: NP | H176: =H96 -> 0.03190171137 | J176: =H176*E176 -> -1913.998258
A177: 27 | C177: Total Income Taxes | D177: ='DE Ohio & Kentucky'!D178 -> (line 25 plus line 26) | E177: =E175+E176 -> 18439699.57 | J177: =J175+J176 -> 592478.0691
A179: 28 | C179: RETURN | E179: =ROUND($J248*E114,0) -> 38316918 | G179: NA | J179: =ROUND($J248*J114,0) -> 1231116
C180: [ Rate Base (page 2, line 30) * Rate of Return (page 4, line 30)]
A182: 29 | C182: REV. REQUIREMENT (sum lines 8, 12, 20, 27, 28) | E182: =E179+E177+E164+E153+E147 -> 91556280.57 | J182: =J179+J177+J164+J153+J147 -> 4055781.069
J186: Attachment H-22A
J187: page 4 of 6
C192: Formula Rate - Non-Levelized | J192: =J7 -> For the 12 months ended: 12/31/2013
A193: =A8 -> Rate Formula Template
A194: Utilizing FERC Form 1 Data
A196: DUKE ENERGY KENTUCKY
A197: SUPPORTING CALCULATIONS AND NOTES
A198: Line
A199: No. | C199: TRANSMISSION PLANT INCLUDED IN ISO RATES
A201: 1 | C201: Total transmission plant (page 2, line 2, column 3) | J201: =E76 -> 44032271
A202: 2 | C202: Less transmission plant excluded from ISO rates (Note M) | J202: =INPUT!D94 -> 0
A203: 3 | C203: Less transmission plant included in OATT Ancillary Services (Note N) | J203: =INPUT!D95 -> 11476936.94
A204: 4 | C204: Transmission plant included in ISO Rates (line 1 less lines 2 & 3) | J204: =J201-J202-J203 -> 32555334.06
A206: 5 | C206: Percentage of transmission plant included in ISO Rates (line 4 divided by line 1) | I206: TP= | J206: =IF(J201>0,J204/J201,0) -> 0.7393516919
C208: TRANSMISSION EXPENSES
O209: Schedule 1A Recoverable Expenses
A210: 6 | C210: Total transmission expenses (page 3, line 1, column 3) | J210: =E134 -> 10229766
A211: 7 | C211: Less transmission expenses included in OATT Ancillary Services (Note L) | J211: ='P3 Schedule 1 Charges acct 561'!D35 -> 199887 | O211: =J211 -> 199887 | P211: Acct 561.1 - 561.3, 561.BA included in Line 7?
A212: 8 | C212: Included transmission expenses (line 6 less line 7) | J212: =J210-J211 -> 10029879 | O212: 0 | P212: Acct 561.BA for Schedule 24
O213: =O211-O212 -> 199887 | P213: Acct 561.1 - 561.3 available for Schedule 1
A214: 9 | C214: Percentage of transmission expenses after adjustment (line 8 divided by line 6) | J214: =IF(J210>0,J212/J210,0) -> 0.9804602569 | P214: Revenue Credits for Sched 1 Acct 561.1 - 561.3
A215: 10 | C215: Percentage of transmission plant included in ISO Rates (line 5) | I215: TP | J215: =J206 -> 0.7393516919 | O215: 0 | P215: transactions <1 yr
A216: 11 | C216: Percentage of transmission expenses included in ISO Rates (line 9 times line 10) | I216: TE= | J216: =J215*J214 -> 0.7249049497 | O216: 0 | P216: non-firm
O217: 0 | P217: transactions w/ load not in divisor
C218: WAGES & SALARY ALLOCATOR (W&S) | O218: =SUM(O215:O217) -> 0 | P218: total Revenue Credits
D219: Form 1 Reference | E219: $ | F219: TP | H219: Allocation | O219: =O213-O218 -> 199887 | P219: Net Schedule 1 Expenses (Acct 561.1 - 561.3 minus Credits)
A220: 12 | C220: Production | D220: ='DE Ohio & Kentucky'!D221 -> 354.20.b | E220: =INPUT!D104 -> 11698743 | F220: 0 | H220: =E220*F220 -> 0
A221: 13 | C221: Transmission | D221: ='DE Ohio & Kentucky'!D222 -> 354.21.b | E221: =INPUT!D105 -> 662512 | F221: =J206 -> 0.7393516919 | H221: =E221*F221 -> 489829.3681
A222: 14 | C222: Distribution | D222: ='DE Ohio & Kentucky'!D223 -> 354.23.b | E222: =INPUT!D106 -> 4583482 | F222: 0 | H222: =E222*F222 -> 0 | J222: W&S Allocator
A223: 15 | C223: Other | D223: 354.21,22,23.b | E223: =INPUT!D107 -> 3481235 | F223: 0 | H223: =E223*F223 -> 0 | J223: ($ / Allocation)
A224: 16 | C224: Total (sum lines 12-15) | E224: =SUM(E220:E223) -> 20425972 | H224: =SUM(H220:H223) -> 489829.3681 | I224: = | J224: =IF(H224>0,H224/E224,0) -> 0.02398071279 | K224: = | L224: WS
C226: COMMON PLANT ALLOCATOR (CE) | H226: % Electric | J226: =J222 -> W&S Allocator
E227: $ | H227: (line 17 / line 20) | J227: (line 16) | L227: CE
A228: 17 | C228: Electric | D228: ='DE Ohio & Kentucky'!D229 -> 200.3.c | E228: =INPUT!D112 -> 1107365205 | H228: =IF(E231>0,E228/E231,0) -> 0.7706628871 | I228: * | J228: =J224 -> 0.02398071279 | K228: = | L228: =J228*H228 -> 0.01848104536
A229: 18 | C229: Gas | D229: ='DE Ohio & Kentucky'!D230 -> 201.3.d | E229: =INPUT!D113 -> 329534409
A230: 19 | C230: Water | D230: ='DE Ohio & Kentucky'!D231 -> 201.3.e | E230: =INPUT!D114 -> 0
A231: 20 | C231: Total (sum lines 17 - 19) | E231: =E228+E229+E230 -> 1436899614
C233: RETURN (R) | J233: $
A234: 21 | D234: ='DE Ohio & Kentucky'!D235 -> Long Term Interest (117, sum of 62.c through 67.c) | J234: =INPUT!D118 -> 14937522
A236: 22 | D236: ='DE Ohio & Kentucky'!D237 -> Preferred Dividends (118.29c) (positive number) | J236: =INPUT!D120 -> 0
C238: Development of Common Stock:
A239: 23 | D239: ='DE Ohio & Kentucky'!D240 -> Proprietary Capital (112.16.c) | J239: =INPUT!D123 -> 377954114
A240: 24 | D240: ='DE Ohio & Kentucky'!D241 -> Less Preferred Stock (line 28) | J240: =INPUT!D124 -> 0
A241: 25 | D241: ='DE Ohio & Kentucky'!D242 -> Less Account 216.1 (112.12.c) (enter negative) | J241: =INPUT!D125 -> 0
A242: 26 | D242: ='DE Ohio & Kentucky'!D243 -> Common Stock (sum lines 23-25) | J242: =J239+J240+J241 -> 377954114
D244: ='DE Ohio & Kentucky'!D245 -> (Note P) | E244: $ | F244: % | H244: Cost | J244: Weighted
A245: 27 | C245: Long Term Debt (112, sum of 18.c through 21.c) | E245: =INPUT!D129 -> 332571494 | F245: =IF($E$248>0,E245/$E$248,0) -> 0.4680640504 | H245: =IF(E245>0,J234/E245,0) -> 0.04491522055 | J245: =ROUND(H245*F245,4) -> 0.021 | K245: =WCLTD
A246: 28 | C246: Preferred Stock (112.3.c) | E246: =INPUT!D130 -> 0 | F246: =IF($E$248>0,E246/$E$248,0) -> 0 | H246: =IF(E246>0,J236/E246,0) -> 0 | J246: =ROUND(H246*F246,4) -> 0
A247: 29 | C247: Common Stock (line 26) | E247: =J242 -> 377954114 | F247: =IF($E$248>0,E247/$E$248,0) -> 0.5319359496 | H247: =ROE -> 0.1238 | J247: =ROUND(H247*F247,4) -> 0.0659
A248: 30 | C248: Total (sum lines 27-29) | E248: =E247+E246+E245 -> 710525608 | J248: =SUM(J245:J247) -> 0.0869 | K248: =R
C251: REVENUE CREDITS
J252: Load
C253: ACCOUNT 447 (SALES FOR RESALE) (Note Q) | E253: (310-311)
A254: 31 | C254: a. Bundled Non-RQ Sales for Resale (311.x.h) | J254: 0
A255: 32 | C255: b. Bundled Sales for Resale included in Divisor on page 1 | J255: 0
A256: 33 | C256: Total of (a)-(b) | J256: =J254-J255 -> 0
A258: 34 | C258: ACCOUNT 454 (RENT FROM ELECTRIC PROPERTY) (Note R) | J258: =ROUND('P4 Rev Cred Support'!E20,0) -> 18254 | O258: Line 34 supported by notes in Form 1 or detailed Schedule
A260: 35 | C260: ACCOUNT 456.1 (OTHER ELECTRIC REVENUES) (Note U) | E260: (330.x.n) | J260: ='P4 Rev Cred Support'!E49 -> 68649
J262: Attachment H-22A
J263: page 5 of 6
C267: Formula Rate - Non-Levelized
J268: =$J$7 -> For the 12 months ended: 12/31/2013
A269: =$A$8 -> Rate Formula Template
A270: Utilizing FERC Form 1 Data
A272: DUKE ENERGY KENTUCKY
C274: General Note: References to pages in this formulary rate are indicated as: (page#, line#, col.#)
A275: Note | C275: References to data from FERC Form 1 are indicated as: #.y.x (page, line, column)
A276: Letter
A277: A | C277: DEOK 1 CP is Duke Energy Ohio ("DEO") Monthly Firm Transmission System Peak Load as reported on page 400, column b of Form 1 at the time of DEO's annual peak,
C278: plus load served by Duke Energy Kentucky at Longbranch. For years ending 12/31/2010 and 12/31/2011, this sum will be reduced by the amount of distribution load served by
... 64 more rows

Sheet Sch 1A - Appx A
G1: Attachment H-22A
G2: Appendix A
G3: Page 1 of 1
G5: ='DE Ohio & Kentucky'!J7 -> For the 12 months ended: 12/31/2013
A6: Duke Energy Ohio and Duke Energy Kentucky
A7: Transmission Formula Rate Revenue Requirement
A8: Utilizing FERC Form 1 Data
A9: ="For Rates Effective "&TEXT(INPUT!B2,"mmmm d, yyyy") -> For Rates Effective June 1, 2014
A11: Schedule 1A Rate Calculation
B14: Line | G14: Revenue
B15: No. | E15: Source | G15: Requirement
A17: A. | B17: Schedule 1A Annual Revenue Requirements
B18: 1 | D18: Total Load Dispatch & Scheduling (Account 561) | E18: Attachment H-22A, Page 4, Line 7 | G18: ='DE Ohio & Kentucky'!J212 -> 1408515
B20: 2 | D20: Revenue Credits for Schedule 1A - Note A | G20: 123311
B22: 3 | D22: Net Schedule 1A Revenue Requirement for Zone | G22: =G18-G20 -> 1285204
A24: B. | B24: Schedule 1A Rate Calculations
B25: =+B22+1 -> 4 | D25: =TEXT(INPUT!B1,"yyyy")&" Annual MWh - Note B" -> 2013 Annual MWh - Note B | E25: (401a.22b & 24b) | G25: =INPUT!C157+INPUT!C158+INPUT!D157+INPUT!D158 -> 23846378 | H25: MWh
B27: =+B25+1 -> 5 | D27: Schedule 1A rate $/MWh (Line 3 / Line 4) | E27: ="(Line "&B22&" / Line "&B25&")" -> (Line 3 / Line 4) | G27: =+G22/G25 -> 0.053895145 | H27: $/MWh
B31: Note:
B32: A | D32: Revenue received pursuant to PJM Schedule 1A revenue allocation procedures
D33: for transmission service outside of DEOK's zone during the year
D34: used to calculate rates under Attachment H-22A.
B36: B | D36: Load expressed in MWh consistent with load used for billing under Schedule 1A
D37: for the DEOK zone. Data from RTO settlement systems for the
D38: calendar year prior to the rate year

Sheet Appx B - DEOK(RTEP)
I1: Attachment H-22A
I2: Appendix B
I3: Page 1 of 2
I4: ='DE Ohio & Kentucky'!J7 -> For the 12 months ended: 12/31/2013
A6: Rate Formula Template
A7: Utilizing Attachment H-22A Data
A9: Duke Energy Ohio and Duke Energy Kentucky
A10: RTEP - Transmission Enhancement Charges
A12: To be completed in conjunction with Attachment H-22A.
C15: (1) | E15: (2) | G15: (3) | I15: (4)
A17: Line | E17: Attachment H-22A
A18: No. | E18: Page, Line, Col. | G18: Transmission | I18: Allocator
C19: TRANSMISSION PLANT
A20: 1 | C20: Gross Transmission Plant - Total | E20: Sch. H-22A, p 2, line 2 col 5 (Note A) | G20: ='DE Ohio & Kentucky'!J77 -> 684069749.7
A21: 2 | C21: Net Transmission Plant - Total | E21: Sch. H-22A, p 2, line 14 col 5 (Note B) | G21: ='DE Ohio & Kentucky'!J93 -> 440305395.4
C23: O&M EXPENSE
A24: 3 | C24: Total O&M Allocated to Transmission | E24: Sch. H-22A, p 3, line 8 col 5 | G24: ='DE Ohio & Kentucky'!J148 -> 14130367
A25: 4 | C25: Annual Allocation Factor for O&M | E25: (line 3 divided by line 1 col 3) | G25: =IF(G24=0,0,G24/G20) -> 0.02065632489 | I25: =G25 -> 0.02065632489
C27: GENERAL AND COMMON (G&C) DEPRECIATION EXPENSE
A28: 5 | C28: Total G&C Depreciation Expense | E28: Sch. H-22A, p 3, lines 10 & 11, col 5 (Note H) | G28: ='DE Ohio & Kentucky'!J152+'DE Ohio & Kentucky'!J153 -> 1099759
A29: 6 | C29: Annual Allocation Factor for G&C Depreciation Expense | E29: (line 5 divided by line 1 col 3) | G29: =IF(G28=0,0,G28/G20) -> 0.001607670856 | I29: =G29 -> 0.001607670856
C31: TAXES OTHER THAN INCOME TAXES
A32: 7 | C32: Total Other Taxes | E32: Sch. H-22A, p 3, line 20 col 5 | G32: ='DE Ohio & Kentucky'!J165 -> 10001687
A33: 8 | C33: Annual Allocation Factor for Other Taxes | E33: (line 5 divided by line 1 col 3) | G33: =IF(G32=0,0,G32/G20) -> 0.01462085848 | I33: =G33 -> 0.01462085848
A35: 9 | C35: Annual Allocation Factor for Expense | E35: Sum of lines 4, 6 and 8 | I35: =I25+I29+I33 -> 0.03688485423
C37: INCOME TAXES
A38: 10 | C38: Total Income Taxes | E38: Sch. H-22A, p 3, line 27 col 5 | G38: ='DE Ohio & Kentucky'!J178 -> 14637245.95
A39: 11 | C39: Annual Allocation Factor for Income Taxes | E39: (line 8 divided by line 2 col 3) | G39: =IF(G38=0,0,G38/G21) -> 0.03324339448 | I39: =G39 -> 0.03324339448
C41: RETURN
A42: 12 | C42: Return on Rate Base | E42: Sch. H-22A, p 3, line 28 col 5 | G42: ='DE Ohio & Kentucky'!J180 -> 32397603
A43: 13 | C43: Annual Allocation Factor for Return on Rate Base | E43: (line 10 divided by line 2 col 3) | G43: =IF(G42=0,0,G42/G21) -> 0.07357984557 | I43: =G43 -> 0.07357984557
A45: 14 | C45: Annual Allocation Factor for Return | E45: Sum of lines 11 and 13 | I45: =I39+I43 -> 0.10682324
X49: Attachment H-22A
X50: Appendix B
X51: Page 2 of 2
X52: =I4 -> For the 12 months ended: 12/31/2013
K54: =A6 -> Rate Formula Template
K55: =A7 -> Utilizing Attachment H-22A Data
K57: =A9 -> Duke Energy Ohio and Duke Energy Kentucky
K58: =A10 -> RTEP - Transmission Enhancement Charges
K60: Network Upgrade Charge Calculation By Project
M62: -1 | N62: -2 | O62: -3 | P62: -4 | Q62: -5 | R62: -6 | S62: -7 | T62: -8 | U62: -9 | V62: -10 | W62: -11 | X62: -12
K63: Line No. | M63: Project Name | N63: RTEP Project Number | O63: Project Gross Plant | P63: Annual Allocation Factor for Expense | Q63: Annual Expense Charge | R63: Project Net Plant | S63: Annual Allocation Factor for Return | T63: Annual Return Charge | U63: Project Depreciation Expense | V63: Annual Revenue Requirement | W63: True-Up Adjustment | X63: Network Upgrade Charge
O64: (Note C) | P64: (Page 1 line 7) | Q64: (Col. 3 * Col. 4) | R64: (Note D) | S64: (Page 1 line 12) | T64: (Col. 6 * Col. 7) | U64: (Note E) | V64: (Sum Col. 5, 8 & 9) | W64: (Note F) | X64: Sum Col. 10 & 11 (Note G)
K66: 1a | O66: ='Appx B - DEO(RTEP)'!O66 -> 0 | P66: =$I$35 -> 0.03688485423 | Q66: =O66*P66 -> 0 | R66: ='Appx B - DEO(RTEP)'!R66 -> 0 | S66: =$I$45 -> 0.10682324 | T66: =R66*S66 -> 0 | U66: ='Appx B - DEO(RTEP)'!U66 -> 0 | V66: =Q66+T66+U66 -> 0 | W66: ='Appx B - DEO(RTEP)'!W66 -> 0 | X66: =V66+W66 -> 0
K67: 1b | O67: 0 | P67: =$I$35 -> 0.03688485423 | Q67: =O67*P67 -> 0 | R67: 0 | S67: =$I$45 -> 0.10682324 | T67: =R67*S67 -> 0 | U67: 0 | V67: =Q67+T67+U67 -> 0 | W67: 0 | X67: =V67+W67 -> 0
K68: 1c | O68: 0 | P68: =$I$35 -> 0.03688485423 | Q68: =O68*P68 -> 0 | R68: 0 | S68: =$I$45 -> 0.10682324 | T68: =R68*S68 -> 0 | U68: 0 | V68: =Q68+T68+U68 -> 0 | W68: 0 | X68: =V68+W68 -> 0
K86: 2 | M86: Annual Totals | V86: =SUM(V66:V85) -> 0 | W86: =SUM(W66:W85) -> 0 | X86: =SUM(X66:X85) -> 0
K88: 3 | M88: RTEP Transmission Enhancement Charges for Attachment H-22A, Page 1, Line 5c | X88: =X86 -> 0
K91: Note
K92: Letter
K93: A | M93: Gross Transmission Plant is that identified on page 2 line 2 of Attachment H-22A and includes any sub lines 2a or 2b etc. and is inclusive of any CWIP included in rate base when authorized by FERC order.
K94: B | M94: Net Transmission Plant is that identified on page 2 line 14 of Attachment H-22A and includes any sub lines 14a or 14b etc. and is inclusive of any CWIP included in rate base when authorized by FERC order.
K95: C | M95: Project Gross Plant is the total capital investment for the project calculated in the same method as the gross plant value in line 1 and includes CWIP in rate base if applicable. This value includes subsequent capital investments required to maintain the facilities to their original capabilities.
K96: D | M96: Project Net Plant is the Project Gross Plant Identified in Column 3 less the associated Accumulated Depreciation.
K97: E | M97: Project Depreciation Expense is the actual value booked for the project and included in the Depreciation Expense in Attachment H-22A page 3 line 12.
K98: F | M98: True-Up Adjustment is included pursuant to a FERC approved methodology if applicable.
K99: G | M99: The Network Upgrade Charge is the value to be used in Schedule 26.
K100: H | M100: The Total General and Common Depreciation Expense excludes any depreciation expense directly associated with a project and thereby included in page 2 column 9.

Sheet Appx B - DEO(RTEP)
I1: Attachment H-22A
I2: Appendix B
I3: Page 1 of 2
I4: ='DE Ohio & Kentucky'!J7 -> For the 12 months ended: 12/31/2013
A6: Rate Formula Template
A7: Utilizing Attachment H-22A Data
A9: Duke Energy Ohio
A10: RTEP - Transmission Enhancement Charges
A12: To be completed in conjunction with Attachment H-22A.
C15: (1) | E15: (2) | G15: (3) | I15: (4)
A17: Line | E17: Attachment H-22A
A18: No. | E18: Page, Line, Col. | G18: Transmission | I18: Allocator
C19: TRANSMISSION PLANT
A20: 1 | C20: Gross Transmission Plant - Total | E20: Sch. H-22A, p 2, line 2 col 5 (Note A) | G20: =DEO!J76 -> 651514416
A21: 2 | C21: Net Transmission Plant - Total | E21: Sch. H-22A, p 2, line 14 col 5 (Note B) | G21: =DEO!J92 -> 421312392
C23: O&M EXPENSE
A24: 3 | C24: Total O&M Allocated to Transmission | E24: Sch. H-22A, p 3, line 8 col 5 | G24: =DEO!J147 -> 12646390
A25: 4 | C25: Annual Allocation Factor for O&M | E25: (line 3 divided by line 1 col 3) | G25: =IF(G24=0,0,G24/G20) -> 0.01941076005 | I25: =G25 -> 0.01941076005
C27: GENERAL AND COMMON (G&C) DEPRECIATION EXPENSE
A28: 5 | C28: Total G&C Depreciation Expense | E28: Sch. H-22A, p 3, lines 10 & 11, col 5 (Note H) | G28: =DEO!J151+DEO!J152 -> 1041287
A29: 6 | C29: Annual Allocation Factor for G&C Depreciation Expense | E29: (line 5 divided by line 1 col 3) | G29: =IF(G28=0,0,G28/G20) -> 0.001598256269 | I29: =G29 -> 0.001598256269
C31: TAXES OTHER THAN INCOME TAXES
A32: 7 | C32: Total Other Taxes | E32: Sch. H-22A, p 3, line 20 col 5 | G32: =DEO!J164 -> 10552215
A33: 8 | C33: Annual Allocation Factor for Other Taxes | E33: (line 5 divided by line 1 col 3) | G33: =IF(G32=0,0,G32/G20) -> 0.01619644131 | I33: =G33 -> 0.01619644131
A35: 9 | C35: Annual Allocation Factor for Expense | E35: Sum of lines 4, 6 and 8 | I35: =I25+I29+I33 -> 0.03720545763
C37: INCOME TAXES
A38: 10 | C38: Total Income Taxes | E38: Sch. H-22A, p 3, line 27 col 5 | G38: =DEO!J177 -> 14333130.14
A39: 11 | C39: Annual Allocation Factor for Income Taxes | E39: (line 8 divided by line 2 col 3) | G39: =IF(G38=0,0,G38/G21) -> 0.03402019596 | I39: =G39 -> 0.03402019596
C41: RETURN
A42: 12 | C42: Return on Rate Base | E42: Sch. H-22A, p 3, line 28 col 5 | G42: =DEO!J179 -> 31575694
A43: 13 | C43: Annual Allocation Factor for Return on Rate Base | E43: (line 10 divided by line 2 col 3) | G43: =IF(G42=0,0,G42/G21) -> 0.07494603672 | I43: =G43 -> 0.07494603672
A45: 14 | C45: Annual Allocation Factor for Return | E45: Sum of lines 11 and 13 | I45: =I39+I43 -> 0.1089662327
X49: Attachment H-22A
X50: Appendix B
X51: Page 2 of 2
X52: =I4 -> For the 12 months ended: 12/31/2013
K54: =A6 -> Rate Formula Template
K55: =A7 -> Utilizing Attachment H-22A Data
K57: =A9 -> Duke Energy Ohio
K58: =A10 -> RTEP - Transmission Enhancement Charges
K60: Network Upgrade Charge Calculation By Project
M62: -1 | N62: -2 | O62: -3 | P62: -4 | Q62: -5 | R62: -6 | S62: -7 | T62: -8 | U62: -9 | V62: -10 | W62: -11 | X62: -12
K63: Line No. | M63: Project Name | N63: RTEP Project Number | O63: Project Gross Plant | P63: Annual Allocation Factor for Expense | Q63: Annual Expense Charge | R63: Project Net Plant | S63: Annual Allocation Factor for Return | T63: Annual Return Charge | U63: Project Depreciation Expense | V63: Annual Revenue Requirement | W63: True-Up Adjustment | X63: Network Upgrade Charge
O64: (Note C) | P64: (Page 1 line 7) | Q64: (Col. 3 * Col. 4) | R64: (Note D) | S64: (Page 1 line 12) | T64: (Col. 6 * Col. 7) | U64: (Note E) | V64: (Sum Col. 5, 8 & 9) | W64: (Note F) | X64: Sum Col. 10 & 11 (Note G)
K66: 1a | O66: 0 | P66: =$I$35 -> 0.03720545763 | Q66: =O66*P66 -> 0 | R66: 0 | S66: =$I$45 -> 0.1089662327 | T66: =R66*S66 -> 0 | U66: 0 | V66: =Q66+T66+U66 -> 0 | W66: 0 | X66: =V66+W66 -> 0
K67: 1b | O67: 0 | P67: =$I$35 -> 0.03720545763 | Q67: =O67*P67 -> 0 | R67: 0 | S67: =$I$45 -> 0.1089662327 | T67: =R67*S67 -> 0 | U67: 0 | V67: =Q67+T67+U67 -> 0 | W67: 0 | X67: =V67+W67 -> 0
K68: 1c | O68: 0 | P68: =$I$35 -> 0.03720545763 | Q68: =O68*P68 -> 0 | R68: 0 | S68: =$I$45 -> 0.1089662327 | T68: =R68*S68 -> 0 | U68: 0 | V68: =Q68+T68+U68 -> 0 | W68: 0 | X68: =V68+W68 -> 0
K86: 2 | M86: Annual Totals | V86: =SUM(V66:V85) -> 0 | W86: =SUM(W66:W85) -> 0 | X86: =SUM(X66:X85) -> 0
K88: 3 | M88: RTEP Transmission Enhancement Charges for Attachment H-22A, Page 1, Line 5c | X88: =X86 -> 0
K91: Note
K92: Letter
K93: A | M93: Gross Transmission Plant is that identified on page 2 line 2 of Attachment H-22A and includes any sub lines 2a or 2b etc. and is inclusive of any CWIP included in rate base when authorized by FERC order.
K94: B | M94: Net Transmission Plant is that identified on page 2 line 14 of Attachment H-22A and includes any sub lines 14a or 14b etc. and is inclusive of any CWIP included in rate base when authorized by FERC order.
K95: C | M95: Project Gross Plant is the total capital investment for the project calculated in the same method as the gross plant value in line 1 and includes CWIP in rate base if applicable. This value includes subsequent capital investments required to maintain the facilities to their original capabilities.
K96: D | M96: Project Net Plant is the Project Gross Plant Identified in Column 3 less the associated Accumulated Depreciation.
K97: E | M97: Project Depreciation Expense is the actual value booked for the project and included in the Depreciation Expense in Attachment H-22A page 3 line 12.
K98: F | M98: True-Up Adjustment is included pursuant to a FERC approved methodology if applicable.
K99: G | M99: The Network Upgrade Charge is the value to be used in Schedule 26.
K100: H | M100: The Total General and Common Depreciation Expense excludes any depreciation expense directly associated with a project and thereby included in page 2 column 9.

Sheet Appx B - DEK(RTEP)
I1: Attachment H-22A
I2: Appendix B
I3: Page 1 of 2
I4: ='DE Ohio & Kentucky'!J7 -> For the 12 months ended: 12/31/2013
A6: Rate Formula Template
A7: Utilizing Attachment H-22A Data
A9: Duke Energy Kentucky
A10: RTEP - Transmission Enhancement Charges
A12: To be completed in conjunction with Attachment H-22A.
C15: (1) | E15: (2) | G15: (3) | I15: (4)
A17: Line | E17: Attachment H-22A
A18: No. | E18: Page, Line, Col. | G18: Transmission | I18: Allocator
C19: TRANSMISSION PLANT
A20: 1 | C20: Gross Transmission Plant - Total | E20: Sch. H-22A, p 2, line 2 col 5 (Note A) | G20: =DEK!J76 -> 32555334
A21: 2 | C21: Net Transmission Plant - Total | E21: Sch. H-22A, p 2, line 14 col 5 (Note B) | G21: =DEK!J92 -> 19474063
C23: O&M EXPENSE
A24: 3 | C24: Total O&M Allocated to Transmission | E24: Sch. H-22A, p 3, line 8 col 5 | G24: =DEK!J147 -> 1314657
A25: 4 | C25: Annual Allocation Factor for O&M | E25: (line 3 divided by line 1 col 3) | G25: =IF(G24=0,0,G24/G20) -> 0.04038223045 | I25: =G25 -> 0.04038223045
C27: GENERAL AND COMMON (G&C) DEPRECIATION EXPENSE
A28: 5 | C28: Total G&C Depreciation Expense | E28: Sch. H-22A, p 3, lines 10 & 11, col 5 (Note H) | G28: =DEK!J151+DEK!J152 -> 64322
A29: 6 | C29: Annual Allocation Factor for G&C Depreciation Expense | E29: (line 5 divided by line 1 col 3) | G29: =IF(G28=0,0,G28/G20) -> 0.001975774538 | I29: =G29 -> 0.001975774538
C31: TAXES OTHER THAN INCOME TAXES
A32: 7 | C32: Total Other Taxes | E32: Sch. H-22A, p 3, line 20 col 5 | G32: =DEK!J164 -> 224822
A33: 8 | C33: Annual Allocation Factor for Other Taxes | E33: (line 5 divided by line 1 col 3) | G33: =IF(G32=0,0,G32/G20) -> 0.006905842219 | I33: =G33 -> 0.006905842219
A35: 9 | C35: Annual Allocation Factor for Expense | E35: Sum of lines 4, 6 and 8 | I35: =I25+I29+I33 -> 0.04926384721
C37: INCOME TAXES
A38: 10 | C38: Total Income Taxes | E38: Sch. H-22A, p 3, line 27 col 5 | G38: =DEK!J177 -> 592478.0691
A39: 11 | C39: Annual Allocation Factor for Income Taxes | E39: (line 8 divided by line 2 col 3) | G39: =IF(G38=0,0,G38/G21) -> 0.03042395771 | I39: =G39 -> 0.03042395771
C41: RETURN
A42: 12 | C42: Return on Rate Base | E42: Sch. H-22A, p 3, line 28 col 5 | G42: =DEK!J179 -> 1231116
A43: 13 | C43: Annual Allocation Factor for Return on Rate Base | E43: (line 10 divided by line 2 col 3) | G43: =IF(G42=0,0,G42/G21) -> 0.06321824059 | I43: =G43 -> 0.06321824059
A45: 14 | C45: Annual Allocation Factor for Return | E45: Sum of lines 11 and 13 | I45: =I39+I43 -> 0.0936421983
X49: Attachment H-22A
X50: Appendix B
X51: Page 2 of 2
X52: =I4 -> For the 12 months ended: 12/31/2013
K54: =A6 -> Rate Formula Template
K55: =A7 -> Utilizing Attachment H-22A Data
K57: =A9 -> Duke Energy Kentucky
K58: =A10 -> RTEP - Transmission Enhancement Charges
K60: Network Upgrade Charge Calculation By Project
M62: -1 | N62: -2 | O62: -3 | P62: -4 | Q62: -5 | R62: -6 | S62: -7 | T62: -8 | U62: -9 | V62: -10 | W62: -11 | X62: -12
K63: Line No. | M63: Project Name | N63: RTEP Project Number | O63: Project Gross Plant | P63: Annual Allocation Factor for Expense | Q63: Annual Expense Charge | R63: Project Net Plant | S63: Annual Allocation Factor for Return | T63: Annual Return Charge | U63: Project Depreciation Expense | V63: Annual Revenue Requirement | W63: True-Up Adjustment | X63: Network Upgrade Charge
O64: (Note C) | P64: (Page 1 line 7) | Q64: (Col. 3 * Col. 4) | R64: (Note D) | S64: (Page 1 line 12) | T64: (Col. 6 * Col. 7) | U64: (Note E) | V64: (Sum Col. 5, 8 & 9) | W64: (Note F) | X64: Sum Col. 10 & 11 (Note G)
K66: 1a | O66: 0 | P66: =$I$35 -> 0.04926384721 | Q66: =O66*P66 -> 0 | R66: 0 | S66: =$I$45 -> 0.0936421983 | T66: =R66*S66 -> 0 | U66: 0 | V66: =Q66+T66+U66 -> 0 | W66: 0 | X66: =V66+W66 -> 0
K67: 1b | O67: 0 | P67: =$I$35 -> 0.04926384721 | Q67: =O67*P67 -> 0 | R67: 0 | S67: =$I$45 -> 0.0936421983 | T67: =R67*S67 -> 0 | U67: 0 | V67: =Q67+T67+U67 -> 0 | W67: 0 | X67: =V67+W67 -> 0
K68: 1c | O68: 0 | P68: =$I$35 -> 0.04926384721 | Q68: =O68*P68 -> 0 | R68: 0 | S68: =$I$45 -> 0.0936421983 | T68: =R68*S68 -> 0 | U68: 0 | V68: =Q68+T68+U68 -> 0 | W68: 0 | X68: =V68+W68 -> 0
K86: 2 | M86: Annual Totals | V86: =SUM(V66:V85) -> 0 | W86: =SUM(W66:W85) -> 0 | X86: =SUM(X66:X85) -> 0
K88: 3 | M88: RTEP Transmission Enhancement Charges for Attachment H-22A, Page 1, Line 5c | X88: =X86 -> 0
K91: Note
K92: Letter
K93: A | M93: Gross Transmission Plant is that identified on page 2 line 2 of Attachment H-22A and includes any sub lines 2a or 2b etc. and is inclusive of any CWIP included in rate base when authorized by FERC order.
K94: B | M94: Net Transmission Plant is that identified on page 2 line 14 of Attachment H-22A and includes any sub lines 14a or 14b etc. and is inclusive of any CWIP included in rate base when authorized by FERC order.
K95: C | M95: Project Gross Plant is the total capital investment for the project calculated in the same method as the gross plant value in line 1 and includes CWIP in rate base if applicable. This value includes subsequent capital investments required to maintain the facilities to their original capabilities.
K96: D | M96: Project Net Plant is the Project Gross Plant Identified in Column 3 less the associated Accumulated Depreciation.
K97: E | M97: Project Depreciation Expense is the actual value booked for the project and included in the Depreciation Expense in Attachment H-22A page 3 line 12.
K98: F | M98: True-Up Adjustment is included pursuant to a FERC approved methodology if applicable.
K99: G | M99: The Network Upgrade Charge is the value to be used in Schedule 26.
K100: H | M100: The Total General and Common Depreciation Expense excludes any depreciation expense directly associated with a project and thereby included in page 2 column 9.

Sheet Appx C - DEOK(MTEP)
I1: Attachment H-22A
I2: Appendix C
I3: Page 1 of 2
I4: ='DE Ohio & Kentucky'!J7 -> For the 12 months ended: 12/31/2013
A6: Rate Formula Template
A7: Utilizing Attachment H-22A Data
A9: Duke Energy Ohio and Duke Energy Kentucky
A10: Legacy MTEP Credit
A12: To be completed in conjunction with Attachment H-22A.
C15: (1) | E15: (2) | G15: (3) | I15: (4)
A17: Line | E17: Attachment H-22A
A18: No. | E18: Page, Line, Col. | G18: Transmission | I18: Allocator
C19: TRANSMISSION PLANT
A20: 1 | C20: Gross Transmission Plant - Total | E20: Sch. H-22A, p 2, line 2 col 5 (Note A) | G20: ='DE Ohio & Kentucky'!J77 -> 684069749.7
A21: 2 | C21: Net Transmission Plant - Total | E21: Sch. H-22A, p 2, line 14 col 5 (Note B) | G21: ='DE Ohio & Kentucky'!J93 -> 440305395.4
C23: O&M EXPENSE
A24: 3 | C24: Total O&M Allocated to Transmission | E24: Sch. H-22A, p 3, line 8 col 5 | G24: ='DE Ohio & Kentucky'!J148 -> 14130367
A25: 4 | C25: Annual Allocation Factor for O&M | E25: (line 3 divided by line 1 col 3) | G25: =IF(G24=0,0,G24/G20) -> 0.02065632489 | I25: =G25 -> 0.02065632489
C27: GENERAL AND COMMON (G&C) DEPRECIATION EXPENSE
A28: 5 | C28: Total G&C Depreciation Expense | E28: Sch. H-22A, p 3, lines 10 & 11, col 5 (Note H) | G28: ='DE Ohio & Kentucky'!J152+'DE Ohio & Kentucky'!J153 -> 1099759
A29: 6 | C29: Annual Allocation Factor for G&C Depreciation Expense | E29: (line 5 divided by line 1 col 3) | G29: =IF(G28=0,0,G28/G20) -> 0.001607670856 | I29: =G29 -> 0.001607670856
C31: TAXES OTHER THAN INCOME TAXES
A32: 7 | C32: Total Other Taxes | E32: Sch. H-22A, p 3, line 20 col 5 | G32: ='DE Ohio & Kentucky'!J165 -> 10001687
A33: 8 | C33: Annual Allocation Factor for Other Taxes | E33: (line 5 divided by line 1 col 3) | G33: =IF(G32=0,0,G32/G20) -> 0.01462085848 | I33: =G33 -> 0.01462085848
A35: 9 | C35: Annual Allocation Factor for Expense | E35: Sum of lines 4, 6 and 8 | I35: =I25+I29+I33 -> 0.03688485423
C37: INCOME TAXES
A38: 10 | C38: Total Income Taxes | E38: Sch. H-22A, p 3, line 27 col 5 | G38: ='DE Ohio & Kentucky'!J178 -> 14637245.95
A39: 11 | C39: Annual Allocation Factor for Income Taxes | E39: (line 8 divided by line 2 col 3) | G39: =IF(G38=0,0,G38/G21) -> 0.03324339448 | I39: =G39 -> 0.03324339448
C41: RETURN
A42: 12 | C42: Return on Rate Base | E42: Sch. H-22A, p 3, line 28 col 5 | G42: ='DE Ohio & Kentucky'!J180 -> 32397603
A43: 13 | C43: Annual Allocation Factor for Return on Rate Base | E43: (line 10 divided by line 2 col 3) | G43: =IF(G42=0,0,G42/G21) -> 0.07357984557 | I43: =G43 -> 0.07357984557
A45: 14 | C45: Annual Allocation Factor for Return | E45: Sum of lines 11 and 13 | I45: =I39+I43 -> 0.10682324
X49: Attachment H-22A
X50: Appendix C
X51: Page 2 of 2
X52: =I4 -> For the 12 months ended: 12/31/2013
K54: =A6 -> Rate Formula Template
K55: =A7 -> Utilizing Attachment H-22A Data
K57: =A9 -> Duke Energy Ohio and Duke Energy Kentucky
K58: =A10 -> Legacy MTEP Credit
K60: Network Upgrade Charge Calculation By Project
M62: -1 | N62: -2 | O62: -3 | P62: -4 | Q62: -5 | R62: -6 | S62: -7 | T62: -8 | U62: -9 | V62: -10 | W62: -11 | X62: -12
K63: Line No. | M63: Project Name | N63: MTEP Project Number | O63: Project Gross Plant | P63: Annual Allocation Factor for Expense | Q63: Annual Expense Charge | R63: Project Net Plant | S63: Annual Allocation Factor for Return | T63: Annual Return Charge | U63: Project Depreciation Expense | V63: Annual Revenue Requirement | W63: True-Up Adjustment | X63: Network Upgrade Charge
O64: (Note C) | P64: (Page 1 line 7) | Q64: (Col. 3 * Col. 4) | R64: (Note D) | S64: (Page 1 line 12) | T64: (Col. 6 * Col. 7) | U64: (Note E) | V64: (Sum Col. 5, 8 & 9) | W64: (Note F) | X64: Sum Col. 10 & 11 (Note G)
K66: 1a | M66: ='Appx C - DEO(MTEP)'!M66 -> Hillcrest 345 kV | N66: ='Appx C - DEO(MTEP)'!N66 -> 91 | O66: ='Appx C - DEO(MTEP)'!O66 -> 17643147 | P66: =$I$35 -> 0.03688485423 | Q66: =O66*P66 -> 650764.9052 | R66: ='Appx C - DEO(MTEP)'!R66 -> 15964520 | S66: =$I$45 -> 0.10682324 | T66: =R66*S66 -> 1705381.752 | U66: ='Appx C - DEO(MTEP)'!U66 -> 306331 | V66: =Q66+T66+U66 -> 2662477.657 | W66: ='Appx C - DEO(MTEP)'!W66 -> 0 | X66: =V66+W66 -> 2662477.657
K67: 1b | M67: Project 2 | N67: P3 | O67: 0 | P67: =$I$35 -> 0.03688485423 | Q67: =O67*P67 -> 0 | R67: 0 | S67: =$I$45 -> 0.10682324 | T67: =R67*S67 -> 0 | U67: 0 | V67: =Q67+T67+U67 -> 0 | W67: 0 | X67: =V67+W67 -> 0
K68: 1c | M68: Project 3 | N68: P3 | O68: 0 | P68: =$I$35 -> 0.03688485423 | Q68: =O68*P68 -> 0 | R68: 0 | S68: =$I$45 -> 0.10682324 | T68: =R68*S68 -> 0 | U68: 0 | V68: =Q68+T68+U68 -> 0 | W68: 0 | X68: =V68+W68 -> 0
K86: 2 | M86: Annual Totals | V86: =SUM(V66:V85) -> 2662477.657 | W86: =SUM(W66:W85) -> 0 | X86: =SUM(X66:X85) -> 2662477.657
K88: 3 | M88: Legacy MTEP Credit for Attachment H-22A, Page 1, Line 5a | X88: =X86 -> 2662477.657
K91: Note
K92: Letter
K93: A | M93: Gross Transmission Plant is that identified on page 2 line 2 of Attachment H-22A and includes any sub lines 2a or 2b etc. and is inclusive of any CWIP included in rate base when authorized by FERC order.
K94: B | M94: Net Transmission Plant is that identified on page 2 line 14 of Attachment H-22A and includes any sub lines 14a or 14b etc. and is inclusive of any CWIP included in rate base when authorized by FERC order.
K95: C | M95: Project Gross Plant is the total capital investment for the project calculated in the same method as the gross plant value in line 1 and includes CWIP in rate base if applicable. This value includes subsequent capital investments required to maintain the facilities to their original capabilities.
K96: D | M96: Project Net Plant is the Project Gross Plant Identified in Column 3 less the associated Accumulated Depreciation.
K97: E | M97: Project Depreciation Expense is the actual value booked for the project and included in the Depreciation Expense in Attachment H-22A page 3 line 12.
K98: F | M98: True-Up Adjustment is included pursuant to a FERC approved methodology if applicable.
K99: G | M99: The Network Upgrade Charge is the value to be used in Schedule 26.
K100: H | M100: The Total General and Common Depreciation Expense excludes any depreciation expense directly associated with a project and thereby included in page 2 column 9.

Sheet Appx C - DEO(MTEP)
I1: Attachment H-22A
I2: Appendix C
I3: Page 1 of 2
I4: ='DE Ohio & Kentucky'!J7 -> For the 12 months ended: 12/31/2013
A6: Rate Formula Template
A7: Utilizing Attachment H-22A Data
A9: Duke Energy Ohio
A10: Legacy MTEP Credit
A12: To be completed in conjunction with Attachment H-22A.
C15: (1) | E15: (2) | G15: (3) | I15: (4)
A17: Line | E17: Attachment H-22A
A18: No. | E18: Page, Line, Col. | G18: Transmission | I18: Allocator
C19: TRANSMISSION PLANT
A20: 1 | C20: Gross Transmission Plant - Total | E20: Sch. H-22A, p 2, line 2 col 5 (Note A) | G20: =DEO!J76 -> 651514416
A21: 2 | C21: Net Transmission Plant - Total | E21: Sch. H-22A, p 2, line 14 col 5 (Note B) | G21: =DEO!J92 -> 421312392
C23: O&M EXPENSE
A24: 3 | C24: Total O&M Allocated to Transmission | E24: Sch. H-22A, p 3, line 8 col 5 | G24: =DEO!J147 -> 12646390
A25: 4 | C25: Annual Allocation Factor for O&M | E25: (line 3 divided by line 1 col 3) | G25: =IF(G24=0,0,G24/G20) -> 0.01941076005 | I25: =G25 -> 0.01941076005
C27: GENERAL AND COMMON (G&C) DEPRECIATION EXPENSE
A28: 5 | C28: Total G&C Depreciation Expense | E28: Sch. H-22A, p 3, lines 10 & 11, col 5 (Note H) | G28: =DEO!J151+DEO!J152 -> 1041287
A29: 6 | C29: Annual Allocation Factor for G&C Depreciation Expense | E29: (line 5 divided by line 1 col 3) | G29: =IF(G28=0,0,G28/G20) -> 0.001598256269 | I29: =G29 -> 0.001598256269
C31: TAXES OTHER THAN INCOME TAXES
A32: 7 | C32: Total Other Taxes | E32: Sch. H-22A, p 3, line 20 col 5 | G32: =DEO!J164 -> 10552215
A33: 8 | C33: Annual Allocation Factor for Other Taxes | E33: (line 5 divided by line 1 col 3) | G33: =IF(G32=0,0,G32/G20) -> 0.01619644131 | I33: =G33 -> 0.01619644131
A35: 9 | C35: Annual Allocation Factor for Expense | E35: Sum of lines 4, 6 and 8 | I35: =I25+I29+I33 -> 0.03720545763
C37: INCOME TAXES
A38: 10 | C38: Total Income Taxes | E38: Sch. H-22A, p 3, line 27 col 5 | G38: =DEO!J177 -> 14333130.14
A39: 11 | C39: Annual Allocation Factor for Income Taxes | E39: (line 8 divided by line 2 col 3) | G39: =IF(G38=0,0,G38/G21) -> 0.03402019596 | I39: =G39 -> 0.03402019596
C41: RETURN
A42: 12 | C42: Return on Rate Base | E42: Sch. H-22A, p 3, line 28 col 5 | G42: =DEO!J179 -> 31575694
A43: 13 | C43: Annual Allocation Factor for Return on Rate Base | E43: (line 10 divided by line 2 col 3) | G43: =IF(G42=0,0,G42/G21) -> 0.07494603672 | I43: =G43 -> 0.07494603672
A45: 14 | C45: Annual Allocation Factor for Return | E45: Sum of lines 11 and 13 | I45: =I39+I43 -> 0.1089662327
X49: Attachment H-22A
X50: Appendix C
X51: Page 2 of 2
X52: =I4 -> For the 12 months ended: 12/31/2013
K54: =A6 -> Rate Formula Template
K55: =A7 -> Utilizing Attachment H-22A Data
K57: =A9 -> Duke Energy Ohio
K58: =A10 -> Legacy MTEP Credit
K60: Network Upgrade Charge Calculation By Project
M62: -1 | N62: -2 | O62: -3 | P62: -4 | Q62: -5 | R62: -6 | S62: -7 | T62: -8 | U62: -9 | V62: -10 | W62: -11 | X62: -12
K63: Line No. | M63: Project Name | N63: MTEP Project Number | O63: Project Gross Plant | P63: Annual Allocation Factor for Expense | Q63: Annual Expense Charge | R63: Project Net Plant | S63: Annual Allocation Factor for Return | T63: Annual Return Charge | U63: Project Depreciation Expense | V63: Annual Revenue Requirement | W63: True-Up Adjustment | X63: Network Upgrade Charge
O64: (Note C) | P64: (Page 1 line 7) | Q64: (Col. 3 * Col. 4) | R64: (Note D) | S64: (Page 1 line 12) | T64: (Col. 6 * Col. 7) | U64: (Note E) | V64: (Sum Col. 5, 8 & 9) | W64: (Note F) | X64: Sum Col. 10 & 11 (Note G)
K66: 1a | M66: Hillcrest 345 kV | N66: 91 | O66: 17643147 | P66: =$I$35 -> 0.03720545763 | Q66: =O66*P66 -> 656421.3582 | R66: 15964520 | S66: =$I$45 -> 0.1089662327 | T66: =R66*S66 -> 1739593.601 | U66: 306331 | V66: =Q66+T66+U66 -> 2702345.959 | W66: 0 | X66: =V66+W66 -> 2702345.959
K67: 1b | M67: Project 2 | N67: P2 | O67: 0 | P67: =$I$35 -> 0.03720545763 | Q67: =O67*P67 -> 0 | R67: 0 | S67: =$I$45 -> 0.1089662327 | T67: =R67*S67 -> 0 | U67: 0 | V67: =Q67+T67+U67 -> 0 | W67: 0 | X67: =V67+W67 -> 0
K68: 1c | M68: Project 3 | N68: P3 | O68: 0 | P68: =$I$35 -> 0.03720545763 | Q68: =O68*P68 -> 0 | R68: 0 | S68: =$I$45 -> 0.1089662327 | T68: =R68*S68 -> 0 | U68: 0 | V68: =Q68+T68+U68 -> 0 | W68: 0 | X68: =V68+W68 -> 0
K86: 2 | M86: Annual Totals | V86: =SUM(V66:V85) -> 2702345.959 | W86: =SUM(W66:W85) -> 0 | X86: =SUM(X66:X85) -> 2702345.959
K88: 3 | M88: Legacy MTEP Credit for Attachment H-22A, Page 1, Line 5a | X88: =X86 -> 2702345.959
K91: Note
K92: Letter
K93: A | M93: Gross Transmission Plant is that identified on page 2 line 2 of Attachment H-22A and includes any sub lines 2a or 2b etc. and is inclusive of any CWIP included in rate base when authorized by FERC order.
K94: B | M94: Net Transmission Plant is that identified on page 2 line 14 of Attachment H-22A and includes any sub lines 14a or 14b etc. and is inclusive of any CWIP included in rate base when authorized by FERC order.
K95: C | M95: Project Gross Plant is the total capital investment for the project calculated in the same method as the gross plant value in line 1 and includes CWIP in rate base if applicable. This value includes subsequent capital investments required to maintain the facilities to their original capabilities.
K96: D | M96: Project Net Plant is the Project Gross Plant Identified in Column 3 less the associated Accumulated Depreciation.
K97: E | M97: Project Depreciation Expense is the actual value booked for the project and included in the Depreciation Expense in Attachment H-22A page 3 line 12.
K98: F | M98: True-Up Adjustment is included pursuant to a FERC approved methodology if applicable.
K99: G | M99: The Network Upgrade Charge is the value to be used in Schedule 26.
K100: H | M100: The Total General and Common Depreciation Expense excludes any depreciation expense directly associated with a project and thereby included in page 2 column 9.

Sheet Appx C - DEK(MTEP)
I1: Attachment H-22A
I2: Appendix C
I3: Page 1 of 2
I4: ='DE Ohio & Kentucky'!J7 -> For the 12 months ended: 12/31/2013
A6: Rate Formula Template
A7: Utilizing Attachment H-22A Data
A9: Duke Energy Kentucky
A10: Legacy MTEP Credit
A12: To be completed in conjunction with Attachment H-22A.
C15: (1) | E15: (2) | G15: (3) | I15: (4)
A17: Line | E17: Attachment H-22A
A18: No. | E18: Page, Line, Col. | G18: Transmission | I18: Allocator
C19: TRANSMISSION PLANT
A20: 1 | C20: Gross Transmission Plant - Total | E20: Sch. H-22A, p 2, line 2 col 5 (Note A) | G20: =DEK!J76 -> 32555334
A21: 2 | C21: Net Transmission Plant - Total | E21: Sch. H-22A, p 2, line 14 col 5 (Note B) | G21: =DEK!J92 -> 19474063
C23: O&M EXPENSE
A24: 3 | C24: Total O&M Allocated to Transmission | E24: Sch. H-22A, p 3, line 8 col 5 | G24: =DEK!J147 -> 1314657
A25: 4 | C25: Annual Allocation Factor for O&M | E25: (line 3 divided by line 1 col 3) | G25: =IF(G24=0,0,G24/G20) -> 0.04038223045 | I25: =G25 -> 0.04038223045
C27: GENERAL AND COMMON (G&C) DEPRECIATION EXPENSE
A28: 5 | C28: Total G&C Depreciation Expense | E28: Sch. H-22A, p 3, lines 10 & 11, col 5 (Note H) | G28: =DEK!J151+DEK!J152 -> 64322
A29: 6 | C29: Annual Allocation Factor for G&C Depreciation Expense | E29: (line 5 divided by line 1 col 3) | G29: =IF(G28=0,0,G28/G20) -> 0.001975774538 | I29: =G29 -> 0.001975774538
C31: TAXES OTHER THAN INCOME TAXES
A32: 7 | C32: Total Other Taxes | E32: Sch. H-22A, p 3, line 20 col 5 | G32: =DEK!J164 -> 224822
A33: 8 | C33: Annual Allocation Factor for Other Taxes | E33: (line 5 divided by line 1 col 3) | G33: =IF(G32=0,0,G32/G20) -> 0.006905842219 | I33: =G33 -> 0.006905842219
A35: 9 | C35: Annual Allocation Factor for Expense | E35: Sum of lines 4, 6 and 8 | I35: =I25+I29+I33 -> 0.04926384721
C37: INCOME TAXES
A38: 10 | C38: Total Income Taxes | E38: Sch. H-22A, p 3, line 27 col 5 | G38: =DEK!J177 -> 592478.0691
A39: 11 | C39: Annual Allocation Factor for Income Taxes | E39: (line 8 divided by line 2 col 3) | G39: =IF(G38=0,0,G38/G21) -> 0.03042395771 | I39: =G39 -> 0.03042395771
C41: RETURN
A42: 12 | C42: Return on Rate Base | E42: Sch. H-22A, p 3, line 28 col 5 | G42: =DEK!J179 -> 1231116
A43: 13 | C43: Annual Allocation Factor for Return on Rate Base | E43: (line 10 divided by line 2 col 3) | G43: =IF(G42=0,0,G42/G21) -> 0.06321824059 | I43: =G43 -> 0.06321824059
A45: 14 | C45: Annual Allocation Factor for Return | E45: Sum of lines 11 and 13 | I45: =I39+I43 -> 0.0936421983
X49: Attachment H-22A
X50: Appendix C
X51: Page 2 of 2
X52: =I4 -> For the 12 months ended: 12/31/2013
K54: =A6 -> Rate Formula Template
K55: =A7 -> Utilizing Attachment H-22A Data
K57: =A9 -> Duke Energy Kentucky
K58: =A10 -> Legacy MTEP Credit
K60: Network Upgrade Charge Calculation By Project
M62: -1 | N62: -2 | O62: -3 | P62: -4 | Q62: -5 | R62: -6 | S62: -7 | T62: -8 | U62: -9 | V62: -10 | W62: -11 | X62: -12
K63: Line No. | M63: Project Name | N63: MTEP Project Number | O63: Project Gross Plant | P63: Annual Allocation Factor for Expense | Q63: Annual Expense Charge | R63: Project Net Plant | S63: Annual Allocation Factor for Return | T63: Annual Return Charge | U63: Project Depreciation Expense | V63: Annual Revenue Requirement | W63: True-Up Adjustment | X63: Network Upgrade Charge
O64: (Note C) | P64: (Page 1 line 7) | Q64: (Col. 3 * Col. 4) | R64: (Note D) | S64: (Page 1 line 12) | T64: (Col. 6 * Col. 7) | U64: (Note E) | V64: (Sum Col. 5, 8 & 9) | W64: (Note F) | X64: Sum Col. 10 & 11 (Note G)
K66: 1a | M66: Project 1 | N66: P1 | O66: 0 | P66: =$I$35 -> 0.04926384721 | Q66: =O66*P66 -> 0 | R66: 0 | S66: =$I$45 -> 0.0936421983 | T66: =R66*S66 -> 0 | U66: 0 | V66: =Q66+T66+U66 -> 0 | W66: 0 | X66: =V66+W66 -> 0
K67: 1b | M67: Project 2 | N67: P2 | O67: 0 | P67: =$I$35 -> 0.04926384721 | Q67: =O67*P67 -> 0 | R67: 0 | S67: =$I$45 -> 0.0936421983 | T67: =R67*S67 -> 0 | U67: 0 | V67: =Q67+T67+U67 -> 0 | W67: 0 | X67: =V67+W67 -> 0
K68: 1c | M68: Project 3 | N68: P3 | O68: 0 | P68: =$I$35 -> 0.04926384721 | Q68: =O68*P68 -> 0 | R68: 0 | S68: =$I$45 -> 0.0936421983 | T68: =R68*S68 -> 0 | U68: 0 | V68: =Q68+T68+U68 -> 0 | W68: 0 | X68: =V68+W68 -> 0
K86: 2 | M86: Annual Totals | V86: =SUM(V66:V85) -> 0 | W86: =SUM(W66:W85) -> 0 | X86: =SUM(X66:X85) -> 0
K88: 3 | M88: Legacy MTEP Credit for Attachment H-22A, Page 1, Line 5a | X88: =X86 -> 0
K91: Note
K92: Letter
K93: A | M93: Gross Transmission Plant is that identified on page 2 line 2 of Attachment H-22A and includes any sub lines 2a or 2b etc. and is inclusive of any CWIP included in rate base when authorized by FERC order.
K94: B | M94: Net Transmission Plant is that identified on page 2 line 14 of Attachment H-22A and includes any sub lines 14a or 14b etc. and is inclusive of any CWIP included in rate base when authorized by FERC order.
K95: C | M95: Project Gross Plant is the total capital investment for the project calculated in the same method as the gross plant value in line 1 and includes CWIP in rate base if applicable. This value includes subsequent capital investments required to maintain the facilities to their original capabilities.
K96: D | M96: Project Net Plant is the Project Gross Plant Identified in Column 3 less the associated Accumulated Depreciation.
K97: E | M97: Project Depreciation Expense is the actual value booked for the project and included in the Depreciation Expense in Attachment H-22A page 3 line 12.
K98: F | M98: True-Up Adjustment is included pursuant to a FERC approved methodology if applicable.
K99: G | M99: The Network Upgrade Charge is the value to be used in Schedule 26.
K100: H | M100: The Total General and Common Depreciation Expense excludes any depreciation expense directly associated with a project and thereby included in page 2 column 9.

Sheet Appx D DEO
A1: DUKE ENERGY OHIO, INC.
A2: DEPRECIATION RATES
A5: FERC | C5: Company | G5: Actual
A6: Account | C6: Account | G6: Accrual
A7: Number | C7: Number | E7: Description | G7: Rates
A8: (A) | C8: (B) | E8: (C) | G8: (D)
G9: %
A10: Wholly Owned Transmission Plant
A12: 350 | C12: 3403 | E12: Rights of Way | G12: 1.54
A13: 352 | C13: 3420 | E13: Structures & Improvements | G13: 1.9
A14: 352 | C14: 3424 | E14: Structures & Improvements - Duke Ohio - Loc. in Ky. | G14: 1.9
A15: 353 | C15: 3430 | E15: Station Equipment | G15: 1.44
A16: 353 | C16: 3434 | E16: Station Equipment - Duke Ohio - Loc. in Ky. | G16: 1.44
A17: 354 | C17: 3440 | E17: Towers & Fixtures | G17: 1.85
A18: 354 | C18: 3444 | E18: Towers & Fixtures - Duke Ohio - Loc. in Ky. | G18: 1.85
A19: 355 | C19: 3450 | E19: Poles & Fixtures | G19: 2.31
A20: 355 | C20: 3454 | E20: Poles & Fixtures - Duke Ohio - Loc. in Ky. | G20: 2.31
A21: 356 | C21: 3460 | E21: Overhead Conductors & Devices | G21: 1.91
A22: 356 | C22: 3464 | E22: Overhead Conductors & Devices - Duke Ohio - Loc. in Ky. | G22: 1.91
A23: 357 | C23: 3470 | E23: Underground Conduit | G23: 1.43
A24: 358 | C24: 3480 | E24: Underground Conductors & Devices | G24: 2.37
A26: Commonly Owned Transmission Plant - CCD Projects
A28: 352 | C28: 3421 | E28: Structures & Improvements - CCD Projects | G28: 2.5
A29: 352 | C29: 3425 | E29: Structures & Improvements - CCD Projects | G29: 2.5
A30: 353 | C30: 3431 | E30: Station Equipment - CCD Projects | G30: 1.44
A31: 353 | C31: 3432 | E31: Station Equipment - CCD Projects | G31: 1.44
A32: 353 | C32: 3435 | E32: Station Equipment - CCD Projects | G32: 1.44
A33: 353 | C33: 3437 | E33: Station Equipment - CCD Projects | G33: 1.44
A34: 354 | C34: 3441 | E34: Towers & Fixtures - CCD Projects | G34: 3
A35: 354 | C35: 3442 | E35: Towers & Fixtures - CCD Projects | G35: 3
A36: 354 | C36: 3445 | E36: Towers & Fixtures - CCD Projects | G36: 3
A37: 354 | C37: 3446 | E37: Towers & Fixtures - CCD Projects - Loc. In Ky. | G37: 3
A38: 354 | C38: 3448 | E38: Towers & Fixtures - CCD Projects | G38: 3
A39: 355 | C39: 3451 | E39: Poles & Fixtures - CCD Projects | G39: 3
A40: 355 | C40: 3455 | E40: Poles & Fixtures - CCD Projects | G40: 3
A41: 356 | C41: 3461 | E41: Overhead Conductors & Devices - CCD Projects | G41: 2.5
A42: 356 | C42: 3462 | E42: Overhead Conductors & Devices - CCD Projects | G42: 2.5
A43: 356 | C43: 3465 | E43: Overhead Conductors & Devices - CCD Projects | G43: 2.5
A44: 356 | C44: 3466 | E44: Overhead Conductors & Devices - CCD Projects - Loc. In Ky. | G44: 2.5
A46: Commonly Owned Transmission Plant - CD Projects
A48: 352 | C48: 3423 | E48: Structures & Improvements - CD Projects | G48: 2.5
A49: 353 | C49: 3433 | E49: Station Equipment - CD Projects | G49: 1.44
A50: 353 | C50: 3438 | E50: Station Equipment - CD Projects | G50: 1.44
A51: 354 | C51: 3447 | E51: Towers & Fixtures - CD Projects | G51: 3
A52: 356 | C52: 3467 | E52: Overhead Conductors & Devices - CD Projects | G52: 2.5
A54: General and Intangible Plant
A56: 303 | B56: 3030 | C56: 3030 | E56: Miscellaneous Intangible Plant | G56: 20
A57: 389 | B57: 3890 | C57: 3890 | E57: Land and Land Rights | G57: N/A
A58: 390 | B58: 3900 | C58: 3900 | E58: Structures and Improvements | G58: 2.5
A59: 391 | B59: 3910 | C59: 3910 | E59: Office Furniture and Equipment | G59: 5
A60: 391 | B60: 3911 | C60: 3911 | E60: Electronic Data Processing Equipment | G60: 20
A61: 391 | B61: 3920 | C61: 3920 | E61: Transportation Equipment | G61: 8.33
A62: 391 | B62: 3921 | C62: 3921 | E62: Trailers | G62: 4.25
A63: 392 | B63: 3940 | C63: 3940 | E63: Tools, Shop & Garage Equipment | G63: 4
A64: 392 | B64: 3950 | C64: 3950 | E64: Laboratory Equipment | G64: 6.67
A65: 393 | B65: 3960 | C65: 3960 | E65: Power Operated Equipment | G65: 5.88
A66: 393 | B66: 3970 | C66: 3970 | E66: Communication Equipment | G66: 6.67
A67: 394 | B67: 3980 | C67: 3980 | E67: Miscellaneous Equipment | G67: 5

Sheet Appx D DEK
A1: DUKE ENERGY KENTUCKY, INC.
A2: DEPRECIATION RATES
A5: FERC | C5: Company | G5: Actual
A6: Account | C6: Account | G6: Accrual
A7: Number | C7: Number | E7: Description | G7: Rates
A8: (A) | C8: (B) | E8: (C) | G8: (D)
G9: %
A10: Transmission Plant
A12: 350 | C12: 3501 | E12: Rights of Way | G12: 1.48
A13: 352 | C13: 3520 | E13: Structures & Improvements | G13: 0.41
A14: 353 | C14: 3530 | E14: Station Equipment | G14: 2.25
A15: 353 | C15: 3532 | E15: Station Equipment - Major | G15: 2.77
A16: 353 | C16: 3535 | E16: Station Equipment - Electronic | G16: 9.55
A17: 355 | C17: 3550 | E17: Poles & Fixtures | G17: 2.28
A18: 356 | C18: 3560 | E18: Overhead Conductors & Devices | G18: 2.31
A21: General and Intagible Plant
A23: 303 | C23: 3030 | E23: Miscellaneous Intangible Plant | G23: 20
A24: 390 | C24: 3900 | E24: Land and Land Rights | G24: 1.77
A25: 391 | C25: 3910 | E25: Structures and Improvements | G25: 18.56
A26: 392 | C26: 3921 | E26: Electronic Data Processing Equipment | G26: 6.53
A27: 394 | C27: 3940 | E27: Transportation Equipment | G27: 4.14
A28: 397 | C28: 3970 | E28: Stores Equipment | G28: 6.93

Sheet Appx E
A4: Rate Formula Template
A5: Utilizing Attachment H-22A Data
A7: Duke Energy Ohio and Duke Energy Kentucky
A8: Firm PTP Service Revenue Credit Adjustment Calculation
A10: To be completed in conjunction with Attachment H-22A.
C13: (1) | E13: (2) | G13: (3)
A15: No. | E15: Reference | G15: Company Total
C17: REVENUE CREDIT TRUE-UP
A18: =MAX(A17:A$17)+1 -> 1 | C18: Difference Between Revenue Received In PJM vs. Midwest ISO | E18: (Note A) | G18: =SUM('Appx E - Workpaper'!G37) -> -991787.05
C20: ACCUMULATED BALANCE OF REVENUE CREDIT TRUE-UP
A21: =MAX(A$17:A20)+1 -> 2 | C21: Accumulated Balance of Deferral | E21: (Note B) | G21: ='Appx E - Workpaper'!M36 -> -1295062.828
A22: =MAX(A$17:A21)+1 -> 3 | C22: Income Tax Rate for Deferral Calculation | E22: (Note C) | G22: =G28 -> 0.4537125843
A23: =MAX(A$17:A22)+1 -> 4 | C23: Deferred Income Taxes on Accumulated Deferral (Line 2 * Line 3) | G23: =G22*G21 -> -587586.3025
A25: =MAX(A$17:A24)+1 -> 5 | C25: Accumulated Deferral for Carrying Cost Calculation (Line 2 - Line 4) | G25: =G21-G23 -> -707476.5254
C27: INCOME TAXES
A28: =MAX(A$17:A27)+1 -> 6 | C28: CIT = (T/(1-T)) * (1 - (WCLTD/R)) | E28: Attachment H-22, page 3, line 22 | G28: ='DE Ohio & Kentucky'!E170 -> 0.4537125843
A30: =MAX(A$17:A29)+1 -> 7 | C30: Income Taxes (Line 6 * Line 9) | G30: =G28*G34 -> -10432.20759
C32: CARRYING COST ON DEFERRAL
A33: =MAX(A$17:A32)+1 -> 8 | C33: FERC Refund Rate | E33: (Note D) | G33: 0.0325
A34: =MAX(A$17:A33)+1 -> 9 | C34: Carrying Cost (Line 5 * Line 8) | G34: =G33*G25 -> -22992.98707
A36: =MAX(A$17:A35)+1 -> 10 | C36: Revenue Credit Adjustment (Line 1 + Line 7 + Line 9) | G36: =G18+G34+G30 -> -1025212.245
A39: Note
A41: A | C41: From Appendix E, Workpaper, Column (4).
A43: B | C43: Accumulated balance of deferral as of December 31st of the year prior to effective date of new rates.
A45: C | C45: Effective deferred tax rate during applicable test year.
A47: D | C47: FERC Refund Rate is the approved rate as of December 31 of calendar year prior to the
C48: rate year (see 18 CFR Section 35.19a).

Sheet Appx E - Workpaper
A1: Duke Energy Ohio and Duke Energy Kentucky
A3: Worksheet for Firm PTP Service Revenue Credit Adjustment Calculation
M4: (7) = Prior month's
A5: (1) | C5: (2) | E5: (3) | G5: (4) = (2) - (3) | I5: (5) | K5: (6) = (4) - (5) | M5: Balance + (6)
C7: Actual Firm PTP Service | E7: Actual Firm PTP Service | G7: Difference Between Revenue | I7: Monthly True-Up Adjustment | M7: Accumulated Balance of
C8: Revenue Included in Test Year | E8: Revenue Received from | G8: Received and Amount in Rates | I8: Included In H-22A Net | K8: Amount Deferred for Future | M8: Deferred Firm PTP Service
A9: Period | C9: Rate Calculation (Note A) | E9: PJM (Note B) | G9: Excluding True Up | I9: Revenue Requirement (Note C) | K9: Future Recovery | M9: Revenue Credit Adjustment
A11: 2012-01-11 | C11: =ROUND(561138.24+230045.39,0) -> 791184 | E11: 1562589.55 | G11: =C11-E11 -> -771405.55 | K11: =G11-I11 -> -771405.55 | M11: =M10+K11 -> -771405.55
A12: 2012-02-11 | C12: =ROUND(445362.79+202942.54,0) -> 648305 | E12: -458016.8948 | G12: 1106321.895 | K12: 1106321.895 | M12: 334916.3448
A13: 2012-03-11 | C13: =ROUND(549462.12+193854.15,0) -> 743316 | E13: 534345.1816 | G13: 208970.8184 | K13: 208970.8184 | M13: 543887.1633
A14: 2012-04-11 | C14: =ROUND(455463.48+150674.434,0) -> 606138 | E14: 550253.6373 | G14: 55884.36267 | K14: 55884.36267 | M14: 599771.5259
A15: 2012-05-11 | C15: =ROUND(537380.9+204248.25,0) -> 741629 | E15: 508520.0594 | G15: 233108.9406 | K15: 233108.9406 | M15: 832880.4665
A16: 2012-06-11 | C16: 775567.48 | E16: 711074.0711 | G16: 64493.4089 | K16: 64493.4089 | M16: 897373.8754
A17: 2012-07-11 | C17: 772561.1 | E17: 699565.885 | G17: 72995.21499 | K17: 72995.21499 | M17: 970369.0904
A18: 2012-08-11 | C18: 848269.61 | E18: 763861.9485 | G18: 84407.66148 | K18: 84407.66148 | M18: 1054776.752
A19: 2012-09-11 | C19: 399762.04 | E19: 1373307.959 | G19: -973545.9191 | K19: -973545.9191 | M19: 81230.83278
A20: 2012-10-11 | C20: 413655.46 | E20: 783231.694 | G20: -369576.234 | K20: -369576.234 | M20: -288345.4012
A21: 2012-11-11 | C21: 663142.92 | E21: 866737.9146 | G21: -203594.9946 | K21: -203594.9946 | M21: -491940.3958
A22: 2012-12-11 | C22: 652756.43 | E22: 888676.8121 | G22: -235920.3821 | K22: -235920.3821 | M22: -727860.7779
A23: Total | C23: =SUM(C11:C22) -> 8056287.04 | E23: =SUM(E11:E22) -> 8784147.818 | G23: =SUM(G11:G22) -> -727860.7779 | K23: =SUM(K11:K22) -> -727860.7779
A25: 2013-01-11 | C25: 627309.66 | E25: 875002.99 | G25: =C25-E25 -> -247693.33 | K25: =G25-I25 -> -247693.33 | M25: =M22+K25 -> -975554.1079
A26: 2013-02-11 | C26: 573006.85 | E26: 772468.05 | G26: =C26-E26 -> -199461.2 | K26: -199461.2 | M26: =M25+K26 -> -1175015.308
A27: 2013-03-11 | C27: 724328.85 | E27: 830765.07 | G27: =C27-E27 -> -106436.22 | K27: -106436.22 | M27: -1281451.528
A28: 2013-04-11 | C28: 591717.19 | E28: 793293.88 | G28: =C28-E28 -> -201576.69 | K28: -201576.69 | M28: -1483028.218
A29: 2013-05-11 | C29: 571818.81 | E29: 808438.42 | G29: =C29-E29 -> -236619.61 | K29: -236619.61 | M29: -1719647.828
A30: 2013-06-11 | I30: =ROUND($M$22/12,0) -> -60655 | K30: 60655 | M30: -1658992.828
A31: 2013-07-11 | I31: =ROUND($M$22/12,0) -> -60655 | K31: 60655 | M31: -1598337.828
A32: 2013-08-11 | I32: -60655 | K32: 60655 | M32: -1537682.828
A33: 2013-09-11 | I33: -60655 | K33: 60655 | M33: -1477027.828
A34: 2013-10-11 | I34: -60655 | K34: 60655 | M34: -1416372.828
A35: 2013-11-11 | I35: -60655 | K35: 60655 | M35: -1355717.828
A36: 2013-12-11 | I36: -60655 | K36: 60655 | M36: -1295062.828
A37: Total | C37: =SUM(C25:C36) -> 3088181.36 | E37: =SUM(E25:E36) -> 4079968.41 | G37: =SUM(G25:G36) -> -991787.05 | I37: =SUM(I30:I36) -> -424585 | K37: =SUM(K25:K36) -> -567202.05
A39: 2014-01-11 | K39: =G39-I39 -> 0 | M39: =M36+K39 -> -1295062.828
A40: 2014-02-11 | K40: 0 | M40: =M39+K40 -> -1295062.828
A41: 2014-03-11 | K41: 0 | M41: -1295062.828
A42: 2014-04-11 | K42: 0 | M42: -1295062.828
A43: 2014-05-11 | K43: 0 | M43: -1295062.828
A44: 2014-06-11 | K44: 0 | M44: -1295062.828
A45: 2014-07-11 | K45: 0 | M45: -1295062.828
A46: 2014-08-11 | K46: 0 | M46: -1295062.828
A47: 2014-09-11 | K47: 0 | M47: -1295062.828
A48: 2014-10-11 | K48: 0 | M48: -1295062.828
A49: 2014-11-11 | K49: 0 | M49: -1295062.828
A50: 2014-12-11 | K50: 0 | M50: -1295062.828
A51: Total | I51: =SUM(I44:I50) -> 0 | K51: =SUM(K39:K50) -> 0
A53: 2015-01-11 | K53: =G53-I53 -> 0 | M53: =M50+K53 -> -1295062.828
A54: 2015-02-11 | K54: =G54-I54 -> 0 | M54: =M53+K54 -> -1295062.828
A55: 2015-03-11 | K55: =G55-I55 -> 0 | M55: =M54+K55 -> -1295062.828
A56: 2015-04-11 | K56: =G56-I56 -> 0 | M56: =M55+K56 -> -1295062.828
A57: 2015-05-11 | K57: =G57-I57 -> 0 | M57: =M56+K57 -> -1295062.828
A58: Total | I58: =SUM(I53:I57) -> 0 | K58: =SUM(K53:K57) -> 0
A60: Notes:
A62: (A) | C62: Monthly Firm PTP service revenue from Midwest ISO during test year applicable to currently effectives NITS and PTP service rates.
A63: (B) | C63: Actual monthly Firm PTP service revenue received from PJM during current period.
A64: (C) | C64: Recovery of deferral begins with the first period for billing rates approved using a test year for Attachment H-22A that includes actual operations in PJM.
C65: The recovery of the amounts deferred between January 1, 2012, and December 31, 2012, will begin on June 1, 2013, and will end on May 31, 2014.
C66: The recovery of the amounts deferred between January 1, 2013 and May 31, 2013, will begin on June 1, 2014, and will end on May 31, 2015.

Sheet P2 ADIT 190 & 282
A1: Duke Energy Ohio and Duke Energy Kentucky
F3: Exhibit No. DUK-102
F4: ="Page 1 of "&Workpaper -> Page 1 of 10
F5: ='DE Ohio & Kentucky'!$J$124 -> For the 12 months ended: 12/31/2013
A7: Accumulated Deferred Income Taxes
A8: Accounts 190 and Account 282
B12: Account 190 | D12: DEO | E12: DEK | F12: DEOK
A14: Per Books Total, Page 234, lines 8 & 17, column c | D14: =9002756+128093604 -> 137096360 | E14: =-3715764-621838 -> -4337602 | F14: =E14+D14 -> 132758758
A16: Less:
B17: FAS 106 and FAS 109 Related items | D17: =1573899-4565679+974167 -> -2017613 | E17: =1773824+63279 -> 1837103 | F17: =E17+D17 -> -180510
A19: Adjusted Balances - To Page 2, Line 22 | D19: =D14-D17 -> 139113973 | E19: =E14-E17 -> -6174705 | F19: =F14-F17 -> 132939268
B23: Account 282 | D23: DEO | E23: DEK | F23: DEOK
A25: Per Books Total, Page 275, lines 2 & 6, column k | D25: =523662133+577366744 -> 1101028877 | E25: =116967578+62162996 -> 179130574 | F25: =E25+D25 -> 1280159451
A27: Less:
B28: FAS 106 and FAS 109 Related items | D28: =691873+80019281-15627836 -> 65083318 | E28: =342276+4339059-1529491-3706746 -> -554902 | F28: =E28+D28 -> 64528416
A30: Adjusted Balances - To Page 2, Line 20 | D30: =D25-D28 -> 1035945559 | E30: =E25-E28 -> 179685476 | F30: =F25-F28 -> 1215631035

Sheet P2 Allocate M&S
A1: ='P2 ADIT 190 & 282'!A1 -> Duke Energy Ohio and Duke Energy Kentucky
H3: Exhibit No. DUK-102
H4: ="Page 2 of "&Workpaper -> Page 2 of 10
H5: ='DE Ohio & Kentucky'!$J$124 -> For the 12 months ended: 12/31/2013
A7: Materials and Supplies
A8: Allocation of Account 163
A12: Duke Energy Ohio
B13: M&S (2) | D13: Percentage | F13: 163 (3) | H13: Total M&S (1)
A14: Production | B14: 40286103 | D14: =B14/B17 -> 0.4723303202 | F14: =ROUND(F17*D14,0) -> 60079
A15: Transmission | B15: 9952046 | D15: =B15/B17 -> 0.1166817519 | F15: =ROUND(D15*F17,0) -> 14841 | H15: =F15+B15 -> 9966887
A16: Distribution | B16: 35054074 | D16: =B16/B17 -> 0.4109879279 | F16: =F17-F15-F14 -> 52276
A17: Total M&S | B17: =SUM(B14:B16) -> 85292223 | D17: =SUM(D14:D16) -> 1 | F17: 127196
A20: Duke Energy Kentucky
B21: M&S (2) | D21: Percentage | F21: 163 (3)
A22: Production | B22: 17582198 | D22: =B22/B25 -> 0.9799135042 | F22: =ROUND(F25*D22,0) -> 841157
A23: Transmission | B23: 29177 | D23: =B23/B25 -> 0.001626129811 | F23: =ROUND(D23*F25,0) -> 1396 | H23: =F23+B23 -> 30573
A24: Distribution | B24: 331227 | D24: =B24/B25 -> 0.018460366 | F24: =F25-F23-F22 -> 15846
A25: Total M&S | B25: =SUM(B22:B24) -> 17942602 | D25: =SUM(D22:D24) -> 1 | F25: 858399
A28: Duke Energy Ohio and Kentucky
B29: M&S | F29: 163
A30: Production | B30: =B14+B22 -> 57868301 | F30: =F14+F22 -> 901236
A31: Transmission | B31: =B15+B23 -> 9981223 | F31: =F15+F23 -> 16237 | H31: =F31+B31 -> 9997460
A32: Distribution | B32: 35385301 | F32: 68122
A33: Total M&S | B33: =SUM(B30:B32) -> 103234825 | F33: =SUM(F30:F32) -> 985595
A36: (1) To Page 2, Line 27.
A37: (2) Source FERC Form 1, page 227, line 12, column (c)
A38: (3) Source FERC Form 1, page 227, line 16, column (c)

Sheet P2 Land Held for Future Use
A1: ='P2 ADIT 190 & 282'!A1 -> Duke Energy Ohio and Duke Energy Kentucky
D3: Exhibit No. DUK-102
D4: ="Page 3 of "&Workpaper -> Page 3 of 10
D5: ='DE Ohio & Kentucky'!$J$124 -> For the 12 months ended: 12/31/2013
A7: Detail of Land Held for Future Use
B10: Transmission Related | C10: Non-Transmission Related Portion | D10: Reported on FERC Form 1
A12: Duke Energy Ohio
A14: East Bend Station | C14: 1959275 | D14: =SUM(B14:C14) -> 1959275
A15: J.M. Stuart Station | C15: 272173 | D15: 272173
A16: Woodsdale Station | C16: 2012790 | D16: 2012790
A17: Other Projects | B17: 121217 | C17: =139751+6661+1 -> 146413 | D17: 267630
A18: J.M. Stuart Station - Production | C18: 91232 | D18: 91232
A19: East Bend Station - Production | B19: 0 | C19: =157945+93291 -> 251236 | D19: 251236
A20: Total | B20: =SUM(B14:B19) -> 121217 | C20: =SUM(C14:C19) -> 4733119 | D20: =SUM(D14:D19) -> 4854336
A24: Duke Energy Kentucky
B26: 0 | C26: 0 | D26: =SUM(B26:C26) -> 0
A28: Duke Energy Ohio and Kentucky
A30: Balances - To Page 2, Line 25 | B30: =B27+B20 -> 121217 | C30: =C27+C20 -> 4733119 | D30: =D27+D20 -> 4854336
A35: Source: FERC Form 1 Page 214

Sheet P3 Advertising - EPRI Adj.
A1: ='P2 ADIT 190 & 282'!A1 -> Duke Energy Ohio and Duke Energy Kentucky
E3: Exhibit No. DUK-102
E4: ="Page 4 of "&Workpaper -> Page 4 of 10
E5: ='DE Ohio & Kentucky'!$J$124 -> For the 12 months ended: 12/31/2013
A7: Non-Safety Adv., Reg. Comm. Exp. & EPRI
A12: Description | B12: Source | C12: DEO | D12: DEK | E12: DEOK
A14: General Advertising - 930.1 | B14: Form 1, P. 323.191, col. b, | C14: 45370 | D14: 8488 | E14: =D14+C14 -> 53858
A15: Regulatory Commission Expense | B15: Form 1, P.350, col. d, | C15: 1296245 | D15: 602198 | E15: =D15+C15 -> 1898443
A16: Ohio Consumers' Counsel | B16: Form 1, P.350, col. d, | C16: 227177 | E16: 227177
A17: PUCO - Division of Forecasting | B17: Form 1, P.350, col. d, | C17: 112949 | E17: 112949
A18: Request for Rate Increase | B18: Form 1, P.350, col. d, | C18: 102946 | E18: 102946
A20: Electric Power Research Institute | B20: Form 1, P.353, col.d, | C20: 710632 | D20: 307645 | E20: 1018277
A21: Less amounts recorded in a non-formula related account | B21: FERC Account 506 | C21: 515536 | D21: 181431 | E21: 696967
A22: Less amounts recorded in a non-formula related account | B22: FERC Account 588 | C22: 28333 | D22: 26153 | E22: 54486
A23: Less amounts recorded in a non-formula related account | B23: FERC Account 910 | C23: 75265 | D23: 15601 | E23: 90866
A24: Total Electric Power Research Institute | C24: =C20-C21-C22-C23 -> 91498 | D24: =D20-D21-D22-D23 -> 84460 | E24: =E20-E21-E22-E23 -> 175958
A26: Subtotal | C26: =SUM(C14:C18)+C24 -> 1876185 | D26: =SUM(D14:D18)+D24 -> 695146 | E26: 2571331
A28: Amount of Safety Related Advertising | C28: 0 | D28: 0 | E28: =D28+C28 -> 0
A30: Non-Safety Adv., Reg. Comm. Exp. & EPRI - To Page 3, Line 5 | C30: =C26-C28 -> 1876185 | D30: =D26-D28 -> 695146 | E30: =E26-E28 -> 2571331

Sheet P3 Schedule 1 Charges acct 561
A1: ='P2 ADIT 190 & 282'!A1 -> Duke Energy Ohio and Duke Energy Kentucky
E3: Exhibit No. DUK-102
E4: ="Page 5 of "&Workpaper -> Page 5 of 10
E5: ='DE Ohio & Kentucky'!$J$124 -> For the 12 months ended: 12/31/2013
A6: Balancing Authority Costs
C10: DEO | D10: DEK | E10: DEOK
A11: A&G Expense
A12: A&G Expense, Page 323, line 197, column b | C12: =INPUT!C55 -> 143718447 | D12: =INPUT!D55 -> 23631896 | E12: =D12+C12 -> 167350343
A14: Less: Duke / Progress merger costs to achieve. Includes payroll taxes and A&G expense. | C14: 11452332 | D14: 2077248 | E14: =D14+C14 -> 13529580
A15: Less: Balancing Authority costs that should have been recorded in account 561, instead were recorded in Account 920 after accounting system change | C15: 0 | D15: 0 | E15: =D15+C15 -> 0
A17: Adjusted A&G Expense - To Page 3, Line 3 | C17: =C12-C14-C15 -> 132266115 | D17: =D12-D14-D15 -> 21554648 | E17: =E12-E14-E15 -> 153820763
A21: Transmission Expense
A22: Transmission Expense, Page 321, line 112, column b | C22: =INPUT!C51 -> 25124061 | D22: =INPUT!D51 -> 10229766 | E22: =D22+C22 -> 35353827
A24: Add: Balancing Authority costs that should have been recorded in account 561, instead were recorded in Account 920 after accounting system change | C24: 0 | D24: 0 | E24: =D24+C24 -> 0
A26: Adjusted Transmission Expense - To Page 3, Line 1 | C26: =C22+C24 -> 25124061 | D26: =D22+D24 -> 10229766 | E26: =E22-E24 -> 35353827
A30: Balancing Authority Costs in 561 through 561.3
A31: B.A. Costs in Transmission Expense on Page 321 of FF1 | C31: =INPUT!C99 -> 1208628 | D31: =INPUT!D99 -> 199887 | E31: =D31+C31 -> 1408515
A33: Add: Balancing Authority costs that should have been recorded in account 561, instead were recorded in Account 920 after accounting system change | C33: 0 | D33: 0 | E33: =D33+C33 -> 0
A35: Adjusted B.A. Costs - To Page 4, Line 7 | C35: =C31+C33 -> 1208628 | D35: =D31+D33 -> 199887 | E35: =E31-E33 -> 1408515

Sheet P3 Statetax
A1: ='P2 ADIT 190 & 282'!A1 -> Duke Energy Ohio and Duke Energy Kentucky
D3: Exhibit No. DUK-102
D4: ="Page 6 of "&Workpaper -> Page 6 of 10
D5: ='DE Ohio & Kentucky'!$J$124 -> For the 12 months ended: 12/31/2013
A7: State Tax Composite Rate
A9: State | B9: Ohio | C9: Kentucky
B11: Duke Energy Ohio | C11: Duke Energy Kentucky | D11: TOTAL
A12: Revenue Requirement | B12: =DEO!J15 -> 81752520.14 | C12: =DEK!J15 -> 4055781.069 | D12: =SUM(B12:C12) -> 85808301.21
A13: Tax Rate | B13: 0 | C13: 0.06
A15: State Taxes | B15: =ROUND(B13*B12,2) -> 0 | C15: =ROUND(C13*C12,2) -> 243346.86 | D15: =SUM(B15:C15) -> 243346.86
A17: Composite Tax Rate | B17: =ROUND(B15/B12,4) -> 0 | C17: 0.06 | D17: =ROUND(D15/D12,4) -> 0.0028

Sheet P4 Trans Plant In OATT
A1: ='P2 ADIT 190 & 282'!A1 -> Duke Energy Ohio and Duke Energy Kentucky
D3: Exhibit No. DUK-102
D4: ="Page 7 of "&Workpaper -> Page 7 of 10
D5: ='DE Ohio & Kentucky'!$J$124 -> For the 12 months ended: 12/31/2013
A7: Determination of Transmission Plant Included in OATT Ancillary Services
B11: DEO | C11: DEK | D11: DEOK
A13: Total Generation Step-up Transformers | B13: =25036802.26-C13 -> 13559865.32 | C13: 11476936.94 | D13: =+B13+C13 -> 25036802.26
A14: Assets removed through 2011 by FERC Agreement | B14: 0 | C14: 0 | D14: =C14+B14 -> 0
A15: Sole use Property | B15: 0 | C15: 0 | D15: =C15+B15 -> 0
A16: Distribution Use | B16: 0 | C16: 0 | D16: 0
A18: Transmission plant included in OATT Ancillary Services - To Page 4, Line 3 | B18: =SUM(B13:B17) -> 13559865.32 | C18: =SUM(C13:C17) -> 11476936.94 | D18: =SUM(D13:D17) -> 25036802.26

Sheet P4 Rev Cred Support
A1: ='P2 ADIT 190 & 282'!A1 -> Duke Energy Ohio and Duke Energy Kentucky
F3: Exhibit No. DUK-102
F4: ="Page 8 of "&Workpaper -> Page 8 of 10
F5: ='DE Ohio & Kentucky'!$J$124 -> For the 12 months ended: 12/31/2013
A7: Revenue Credits, Accounts 454 and 456
C12: Account 454
C13: DEO | E13: DEK | F13: DEOK
A14: Per Books Total, Page 300 | C14: 14319978 | E14: 801022 | F14: =E14+C14 -> 15121000
A16: Tower Lease Revenues in per Books Total above | C16: 84914 | E16: 9690 | F16: =E16+C16 -> 94604
A18: Rent from Electric Property in per Books Total above | C18: 1565516.23 | E18: 171283 | F18: =E18+C18 -> 1736799.23
A19: Portion Attributable to Transmission | C19: 0.05 | E19: 0.05 | F19: 0.05
A20: Revenue Credit Applicable to Attachment H-22A | C20: =ROUND(C18*C19,0)+C16 -> 163190 | E20: =ROUND(E18*E19,0)+E16 -> 18254 | F20: =ROUND(F18*F19,0)+F16 -> 181444
A22: Step-ups leased to Duke Energy Kentucky | C22: 0 | E22: 0 | F22: =E22+C22 -> 0
A23: Total Account 454 - To Page 4, Line 34 | C23: =C22+C20 -> 163190 | E23: =E22+E20 -> 18254 | F23: =F22+F20 -> 181444
C27: Account 456
C28: DEO | E28: DEK | F28: DEOK
A29: Total Account 456 Per Books Total, Page 300 | C29: =4717020+230252 -> 4947272 | E29: =780298+1026885 -> 1807183 | F29: =E29+C29 -> 6754455
A31: Less: Other Electric Revenues | C31: 230252 | E31: 780298 | F31: =E31+C31 -> 1010550
A32: Revenues from Transmission of Electricity for Others | C32: =C29-C31 -> 4717020 | E32: =E29-E31 -> 1026885 | F32: =F29-F31 -> 5743905
A34: Less: Transmission Revenues - Load in Divisor
A35: Sch 1 - Scheduling, System Control & Dispatch | C35: 341051 | E35: 0 | F35: =E35+C35 -> 341051
A36: Sch 2 - Reactive Supply & Voltage Control | C36: -4765084 | E36: 0 | F36: -4765084
A37: Sch 4 - Day-Ahead Load Response Charge Allocation | C37: -113863 | E37: 0 | F37: -113863
A38: Sch 4 - Real-Time Load Response Charge Allocation | C38: -101669 | E38: 0 | F38: -101669
A39: Sch 8 - Non-Firm PTP | C39: 73213 | E39: 17956 | F39: 91169
A40: Sch 9 - NITS | C40: 4053242 | E40: 0 | F40: 4053242
A41: Sch 24 - Load Balancing | C41: 162711 | F41: 162711
A42: Sch 26 - MTEP Project Cost Recovery | C42: 3540630 | E42: 0 | F42: 3540630
A43: PJM Customer Payment Default | C43: 680 | E43: 0 | F43: 680
A44: Facilities Charges | C44: 184388 | E44: 16513 | F44: 200901
A45: Other Transmission Revenues - FTR's | C45: 0 | E45: 923767 | F45: 923767
A46: Miscellaneous Bilateral | C46: 402612 | E46: 0 | F46: 402612
A47: Total Transmission Revenues - Load in Divisor | C47: =SUM(C35:C46) -> 3777911 | E47: =SUM(E35:E46) -> 958236 | F47: 4736147
A49: Total Account 456.1 - To Page 4, Line 35 | C49: =C32-C47 -> 939109 | E49: =E32-E47 -> 68649 | F49: =F32-F47 -> 1007758

Sheet P4 Capital Structure - Confiden
A1: ='P2 ADIT 190 & 282'!A1 -> Duke Energy Ohio and Duke Energy Kentucky
P3: Exhibit No. DUK-102
P4: ="Page 9 of "&Workpaper -> Page 9 of 10
P5: ='DE Ohio & Kentucky'!$J$124 -> For the 12 months ended: 12/31/2013
A6: Duke Energy Ohio Consolidated
A7: Capital Structure
A8: December 31, 2013
A9: (In Dollars)
G11: Goodwill | I11: Other Asset | P11: Capital Structure without
B12: Actual | C12: ULHP | E12: Purchase | G12: Impairments | I12: Impairment | K12: Adjusted | M12: Midwest DENA Equity | P12: Purchase accounting
B13: 2013-12-31 | C13: Purchase Accounting | E13: Accounting | G13: Sep09 and Jun10 | I13: Charges | K13: 2013-12-31 | M13: BU 75032 | N13: BU 75012 (3) | P13: and Midwest DENA
A15: Liabilities and Shareholders' Equity
A17: Current Maturities of Long-Term Debt | B17: 47195535 | E17: 0 | K17: =+B17+E17+G17+I17 -> 47195535 | P17: =+K17+M17+N17 -> 47195535
A19: Non-Current Liabilities
A20: Long-Term Debt (3) | B20: 2140513304 | E20: 5819478 | K20: =+B20+E20+G20+I20 -> 2146332782 | P20: =+K20+M20+N20 -> 2146332782
A21: Deferred Debt Expense | B21: -14587591 | E21: -3037311 | K21: =+B21+E21+G21+I21 -> -17624902 | P21: =+K21+M21+N21 -> -17624902
A22: Less: Current portion of deferred debt expense | B22: -6821566 | K22: =+B22+E22+G22+I22 -> -6821566 | P22: -6821566
A23: 0257010 Unamortized Gain-Debt | B23: 404469 | K23: =+B23+E23+G23+I23 -> 404469 | P23: 404469
A24: Total Long-Term Debt Excl. Current Maturities | B24: =SUM(B20:B23) -> 2119508616 | C24: =SUM(C20:C23) -> 0 | E24: =SUM(E20:E23) -> 2782167 | G24: =SUM(G20:G23) -> 0 | I24: =SUM(I20:I23) -> 0 | K24: =SUM(K20:K23) -> 2122290783 | M24: =SUM(M20:M23) -> 0 | N24: =SUM(N20:N23) -> 0 | P24: =SUM(P20:P23) -> 2122290783
A26: Total Long Term Debt | B26: =B24+B17 -> 2166704151 | D26: =ROUND(B26/B50,2) -> 0.29 | E26: =E24+E17 -> 2782167 | G26: =G24+G17 -> 0 | I26: =I24+I17 -> 0 | K26: =K24+K17 -> 2169486318 | M26: =M24+M17 -> 0 | N26: =N24+N17 -> 0 | P26: =P24+P17 -> 2169486318 | Q26: =ROUND(P26/P50,2) -> 0.4
A27: Common Stock Equity
A28: 0201000 Common Stock Issued | B28: 762136231 | C28: 0 | E28: 0 | K28: =B28+E28+G28+I28 -> 762136231 | M28: 0 | N28: 0 | P28: =+K28+M28+N28 -> 762136231
A30: 207000 Premium on capital stock | B30: 0 | E30: 362457437 | K30: =+B30+E30+G30+I30 -> 362457437 | P30: =+K30+M30+N30 -> 362457437
A31: 0208000 Donations From Stockholder | B31: 28950000 | E31: 197206819 | K31: =+B31+E31+G31+I31 -> 226156819 | P31: 226156819
A32: 0208001 Donations From Stockholder-DENA | B32: 1462336840 | E32: 0 | K32: 1462336840 | M32: -1462336840 | P32: 0
A33: 0208010 Donat Recvd From Stkhld Tax | B33: 15641578 | E33: 68538328 | K33: 84179906 | P33: 84179906
A34: 210020 Gain on Redemption of Capital | B34: 0 | E34: 147685 | K34: 147685 | P34: 147685
A35: 0211003 Misc Paid In Capital | B35: -44006414 | E35: 0 | K35: =+B35+E35+G35+I35 -> -44006414 | N35: -651142288 | P35: =+K35+M35+N35 -> -695148702
A36: 0211004 Misc Paid In Capital Purch Acctg | B36: 1095122010 | E36: -2879949148 | K36: -1784827138 | N36: -15964862 | P36: -1800792000
A37: 0211008 Misc PIC Pushdown Adj RE | B37: 1766266493 | E37: 0 | K37: =+B37+E37+G37+I37 -> 1766266493 | P37: =+K37+M37+N37 -> 1766266493
A38: 0211005 Misc Paid in Capital Premerger Equity | B38: 557581098 | E38: -603514486 | K38: -45933388 | P38: -45933388
A39: 0211007 Misc PIC Premerg RE for Div | B39: 0 | E39: -625474493 | K39: -625474493 | P39: -625474493
A40: 211110 PIC - Sharesaver (BDMS account) | B40: 0 | E40: -3350836 | K40: -3350836 | P40: -3350836
A41: 214010 Common stock equity inter-company | B41: 0 | E41: -21750868 | K41: -21750868 | P41: -21750868
P42: 0
A43: 0216000/0216100 Unappropriated RE/Undistr Subsid Earnings | B43: -477451772 | E43: 941852979 | F43: (1) | G43: 1403452846 | I43: 117257663 | J43: (1) | K43: =+B43+E43+G43+I43 -> 1985111716 | M43: -161046648 | N43: -251296964 | P43: 1572768104
A44: 0216100 Unappropriated RE/Undistr Subsid Earnings - Equitization | B44: 0 | K44: =+B44+E44+G44+I44 -> 0 | M44: 1644041551 | P44: 1644041551
A45: 0438000 Dividends Declared on Common Stock | B45: 0 | K45: =+B45+E45+G45+I45 -> 0 | P45: 0
A46: Current Year Net Income | B46: 112578514 | E46: 19374262 | F46: (2) | G46: 0 | I46: 0 | J46: (2) | K46: =+B46+E46+G46+I46 -> 131952776 | M46: 55190 | N46: -15435464 | P46: 116572502
A47: Accum other comprehensive income (loss) | B47: 1638 | E47: -45455363 | K47: =+B47+E47+G47+I47 -> -45453725 | M47: 0 | N47: 0 | P47: -45453725
A48: Total Common Stock Equity | B48: =SUM(B28:B47) -> 5279156216 | C48: =SUM(C28:C47) -> 0 | D48: =ROUND(B48/B50,2) -> 0.71 | E48: =SUM(E28:E47) -> -2589917684 | G48: =SUM(G28:G47) -> 1403452846 | I48: =SUM(I28:I47) -> 117257663 | K48: =SUM(K28:K47) -> 4209949041 | M48: =SUM(M28:M47) -> 20713253 | N48: =SUM(N28:N47) -> -933839578 | P48: =SUM(P28:P47) -> 3296822716 | Q48: =ROUND(P48/P50,2) -> 0.6
A50: TOTAL CAPITALIZATION | B50: =B26+B48 -> 7445860367 | C50: =C26+C48 -> 0 | E50: =E26+E48 -> -2587135517 | G50: =G26+G48 -> 1403452846 | I50: =I26+I48 -> 117257663 | K50: =K26+K48 -> 6379435359 | M50: =M26+M48 -> 20713253 | N50: =N26+N48 -> -933839578 | P50: =P26+P48 -> 5466309034
H54: Adjustment to Proprietary Capital for Duke Ohio Attachment H-22A, page 4, line 23 | P54: =P48-B48-N43-N46 -> -1715601072
A57: Notes:
A58: (1) Purchase Accounting & Other Asset Impairment Charges income statement impacts are adjusted in prior year retained earnings balances net of tax at an assumed tax rate of 38% - 2006, 33.5% - 2007, 37.4% - 2008, 35.4% - 2009, 35.4% - 2010 and 35.4% - 2009 through 2012.
A59: (2) Purchase Accounting & Other Asset Impairment Charges income statement impacts are adjusted in current year retained earnings balances net of tax at an assumed tax rate of 35.4%.
A60: (3) Midwest DENA Assets were reclassed from B.U. 75032 to B.U. 75012 in June 2011.

Sheet Partner KW
A1: ='P2 ADIT 190 & 282'!A1 -> Duke Energy Ohio and Duke Energy Kentucky
O3: Exhibit No. DUK-102
O4: ="Page 10 of "&Workpaper -> Page 10 of 10
O5: ='DE Ohio & Kentucky'!$J$124 -> For the 12 months ended: 12/31/2013
A7: =CONCATENATE(TEXT(RIGHT('DE Ohio & Kentucky'!J7,10),"YYYY")," MONTHLY PEAKS IN KILOWATTS") -> 2013 MONTHLY PEAKS IN KILOWATTS
B11: Jan | C11: Feb | D11: Mar | E11: Apr | F11: May | G11: Jun | H11: Jul | I11: Aug | J11: Sep | K11: Oct | L11: Nov | M11: Dec | N11: Total | O11: Average
A13: DEO - Monthly Transmission System Peak Load (1) | B13: =B32 -> 4264000 | C13: =C32 -> 4236000 | D13: 3838000 | E13: 3431000 | F13: 4568000 | G13: 4880000 | H13: 5109000 | I13: 4997000 | J13: 5146000 | K13: 3842000 | L13: 3791000 | M13: 4192000 | N13: =SUM(B13:M13) -> 52294000 | O13: =ROUND(N13/12,0) -> 4357833
A15: Less:
A16: DEK Monthly Peak Demand (2) | B16: 710000 | C16: 681000 | D16: 619000 | E16: 563000 | F16: 727000 | G16: 813000 | H16: 858000 | I16: 853000 | J16: 851000 | K16: 662000 | L16: 610000 | M16: 681000 | N16: =SUM(B16:M16) -> 8628000 | O16: =ROUND(N16/12,0) -> 719000
A18: DEO - Monthly Transmission System Peak Load | B18: =B13-B16 -> 3554000 | C18: =C13-C16 -> 3555000 | D18: 3219000 | E18: 2868000 | F18: 3841000 | G18: 4067000 | H18: 4251000 | I18: 4144000 | J18: 4295000 | K18: 3180000 | L18: 3181000 | M18: 3511000 | N18: 43666000 | O18: 3638833
A20: Notes:
A21: (1) DEOK 1 CP is Duke Energy Ohio ("DEO") Monthly Firm Transmission System Peak Load as reported on page 400, column b of Form 1 at the time of DEO's annual peak,
A22: plus load served by Duke Energy Kentucky at Longbranch. For years ending 12/31/2010, 12/31/2011 and 12/31/2012, this sum will be reduced by the amount of distribution
A23: load served by East Kentucky Power Cooperative via Duke Kentucky’s Hebron substation.
A24: (2) Source: DEK peak as reported on FERC Form 1 Page 401b.
B27: Jan | C27: Feb | D27: Mar | E27: Apr | F27: May | G27: Jun | H27: Jul | I27: Aug | J27: Sep | K27: Oct | L27: Nov | M27: Dec
A28: Form 1, Col. (b) | B28: =ROUND($C$36*1000,0) -> 4264000 | C28: =ROUND($C$37*1000,0) -> 4236000 | D28: =ROUND($C$38*1000,0) -> 3838000 | E28: =ROUND($C$39*1000,0) -> 3431000 | F28: =ROUND($C$40*1000,0) -> 4568000 | G28: =ROUND($C$41*1000,0) -> 4880000 | H28: =ROUND($C$42*1000,0) -> 5109000 | I28: =ROUND($C$43*1000,0) -> 4997000 | J28: =ROUND($C$44*1000,0) -> 5146000 | K28: =ROUND($C$45*1000,0) -> 3842000 | L28: =ROUND($C$46*1000,0) -> 3791000 | M28: =ROUND($C$47*1000,0) -> 4192000
A29: Plus: Longbranch (Duke load on EKPC system) | B29: =ROUND($D$36*1000,0) -> 0 | C29: =ROUND($D$37*1000,0) -> 0 | D29: =ROUND($D$38*1000,0) -> 0 | E29: =ROUND($D$39*1000,0) -> 0 | F29: =ROUND($D$40*1000,0) -> 0 | G29: =ROUND($D$41*1000,0) -> 0 | H29: =ROUND($D$42*1000,0) -> 0 | I29: =ROUND($D$43*1000,0) -> 0 | J29: =ROUND($D$44*1000,0) -> 0 | K29: =ROUND($D$45*1000,0) -> 0 | L29: =ROUND($D$46*1000,0) -> 0 | M29: =ROUND($D$47*1000,0) -> 0
A30: Less: Hebron (EKPC load on Duke System) | B30: =ROUND($E$36*1000,0) -> 0 | C30: =ROUND($E$37*1000,0) -> 0 | D30: =ROUND($E$38*1000,0) -> 0 | E30: =ROUND($E$39*1000,0) -> 0 | F30: =ROUND($E$40*1000,0) -> 0 | G30: =ROUND($E$41*1000,0) -> 0 | H30: =ROUND($E$42*1000,0) -> 0 | I30: =ROUND($E$43*1000,0) -> 0 | J30: =ROUND($E$44*1000,0) -> 0 | K30: =ROUND($E$45*1000,0) -> 0 | L30: =ROUND($E$46*1000,0) -> 0 | M30: =ROUND($E$47*1000,0) -> 0
A32: Adjusted Peak Load | B32: =B28+B29-B30 -> 4264000 | C32: =C28+C29-C30 -> 4236000 | D32: 3838000 | E32: 3431000 | F32: 4568000 | G32: 4880000 | H32: 5109000 | I32: 4997000 | J32: 5146000 | K32: 3842000 | L32: 3791000 | M32: 4192000
A34: Source: Danny Fossitt | B34: Hour | F34: Adjusted
A35: Date | B35: Ending | C35: Net Mwh | D35: Longbranch | E35: Hebron | F35: Load
A36: January, 22 2013 | B36: 8 | C36: 4264 | D36: 0 | E36: 0 | F36: =ROUND((C36+D36-E36)*1000,0) -> 4264000
A37: February, 1 2013 | B37: 8 | C37: 4236 | D37: 0 | E37: 0 | F37: =ROUND((C37+D37-E37)*1000,0) -> 4236000
A38: March, 14 2013 | B38: 7 | C38: 3838 | D38: 0 | E38: 0 | F38: 3838000
A39: April, 3 2013 | B39: 7 | C39: 3431 | D39: 0 | E39: 0 | F39: 3431000
A40: May, 30 2013 | B40: 16 | C40: 4568 | D40: 0 | E40: 0 | F40: 4568000
A41: June, 25 2013 | B41: 16 | C41: 4880 | D41: 0 | E41: 0 | F41: 4880000
A42: July, 18 2013 | B42: 17 | C42: 5109 | D42: 0 | E42: 0 | F42: 5109000
A43: August, 28 2013 | B43: 17 | C43: 4997 | D43: 0 | E43: 0 | F43: 4997000
A44: September, 10 2013 | B44: 16 | C44: 5146 | D44: 0 | E44: 0 | F44: 5146000
A45: October, 4 2013 | B45: 16 | C45: 3842 | D45: 0 | E45: 0 | F45: 3842000
A46: November, 27 2013 | B46: 19 | C46: 3791 | D46: 0 | E46: 0 | F46: 3791000
A47: December, 12 2013 | B47: 8 | C47: 4192 | D47: 0 | E47: 0 | F47: 4192000
